Workbook

Sheet Transition Matrices
A1: Model Inputs | H1: Transition Matrix: Treatment A | BB1: txA_cost | BC1: txA_QALY | BD1: txB_cost | BE1: txB_QALY | BK1: txA_cost | BL1: txA_QALY | BM1: txB_cost | BN1: txB_QALY | BP1: txA_ExpNB | BQ1: txB_ExpNB | BX1: CEAC/CEAF | BY1: txA% | BZ1: txB% | CA1: txA_NB | CB1: txB_NB | CM1: CEAC Data Table Array
AA2: Transition Matrix: Treatment B | BB2: =$R$92 -> 15360.68074 | BC2: =$V$92 -> 0.7171832665 | BD2: =$AK$92 -> 21557.22944 | BE2: =$AO$92 -> 0.8439548079 | BK2: =AVERAGE(BK9:BK10008) -> 15792.55333 | BL2: =AVERAGE(BL9:BL10008) -> 0.804301801 | BM2: =AVERAGE(BM9:BM10008) -> 21072.78567 | BN2: =AVERAGE(BN9:BN10008) -> 0.8503690104 | BP2: =(BL2)*lambda-BK2 -> 8336.500696 | BQ2: =(BN2)*lambda-BM2 -> 4438.284642 | BY2: =BP3 -> 0.5817 | BZ2: =BQ3 -> 0.4183 | CA2: =BP2 -> 8336.500696 | CB2: =BQ2 -> 4438.284642 | CM2: Number of Simulations INMB > 0 | CN2: =COUNTIF(CN9:CN10008,">0") -> 733 | CO2: =COUNTIF(CO9:CO10008,">0") -> 2083 | CP2: 2963 | CQ2: 3526 | CR2: 3895 | CS2: 4183 | CT2: 4358 | CU2: 4520 | CV2: 4619 | CW2: 4739
J3: SILENT | K3: ACTIVE | L3: COMPL | M3: DEAD | AC3: SILENT | AD3: ACTIVE | AE3: COMPL | AF3: DEAD | BP3: =(COUNTIF(BR9:BR10008,"=TxA"))/(COUNTA(BR9:BR10008)) -> 0.5817 | BQ3: =(COUNTIF(BR9:BR10008,"=TxB"))/(COUNTA(BR9:BR10008)) -> 0.4183 | CM3: Total Number of Simulations | CN3: =COUNT(CN9:CN10008) -> 10000 | CO3: =COUNT(CO9:CO10008) -> 10000 | CP3: 10000 | CQ3: 10000 | CR3: 10000 | CS3: 10000 | CT3: 10000 | CU3: 10000 | CV3: 10000 | CW3: 10000
I4: SILENT | J4: =1-K4-L4-M4 -> 0.904 | K4: =p_active_A -> 0.088 | L4: =p_compl_sil_A -> 0.008 | M4: =p_dead_sil_A -> 0 | AB4: SILENT | AC4: =1-AD4-AE4-AF4 -> 0.8914386584 | AD4: =p_active_B -> 0.09267431598 | AE4: =p_compl_sil_B -> 0.01412180053 | AF4: =p_dead_sil_B -> 0.001765225066 | BA4: numruns | BB4: 100 | BX4: lambda (display only) | CM4: Probability INMB > 0 | CN4: =CN2/CN3 -> 0.0733 | CO4: =CO2/CO3 -> 0.2083 | CP4: 0.2963 | CQ4: 0.3526 | CR4: 0.3895 | CS4: 0.4183 | CT4: 0.4358 | CU4: 0.452 | CV4: 0.4619 | CW4: 0.4739
I5: ACTIVE | J5: =p_success_A -> 0.1846153846 | K5: =1-J5-L5-M5 -> 0.6911569443 | L5: =p_compl_act_A -> 0.1230769231 | M5: =p_dead_act_A -> 0.001150747986 | AB5: ACTIVE | AC5: =p_success_B -> 0.2119047619 | AD5: =1-AC5-AE5-AF5 -> 0.6892857143 | AE5: =p_compl_act_B -> 0.09761904762 | AF5: =p_dead_act_B -> 0.00119047619 | BP5: incr_cost | BQ5: incr_QALY | BR5: ICER | BX5: =lambda -> 30000 | CM5: Lambda | CN5: 5000 | CO5: 10000 | CP5: 15000 | CQ5: 20000 | CR5: 25000 | CS5: 30000 | CT5: 35000 | CU5: 40000 | CV5: 45000 | CW5: 50000
I6: COMPL | J6: 0 | K6: 0 | L6: =1-M6 -> 0.9965059399 | M6: =p_dead_cmp_A -> 0.003494060098 | AB6: COMPL | AC6: 0 | AD6: 0 | AE6: =1-AF6 -> 0.9965059399 | AF6: =p_dead_cmp_B -> 0.003494060098 | AQ6: Incremental analysis | BP6: =BM2-BK2 -> 5280.232335 | BQ6: =BN2-BL2 -> 0.04606720938 | BR6: =BP6/BQ6 -> 114620.1909
I7: DEAD | J7: 0 | K7: 0 | L7: 0 | M7: 1 | AB7: DEAD | AC7: 0 | AD7: 0 | AE7: 0 | AF7: 1
BB8: txA_cost | BC8: txA_QALY | BD8: txB_cost | BE8: txB_QALY | BK8: txA_cost | BL8: txA_QALY | BM8: txB_cost | BN8: txB_QALY | BP8: txA_NB | BQ8: txB_NB | BR8: Optimal treatment | BX8: lambda or WTP | BY8: txA_% | BZ8: txB_% | CA8: txA_NB | CB8: txB_NB | CC8: CEAF | CG8: Simulation | CH8: Incremental cost TxB | CI8: Incremental QALYs TxB | CJ8: Threshold Incremental Cost | CK8: Threshold Incremental QALY | CL8: $50K per QALY data points | CM8: CEAC Lambda Values | CN8: 5000 | CO8: 10000 | CP8: 15000 | CQ8: 20000 | CR8: 25000 | CS8: 30000 | CT8: 35000 | CU8: 40000 | CV8: 45000 | CW8: 50000
AT9: COSTS | AU9: OUTCOMES | AV9: NET BENEFIT | BA9: 1 | BB9: 12863.41138 | BC9: 1.465421538 | BD9: 20545.91168 | BE9: 0.6903923645 | BJ9: 1 | BK9: 12863.41138 | BL9: 1.465421538 | BM9: 20545.91168 | BN9: 0.6903923645 | BO9: 1 | BP9: =(BL9)*lambda-BK9 -> 31099.23477 | BQ9: =(BN9)*lambda-BM9 -> 165.8592534 | BR9: =IF(BP9>BQ9,"TxA",IF(BQ9>BP9,"TxB","either")) -> TxA | BX9: 0 | BY9: 0.9998 | BZ9: 0.0002 | CA9: -15792.55333 | CB9: -21072.78567 | CC9: =IF(CA9>CB9,BY9,BZ9) -> 0.9998 | CG9: 1 | CH9: =BM9-BK9 -> 7682.500305 | CI9: =BN9-BL9 -> -0.7750291736 | CJ9: -20000 | CK9: -0.4 | CL9: =CJ9/CK9 -> 50000 | CN9: =$CI9*$CN$8-$CH9 -> -11557.64617 | CO9: =CI9*CO$8-CH9 -> -15432.79204 | CP9: =CI9*CP$8-CH9 -> -19307.93791 | CQ9: =CI9*CQ$8-CH9 -> -23183.08378 | CR9: =CI9*CR$8-CH9 -> -27058.22965 | CS9: =CI9*CS$8-CH9 -> -30933.37551 | CT9: =CI9*CT$8-CH9 -> -34808.52138 | CU9: =CI9*CU$8-CH9 -> -38683.66725 | CV9: =CI9*CV$8-CH9 -> -42558.81312 | CW9: =CI9*CW$8-CH9 -> -46433.95899
AR10: Treatment A | AT10: =$R$92 -> 15360.68074 | AU10: =$V$92 -> 0.7171832665 | AV10: =AU10*lambda-AT10 -> 6154.817257 | BA10: =1+BA9 -> 2 | BB10: 17129.95927 | BC10: -0.09377442305 | BD10: 21328.08054 | BE10: -0.06525133813 | BJ10: =1+BJ9 -> 2 | BK10: 17129.95927 | BL10: -0.09377442305 | BM10: 21328.08054 | BN10: -0.06525133813 | BO10: 2 | BP10: -19943.19196 | BQ10: -23285.62068 | BR10: =IF(BP10>BQ10,"TxA",IF(BQ10>BP10,"TxB","either")) -> TxA | BX10: 1000 | BY10: 0.9985 | BZ10: 0.0015 | CA10: -14988.25153 | CB10: -20222.41666 | CC10: =IF(CA10>CB10,BY10,BZ10) -> 0.9985 | CG10: 2 | CH10: =BM10-BK10 -> 4198.121271 | CI10: 0.02852308492 | CJ10: 20000 | CK10: 0.4 | CL10: =CJ10/CK10 -> 50000 | CN10: =$CI10*$CN$8-$CH10 -> -4055.505847 | CO10: =CI10*CO$8-CH10 -> -3912.890422 | CP10: =CI10*CP$8-CH10 -> -3770.274998 | CQ10: =CI10*CQ$8-CH10 -> -3627.659573 | CR10: =CI10*CR$8-CH10 -> -3485.044149 | CS10: =CI10*CS$8-CH10 -> -3342.428724 | CT10: =CI10*CT$8-CH10 -> -3199.813299 | CU10: =CI10*CU$8-CH10 -> -3057.197875 | CV10: =CI10*CV$8-CH10 -> -2914.58245 | CW10: =CI10*CW$8-CH10 -> -2771.967026
AR11: Treatment B | AT11: =$AK$92 -> 21557.22944 | AU11: =$AO$92 -> 0.8439548079 | AV11: =AU11*lambda-AT11 -> 3761.4148 | BA11: =1+BA10 -> 3 | BB11: 17480.42182 | BC11: -0.07972388585 | BD11: 20873.29247 | BE11: 0.1120490339 | BJ11: =1+BJ10 -> 3 | BK11: 17480.42182 | BL11: -0.07972388585 | BM11: 20873.29247 | BN11: 0.1120490339 | BO11: 3 | BP11: -19872.1384 | BQ11: -17511.82146 | BR11: TxB | BX11: 2000 | BY11: 0.992 | BZ11: 0.008 | CA11: -14183.94973 | CB11: -19372.04765 | CC11: 0.992 | CG11: 3 | CH11: 3392.870652 | CI11: 0.1917729198 | CN11: -2434.006053 | CO11: -1475.141454 | CP11: -516.2768546 | CQ11: 442.5877443 | CR11: 1401.452343 | CS11: 2360.316942 | CT11: 3319.181541 | CU11: 4278.04614 | CV11: 5236.910739 | CW11: 6195.775338
BA12: 4 | BB12: 14462.22094 | BC12: 0.7468232711 | BD12: 20580.737 | BE12: 0.4379593024 | BJ12: 4 | BK12: 14462.22094 | BL12: 0.7468232711 | BM12: 20580.737 | BN12: 0.4379593024 | BO12: 4 | BP12: 7942.477193 | BQ12: -7441.957926 | BR12: TxA | BX12: 3000 | BY12: 0.9778 | BZ12: 0.0222 | CA12: -13379.64793 | CB12: -18521.67864 | CC12: 0.9778 | CG12: 4 | CH12: 6118.516061 | CI12: -0.3088639686 | CN12: -7662.835904 | CO12: -9207.155747 | CP12: -10751.47559 | CQ12: -12295.79543 | CR12: -13840.11528 | CS12: -15384.43512 | CT12: -16928.75496 | CU12: -18473.07481 | CV12: -20017.39465 | CW12: -21561.71449
BA13: 5 | BB13: 15544.34219 | BC13: 1.313024309 | BD13: 21631.88063 | BE13: 1.306114338 | BJ13: 5 | BK13: 15544.34219 | BL13: 1.313024309 | BM13: 21631.88063 | BN13: 1.306114338 | BO13: 5 | BP13: 23846.38709 | BQ13: 17551.54951 | BR13: TxA | BX13: 4000 | BY13: 0.9544 | BZ13: 0.0456 | CA13: -12575.34613 | CB13: -17671.30963 | CC13: 0.9544 | CG13: 5 | CH13: =BM13-BK13 -> 6087.538439 | CI13: -0.006909971146 | CN13: -6122.088294 | CO13: -6156.63815 | CP13: -6191.188006 | CQ13: -6225.737861 | CR13: -6260.287717 | CS13: -6294.837573 | CT13: -6329.387429 | CU13: -6363.937284 | CV13: -6398.48714 | CW13: -6433.036996
AR14: Incremental | AT14: =AT11-AT10 -> 6196.548699 | BA14: 6 | BB14: 17268.5531 | BC14: -0.09228942698 | BD14: 21317.67371 | BE14: 0.3281713992 | BJ14: 6 | BK14: 17268.5531 | BL14: -0.09228942698 | BM14: 21317.67371 | BN14: 0.3281713992 | BO14: 6 | BP14: -20037.2359 | BQ14: -11472.53174 | BR14: TxB | BX14: 5000 | BY14: 0.9267 | BZ14: 0.0733 | CA14: -11771.04433 | CB14: -16820.94062 | CC14: 0.9267 | CG14: 6 | CH14: 4049.120617 | CI14: 0.4204608262 | CN14: -1946.816486 | CO14: 155.487645 | CP14: 2257.791776 | CQ14: 4360.095907 | CR14: 6462.400038 | CS14: 8564.704169 | CT14: 10667.0083 | CU14: 12769.31243 | CV14: 14871.61656 | CW14: 16973.92069
AT15: for | AU15: =AU11-AU10 -> 0.1267715414 | AV15: QALYs | BA15: 7 | BB15: 18286.0129 | BC15: 0.4033318642 | BD15: 21673.66047 | BE15: 0.8276256674 | BJ15: 7 | BK15: 18286.0129 | BL15: 0.4033318642 | BM15: 21673.66047 | BN15: 0.8276256674 | BO15: 7 | BP15: -6186.05697 | BQ15: 3155.109555 | BR15: TxB | BX15: 6000 | BY15: 0.8952 | BZ15: 0.1048 | CA15: -10966.74253 | CB15: -15970.57161 | CC15: 0.8952 | CG15: 7 | CH15: 3387.64757 | CI15: 0.4242938032 | CN15: -1266.178555 | CO15: 855.2904613 | CP15: 2976.759477 | CQ15: 5098.228493 | CR15: 7219.697509 | CS15: 9341.166524 | CT15: 11462.63554 | CU15: 13584.10456 | CV15: 15705.57357 | CW15: 17827.04259
BA16: 8 | BB16: 16134.47851 | BC16: 1.358857658 | BD16: 21790.26686 | BE16: 1.475822144 | BJ16: 8 | BK16: 16134.47851 | BL16: 1.358857658 | BM16: 21790.26686 | BN16: 1.475822144 | BO16: 8 | BP16: 24631.25121 | BQ16: 22484.39745 | BR16: TxA | BX16: 7000 | BY16: 0.8665 | BZ16: 0.1335 | CA16: -10162.44073 | CB16: -15120.2026 | CC16: 0.8665 | CG16: 8 | CH16: 5655.788347 | CI16: 0.1169644862 | CN16: -5070.965916 | CO16: -4486.143485 | CP16: -3901.321054 | CQ16: -3316.498623 | CR16: -2731.676192 | CS16: -2146.853761 | CT16: -1562.03133 | CU16: -977.2088992 | CV16: -392.3864683 | CW16: 192.4359626
AR17: ICER | AT17: =AT14/AU15 -> 48879.65099 | AU17: per QALY | BA17: 9 | BB17: 12362.02502 | BC17: 1.870550147 | BD17: 21553.12338 | BE17: 1.14399369 | BJ17: 9 | BK17: 12362.02502 | BL17: 1.870550147 | BM17: 21553.12338 | BN17: 1.14399369 | BO17: 9 | BP17: 43754.4794 | BQ17: 12766.68732 | BR17: TxA | BX17: 8000 | BY17: 0.8398 | BZ17: 0.1602 | CA17: -9358.138927 | CB17: -14269.83359 | CC17: 0.8398 | CG17: 9 | CH17: 9191.098362 | CI17: -0.7265564574 | CN17: -12823.88065 | CO17: -16456.66294 | CP17: -20089.44522 | CQ17: -23722.22751 | CR17: -27355.0098 | CS17: -30987.79208 | CT17: -34620.57437 | CU17: -38253.35666 | CV17: -41886.13894 | CW17: -45518.92123
BA18: 10 | BB18: 17563.58691 | BC18: 0.7012450877 | BD18: 21502.36913 | BE18: 0.9212197542 | BJ18: 10 | BK18: 17563.58691 | BL18: 0.7012450877 | BM18: 21502.36913 | BN18: 0.9212197542 | BO18: 10 | BP18: 3473.765718 | BQ18: 6134.223492 | BR18: TxB | BX18: 9000 | BY18: 0.8153 | BZ18: 0.1847 | CA18: -8553.837126 | CB18: -13419.46458 | CC18: 0.8153 | CG18: 10 | CH18: 3938.782222 | CI18: 0.2199746665 | CN18: -2838.90889 | CO18: -1739.035557 | CP18: -639.1622246 | CQ18: 460.711108 | CR18: 1560.584441 | CS18: 2660.457773 | CT18: 3760.331106 | CU18: 4860.204438 | CV18: 5960.077771 | CW18: 7059.951104
H19: TREATMENT A | AA19: TREATMENT B | BA19: 11 | BB19: 13913.86955 | BC19: 2.165746944 | BD19: 21251.54804 | BE19: 1.9716324 | BJ19: 11 | BK19: 13913.86955 | BL19: 2.165746944 | BM19: 21251.54804 | BN19: 1.9716324 | BO19: 11 | BP19: 51058.53877 | BQ19: 37897.42395 | BR19: TxA | BX19: 10000 | BY19: 0.7917 | BZ19: 0.2083 | CA19: -7749.535325 | CB19: -12569.09557 | CC19: 0.7917 | CG19: 11 | CH19: 7337.678487 | CI19: -0.1941145444 | CN19: -8308.251209 | CO19: -9278.823931 | CP19: -10249.39665 | CQ19: -11219.96938 | CR19: -12190.5421 | CS19: -13161.11482 | CT19: -14131.68754 | CU19: -15102.26026 | CV19: -16072.83299 | CW19: -17043.40571
J20: PROBABILITIES | O20: COSTS | S20: OUTCOMES | AC20: PROBABILITIES | AH20: COSTS | AL20: OUTCOMES | BA20: 12 | BB20: 15982.78478 | BC20: 0.8686943974 | BD20: 20253.92139 | BE20: 0.8022931277 | BJ20: 12 | BK20: 15982.78478 | BL20: 0.8686943974 | BM20: 20253.92139 | BN20: 0.8022931277 | BO20: 12 | BP20: 10078.04715 | BQ20: 3814.872442 | BR20: TxA | BX20: 11000 | BY20: 0.7704 | BZ20: 0.2296 | CA20: -6945.233524 | CB20: -11718.72656 | CC20: 0.7704 | CG20: 12 | CH20: 4271.136614 | CI20: -0.0664012697 | CN20: =$CI20*$CN$8-$CH20 -> -4603.142963 | CO20: -4935.149311 | CP20: -5267.15566 | CQ20: -5599.162008 | CR20: -5931.168357 | CS20: -6263.174705 | CT20: -6595.181054 | CU20: -6927.187402 | CV20: -7259.193751 | CW20: -7591.200099
A21: PROBABILITIES | B21: Treatment A | C21: Treatment B | H21: YEARS | I21: PERIOD | J21: SILENT | K21: ACTIVE | L21: COMPL | M21: DEAD | N21: discount | O21: SILENT | P21: ACTIVE | Q21: COMPL | R21: DEAD | S21: SILENT | T21: ACTIVE | U21: COMPL | V21: DEAD | AA21: YEARS | AB21: PERIOD | AC21: SILENT | AD21: ACTIVE | AE21: COMPL | AF21: DEAD | AG21: discount | AH21: SILENT | AI21: ACTIVE | AJ21: COMPL | AK21: DEAD | AL21: SILENT | AM21: ACTIVE | AN21: COMPL | AO21: DEAD | BA21: 13 | BB21: 16507.71409 | BC21: 1.437404409 | BD21: 21351.57108 | BE21: 1.582696077 | BJ21: 13 | BK21: 16507.71409 | BL21: 1.437404409 | BM21: 21351.57108 | BN21: 1.582696077 | BO21: 13 | BP21: 26614.41817 | BQ21: 26129.31123 | BR21: TxA | BX21: 12000 | BY21: 0.7514 | BZ21: 0.2486 | CA21: -6140.931723 | CB21: -10868.35754 | CC21: 0.7514 | CG21: 13 | CH21: 4843.856988 | CI21: 0.1452916685 | CN21: -4117.398645 | CO21: =CI21*CO$8-CH21 -> -3390.940302 | CP21: -2664.48196 | CQ21: -1938.023617 | CR21: -1211.565275 | CS21: -485.1069319 | CT21: 241.3514107 | CU21: 967.8097534 | CV21: 1694.268096 | CW21: 2420.726439
A22: p_active | B22: =Parameters!D8 -> 0.088 | C22: =Parameters!D9 -> 0.09267431598 | H22: =TEXT((I22-MOD(I22-1,12))/12,"0")&"."&TEXT(MOD(I22-1,12), "00") -> 0.00 | I22: 1 | J22: 0 | K22: 1 | L22: 0 | M22: 0 | N22: 1 | O22: =c_sil_A*J22*N22 -> 0 | P22: =c_act_A*K22*N22 -> 122.4295517 | Q22: =c_compl_A*L22*N22 -> 0 | R22: =c_dead_A*M22*N22 -> 0 | S22: =u_sil*J22*N22 -> 0 | T22: =u_act*K22*N22 -> 0.05441666667 | U22: =u_compl*L22*N22 -> 0 | V22: =u_dead*M22*N22 -> 0 | AA22: =TEXT((AB22-MOD(AB22-1,12))/12,"0")&"."&TEXT(MOD(AB22-1,12), "00") -> 0.00 | AB22: 1 | AC22: 0 | AD22: 1 | AE22: 0 | AF22: 0 | AG22: 1 | AH22: =c_sil_B*AC22*AG22 -> 0 | AI22: =c_act_B*AD22*AG22 -> 484.4295517 | AJ22: =c_compl_B*AE22*AG22 -> 0 | AK22: =c_dead_B*AF22*AG22 -> 0 | AL22: =u_sil*AC22*AG22 -> 0 | AM22: =u_act*AD22*AG22 -> 0.05441666667 | AN22: =u_compl*AE22*AG22 -> 0 | AO22: =u_dead*AF22*AG22 -> 0 | BA22: 14 | BB22: 18600.85815 | BC22: 0.4450784913 | BD22: 21728.10678 | BE22: 1.073364806 | BJ22: 14 | BK22: 18600.85815 | BL22: 0.4450784913 | BM22: 21728.10678 | BN22: 1.073364806 | BO22: 14 | BP22: -5248.503406 | BQ22: 10472.83739 | BR22: TxB | BX22: 13000 | BY22: 0.7343 | BZ22: 0.2657 | CA22: -5336.629922 | CB22: -10017.98853 | CC22: 0.7343 | CG22: 14 | CH22: 3127.248634 | CI22: 0.6282863143 | CN22: 14.18293712 | CO22: =CI22*CO$8-CH22 -> 3155.614508 | CP22: 6297.04608 | CQ22: 9438.477651 | CR22: 12579.90922 | CS22: 15721.34079 | CT22: 18862.77237 | CU22: 22004.20394 | CV22: 25145.63551 | CW22: 28287.06708
A23: p_success | B23: =Parameters!D10 -> 0.1846153846 | C23: =Parameters!D11 -> 0.2119047619 | H23: =TEXT((I23-MOD(I23-1,12))/12,"0")&"."&TEXT(MOD(I23-1,12), "00") -> 0.01 | I23: =1+I22 -> 2 | J23: =MMULT(J22:M22,J$4:M$7) -> 0.1846153846 | K23: 0.6911569443 | L23: 0.1230769231 | M23: 0.001150747986 | N23: =N22 -> 1 | O23: =c_sil_A*J23*N23 -> 11.35746498 | P23: 84.61803485 | Q23: 48.86112446 | R23: 0 | S23: 0.0126 | T23: 0.03761045705 | U23: -0.001405128205 | V23: 0 | AA23: =TEXT((AB23-MOD(AB23-1,12))/12,"0")&"."&TEXT(MOD(AB23-1,12), "00") -> 0.01 | AB23: =1+AB22 -> 2 | AC23: =MMULT(AC22:AF22,AC$4:AF$7) -> 0.2119047619 | AD23: 0.6892857143 | AE23: 0.09761904762 | AF23: 0.00119047619 | AG23: =AG22 -> 1 | AH23: 89.74582042 | AI23: 333.9103696 | AJ23: 38.75443354 | AK23: 0 | AL23: 0.0144625 | AM23: 0.03750863095 | AN23: -0.001114484127 | AO23: 0 | BA23: 15 | BB23: 13165.6248 | BC23: 1.406517471 | BD23: 20946.05314 | BE23: 0.7534983338 | BJ23: 15 | BK23: 13165.6248 | BL23: 1.406517471 | BM23: 20946.05314 | BN23: 0.7534983338 | BO23: 15 | BP23: 29029.89933 | BQ23: 1658.896875 | BR23: TxA | BX23: 14000 | BY23: 0.7184 | BZ23: 0.2816 | CA23: -4532.328121 | CB23: -9167.619524 | CC23: 0.7184 | CG23: 15 | CH23: 7780.428337 | CI23: -0.6530191373 | CN23: -11045.52402 | CO23: -14310.61971 | CP23: -17575.7154 | CQ23: -20840.81108 | CR23: -24105.90677 | CS23: -27371.00246 | CT23: -30636.09814 | CU23: -33901.19383 | CV23: -37166.28952 | CW23: -40431.3852
A24: p_compl_sil | B24: =Parameters!D12 -> 0.008 | C24: =Parameters!D13 -> 0.01412180053 | H24: 0.02 | I24: =1+I23 -> 3 | J24: =MMULT(J23:M23,J$4:M$7) -> 0.2944905128 | K24: 0.4939440755 | L24: 0.2091892781 | M24: 0.002376133614 | N24: =N23 -> 1 | O24: 18.11693913 | P24: 60.47335173 | Q24: 83.04743972 | R24: 0 | S24: 0.0200989775 | T24: 0.02687879011 | U24: -0.002388244258 | V24: 0 | AA24: 0.02 | AB24: =1+AB23 -> 3 | AC24: =MMULT(AC23:AF23,AC$4:AF$7) -> 0.3349630218 | AD24: 0.4947529248 | AE24: 0.1675578525 | AF24: 0.002726200838 | AG24: =AG23 -> 1 | AH24: 141.8634057 | AI24: 239.6729376 | AJ24: 66.51990383 | AK24: 0 | AL24: 0.02286122624 | AM24: 0.02692280499 | AN24: -0.00191295215 | AO24: 0 | BA24: 16 | BB24: 13114.1367 | BC24: 0.7641632617 | BD24: 21427.31697 | BE24: 0.2882949492 | BJ24: 16 | BK24: 13114.1367 | BL24: 0.7641632617 | BM24: 21427.31697 | BN24: 0.2882949492 | BO24: 16 | BP24: 9810.761151 | BQ24: -12778.46849 | BR24: TxA | BX24: 15000 | BY24: 0.7037 | BZ24: 0.2963 | CA24: -3728.02632 | CB24: -8317.250514 | CC24: 0.7037 | CG24: 16 | CH24: 8313.180266 | CI24: -0.4758683125 | CN24: -10692.52183 | CO24: -13071.86339 | CP24: -15451.20495 | CQ24: -17830.54652 | CR24: -20209.88808 | CS24: -22589.22964 | CT24: -24968.5712 | CU24: -27347.91277 | CV24: -29727.25433 | CW24: -32106.59589
A25: p_compl_act | B25: =Parameters!D14 -> 0.1230769231 | C25: =Parameters!D15 -> 0.09761904762 | H25: 0.03 | I25: 4 | J25: =MMULT(J24:M24,J$4:M$7) -> 0.3574090991 | K25: 0.367308043 | L25: 0.2716073992 | M25: 0.003675458673 | N25: 1 | O25: 21.98766551 | P25: 44.96935905 | Q25: 107.8272239 | R25: 0 | S25: 0.02439317101 | T25: 0.01998767934 | U25: -0.003100851141 | V25: 0 | AA25: 0.03 | AB25: 4 | AC25: =MMULT(AC24:AF24,AC$4:AF$7) -> 0.4034394875 | AD25: 0.3720685921 | AE25: 0.2199999856 | AF25: 0.004491934744 | AG25: 1 | AH25: 170.8645312 | AI25: 180.2410213 | AJ25: 87.33925427 | AK25: 0 | AL25: 0.02753474502 | AM25: 0.02024673255 | AN25: -0.002511666503 | AO25: 0 | BA25: 17 | BB25: 17381.0597 | BC25: 1.245068914 | BD25: 21818.51468 | BE25: 1.441059545 | BJ25: 17 | BK25: 17381.0597 | BL25: 1.245068914 | BM25: 21818.51468 | BN25: 1.441059545 | BO25: 17 | BP25: 19971.00772 | BQ25: 21413.27167 | BR25: TxB | BX25: 16000 | BY25: 0.691 | BZ25: 0.309 | CA25: -2923.724519 | CB25: -7466.881503 | CC25: 0.691 | CG25: 17 | CH25: 4437.454981 | CI25: 0.1959906311 | CN25: -3457.501825 | CO25: -2477.54867 | CP25: -1497.595515 | CQ25: -517.6423595 | CR25: 462.3107958 | CS25: 1442.263951 | CT25: 2422.217106 | CU25: 3402.170262 | CV25: 4382.123417 | CW25: 5362.076572
A26: p_dead_sil | B26: =Parameters!D16 -> 0 | C26: =Parameters!D17 -> 0.001765225066 | H26: 0.04 | I26: 5 | J26: =MMULT(J25:M25,J$4:M$7) -> 0.3909085412 | K26: 0.2853195054 | L26: 0.3187248032 | M26: 0.00504715024 | N26: 1 | O26: 24.04853786 | P26: 34.93153913 | Q26: 126.5326748 | R26: 0 | S26: 0.02667950794 | T26: 0.01552613642 | U26: -0.003638774837 | V26: 0 | AA26: 0.04 | AB26: 5 | AC26: =MMULT(AC25:AF25,AC$4:AF$7) -> 0.4384846619 | AD26: 0.2938500438 | AE26: 0.261249566 | AF26: 0.006415728212 | AG26: 1 | AH26: 185.7068495 | AI26: 142.349645 | AJ26: 103.7151989 | AK26: 0 | AL26: 0.02992657818 | AM26: 0.01599033988 | AN26: -0.002982599212 | AO26: 0 | BA26: 18 | BB26: 15070.67878 | BC26: 1.255056175 | BD26: 20993.25752 | BE26: 1.831870677 | BJ26: 18 | BK26: 15070.67878 | BL26: 1.255056175 | BM26: 20993.25752 | BN26: 1.831870677 | BO26: 18 | BP26: 22581.00647 | BQ26: 33962.8628 | BR26: TxB | BX26: 17000 | BY26: 0.6777 | BZ26: 0.3223 | CA26: -2119.422718 | CB26: -6616.512493 | CC26: 0.6777 | CG26: 18 | CH26: 5922.57874 | CI26: 0.5768145025 | CN26: -3038.506227 | CO26: -154.4337148 | CP26: 2729.638798 | CQ26: 5613.71131 | CR26: 8497.783823 | CS26: 11381.85634 | CT26: 14265.92885 | CU26: 17150.00136 | CV26: 20034.07387 | CW26: 22918.14639
A27: p_dead_act | B27: =Parameters!D18 -> 0.001150747986 | C27: =Parameters!D19 -> 0.00119047619 | H27: 0.05 | I27: 6 | J27: =MMULT(J26:M26,J$4:M$7) -> 0.4060556914 | K27: 0.2316005091 | L27: 0.3558546747 | M27: 0.006489124704 | N27: 1 | O27: 24.98038451 | P27: 28.3547465 | Q27: 141.2731089 | R27: 0 | S27: 0.02771330094 | T27: 0.0126029277 | U27: -0.004062674203 | V27: 0 | AA27: 0.05 | AB27: 6 | AC27: =MMULT(AC26:AF26,AC$4:AF$7) -> 0.4531504024 | AD27: 0.2431829034 | AE27: 0.2952142987 | AF27: 0.008452395493 | AG27: 1 | AH27: 191.918078 | AI27: 117.8049849 | AJ27: 117.1990836 | AK27: 0 | AL27: 0.03092751496 | AM27: 0.013233203 | AN27: -0.003370363244 | AO27: 0 | BA27: 19 | BB27: 14050.80792 | BC27: 1.710498818 | BD27: 21729.70282 | BE27: 1.336830758 | BJ27: 19 | BK27: 14050.80792 | BL27: 1.710498818 | BM27: 21729.70282 | BN27: 1.336830758 | BO27: 19 | BP27: 37264.15661 | BQ27: 18375.21993 | BR27: TxA | BX27: 18000 | BY27: 0.6662 | BZ27: 0.3338 | CA27: -1315.120917 | CB27: -5766.143482 | CC27: 0.6662 | CG27: 19 | CH27: 7678.8949 | CI27: -0.3736680594 | CN27: -9547.235197 | CO27: -11415.57549 | CP27: -13283.91579 | CQ27: -15152.25609 | CR27: -17020.59638 | CS27: -18888.93668 | CT27: -20757.27698 | CU27: -22625.61728 | CV27: -24493.95757 | CW27: -26362.29787
A28: p_dead_cmp | B28: =Parameters!D20 -> 0.003494060098 | C28: =Parameters!D20 -> 0.003494060098 | H28: 0.06 | I28: 7 | J28: =MMULT(J27:M27,J$4:M$7) -> 0.4098313621 | K28: 0.195805201 | L28: 0.3863644207 | M28: 0.007999016143 | N28: 1 | O28: 25.21266227 | P28: 23.97234298 | Q28: 153.3853754 | R28: 0 | S28: 0.02797099047 | T28: 0.01065506636 | U28: -0.004410993803 | V28: 0 | AA28: 0.06 | AB28: 7 | AC28: =MMULT(AC27:AF27,AC$4:AF$7) -> 0.455487402 | AD28: 0.2096179049 | AE28: 0.3243213852 | AF28: 0.0105733079 | AG28: 1 | AH28: 192.9078432 | AI28: 101.5451077 | AJ28: 128.754499 | AK28: 0 | AL28: 0.03108701519 | AM28: 0.01140670766 | AN28: -0.003702669148 | AO28: 0 | BA28: 20 | BB28: 16788.82646 | BC28: 0.6865608056 | BD28: 21083.33118 | BE28: 0.6420575077 | BJ28: 20 | BK28: 16788.82646 | BL28: 0.6865608056 | BM28: 21083.33118 | BN28: 0.6420575077 | BO28: 20 | BP28: 3807.997713 | BQ28: -1821.605948 | BR28: TxA | BX28: 19000 | BY28: 0.6567 | BZ28: 0.3433 | CA28: -510.8191156 | CB28: -4915.774472 | CC28: 0.6567 | CG28: 20 | CH28: 4294.504723 | CI28: -0.04450329793 | CN28: -4517.021213 | CO28: -4739.537702 | CP28: -4962.054192 | CQ28: -5184.570682 | CR28: -5407.087171 | CS28: -5629.603661 | CT28: -5852.120151 | CU28: -6074.63664 | CV28: -6297.15313 | CW28: -6519.66962
H29: 0.07 | I29: 8 | J29: =MMULT(J28:M28,J$4:M$7) -> 0.4066362039 | K29: 0.1713972843 | L29: 0.4123921928 | M29: 0.009574319089 | N29: 1 | O29: 25.01609741 | P29: 20.98409268 | Q29: 163.7183133 | R29: 0 | S29: 0.02775292091 | T29: 0.009326868887 | U29: -0.004708144201 | V29: 0 | AA29: 0.07 | AB29: 8 | AC29: =MMULT(AC28:AF28,AC$4:AF$7) -> 0.4504581108 | AD29: 0.1866986107 | AE29: 0.3500831893 | AF29: 0.01276008922 | AG29: 1 | AH29: 190.7778398 | AI29: 90.44232429 | AJ29: 138.9818486 | AK29: 0 | AL29: 0.03074376606 | AM29: 0.01015951607 | AN29: -0.003996783078 | AO29: 0 | BA29: 21 | BB29: 16688.32328 | BC29: 1.020089504 | BD29: 21096.41478 | BE29: 1.092976148 | BJ29: 21 | BK29: 16688.32328 | BL29: 1.020089504 | BM29: 21096.41478 | BN29: 1.092976148 | BO29: 21 | BP29: 13914.36183 | BQ29: 11692.86966 | BR29: TxA | BX29: 20000 | BY29: 0.6474 | BZ29: 0.3526 | CA29: 293.4826854 | CB29: -4065.405462 | CC29: 0.6474 | CG29: 21 | CH29: 4408.091503 | CI29: 0.07288664459 | CN29: -4043.65828 | CO29: -3679.225057 | CP29: -3314.791834 | CQ29: -2950.358611 | CR29: -2585.925388 | CS29: -2221.492165 | CT29: -1857.058942 | CU29: -1492.625719 | CV29: -1128.192496 | CW29: -763.7592735
A30: COSTS | B30: Treatment A | C30: Treatment B | H30: 0.08 | I30: 9 | J30: =MMULT(J29:M29,J$4:M$7) -> 0.3992417039 | K30: 0.1542464092 | L30: 0.4352994097 | M30: 0.01121247727 | N30: 1 | O30: 24.56119071 | P30: 18.88431873 | Q30: 172.8124014 | R30: 0 | S30: 0.02724824629 | T30: 0.008393575435 | U30: -0.00496966826 | V30: 0 | AA30: 0.08 | AB30: 9 | AC30: =MMULT(AC29:AF29,AC$4:AF$7) -> 0.4411180986 | AD30: 0.1704345825 | AE30: 0.3734465977 | AF30: 0.01500072112 | AG30: 1 | AH30: 186.8221615 | AI30: 82.56354841 | AJ30: 148.2570431 | AK30: 0 | AL30: 0.03010631023 | AM30: 0.009274481866 | AN30: -0.004263515324 | AO30: 0 | BA30: 22 | BB30: 14390.68821 | BC30: 1.301240261 | BD30: 20710.82 | BE30: 1.013699761 | BJ30: 22 | BK30: 14390.68821 | BL30: 1.301240261 | BM30: 20710.82 | BN30: 1.013699761 | BO30: 22 | BP30: 24646.51962 | BQ30: 9700.172848 | BR30: TxA | BX30: 21000 | BY30: 0.6393 | BZ30: 0.3607 | CA30: 1097.784486 | CB30: -3215.036451 | CC30: 0.6393 | CG30: 22 | CH30: 6320.131783 | CI30: -0.2875404996 | CN30: -7757.834281 | CO30: -9195.536779 | CP30: -10633.23928 | CQ30: -12070.94177 | CR30: -13508.64427 | CS30: -14946.34677 | CT30: -16384.04927 | CU30: -17821.75177 | CV30: -19259.45427 | CW30: -20697.15676
A31: SILENT | B31: =Parameters!D24+Parameters!D27 -> 61.51960197 | C31: =Parameters!D24+Parameters!D28 -> 423.519602 | H31: 0.09 | I31: 10 | J31: =MMULT(J30:M30,J$4:M$7) -> 0.3893907604 | K31: 0.1417417468 | L31: 0.4559565544 | M31: 0.01291093832 | N31: 1 | O31: 23.95516459 | P31: 17.35337852 | Q31: 181.0132184 | R31: 0 | S31: 0.0265759194 | T31: 0.007713113389 | U31: -0.005205503996 | V31: 0 | AA31: 0.09 | AB31: 10 | AC31: =MMULT(AC30:AF30,AC$4:AF$7) -> 0.4293456257 | AD31: 0.158358441 | AE31: 0.3950087963 | AF31: 0.01728713701 | AG31: 1 | AH31: 181.8362885 | AI31: 76.71350859 | AJ31: 156.8171634 | AK31: 0 | AL31: 0.02930283895 | AM31: 0.008617338498 | AN31: -0.004509683758 | AO31: 0 | BA31: 23 | BB31: 17057.05765 | BC31: 0.7032635168 | BD31: 21830.37294 | BE31: 0.8077663577 | BJ31: 23 | BK31: 17057.05765 | BL31: 0.7032635168 | BM31: 21830.37294 | BN31: 0.8077663577 | BO31: 23 | BP31: 4040.847854 | BQ31: 2402.617787 | BR31: TxA | BX31: 22000 | BY31: 0.6298 | BZ31: 0.3702 | CA31: 1902.086287 | CB31: -2364.667441 | CC31: 0.6298 | CG31: 23 | CH31: 4773.315294 | CI31: 0.1045028409 | CN31: -4250.801089 | CO31: -3728.286885 | CP31: -3205.77268 | CQ31: -2683.258475 | CR31: -2160.744271 | CS31: -1638.230066 | CT31: -1115.715862 | CU31: -593.2016574 | CV31: -70.68745287 | CW31: 451.8267517
A32: ACTIVE | B32: =Parameters!D25+Parameters!D27 -> 122.4295517 | C32: =Parameters!D25+Parameters!D28 -> 484.4295517 | H32: 0.10 | I32: 11 | J32: =MMULT(J31:M31,J$4:M$7) -> 0.3781769545 | K32: 0.1322321795 | L32: 0.474923679 | M32: 0.01466718695 | N32: 1 | O32: 23.26529572 | P32: 16.18912646 | Q32: 188.543103 | R32: 0 | S32: 0.02581057715 | T32: 0.007195634436 | U32: -0.005422045335 | V32: 0 | AA32: 0.10 | AB32: 11 | AC32: =MMULT(AC31:AF31,AC$4:AF$7) -> 0.4162921963 | AD32: 0.1489435233 | AE32: 0.4151505453 | AF32: 0.0196137351 | AG32: 1 | AH32: 176.3079053 | AI32: 72.15264422 | AJ32: 164.81337 | AK32: 0 | AL32: 0.0284119424 | AM32: 0.00810501006 | AN32: -0.004739635392 | AO32: 0 | BA32: 24 | BB32: 16365.91819 | BC32: 0.3032799242 | BD32: 21129.58114 | BE32: 0.3088312509 | BJ32: 24 | BK32: 16365.91819 | BL32: 0.3032799242 | BM32: 21129.58114 | BN32: 0.3088312509 | BO32: 24 | BP32: -7267.520469 | BQ32: -11864.64361 | BR32: TxA | BX32: 23000 | BY32: 0.6228 | BZ32: 0.3772 | CA32: 2706.388088 | CB32: -1514.29843 | CC32: 0.6228 | CG32: 24 | CH32: 4763.662947 | CI32: 0.005551326759 | CN32: -4735.906313 | CO32: -4708.14968 | CP32: -4680.393046 | CQ32: -4652.636412 | CR32: -4624.879778 | CS32: -4597.123144 | CT32: -4569.366511 | CU32: -4541.609877 | CV32: -4513.853243 | CW32: -4486.096609
A33: COMPL | B33: =Parameters!D26 -> 396.9966362 | C33: =Parameters!E26 -> 396.9966362 | H33: 0.11 | I33: 12 | J33: =MMULT(J32:M32,J$4:M$7) -> 0.3662840616 | K33: 0.1246727611 | L33: 0.4925644125 | M33: 0.01647876474 | N33: 1 | O33: 22.53364968 | P33: 15.26363026 | Q33: 195.5464149 | R33: 0 | S33: 0.0249988872 | T33: 0.006784276085 | U33: -0.00562344371 | V33: 0 | AA33: 0.11 | AB33: 12 | AC33: =MMULT(AC32:AF32,AC$4:AF$7) -> 0.4026607988 | AD33: 0.1412442374 | AE33: 0.4341185046 | AF33: 0.02197645919 | AG33: 1 | AH33: 170.5347412 | AI33: 68.4228826 | AJ33: 172.3435861 | AK33: 0 | AL33: 0.02748159952 | AM33: 0.007686040584 | AN33: -0.004956186261 | AO33: 0 | BA33: 25 | BB33: 12499.56273 | BC33: 2.060068686 | BD33: 20474.34621 | BE33: 1.671380477 | BJ33: 25 | BK33: 12499.56273 | BL33: 2.060068686 | BM33: 20474.34621 | BN33: 1.671380477 | BO33: 25 | BP33: 49302.49786 | BQ33: 29667.06809 | BR33: TxA | BX33: 24000 | BY33: 0.6158 | BZ33: 0.3842 | CA33: 3510.68989 | CB33: -663.92942 | CC33: 0.6158 | CG33: 25 | CH33: 7974.783478 | CI33: -0.3886882096 | CN33: -9918.224526 | CO33: -11861.66557 | CP33: -13805.10662 | CQ33: -15748.54767 | CR33: -17691.98872 | CS33: -19635.42977 | CT33: -21578.87081 | CU33: -23522.31186 | CV33: -25465.75291 | CW33: -27409.19396
A34: DEAD | B34: 0 | C34: 0 | H34: 1.00 | I34: 13 | J34: =MMULT(J33:M33,J$4:M$7) -> 0.3541373014 | K34: 0.1184014421 | L34: 0.5091179752 | M34: 0.01834328133 | N34: =N22/(1+disc) -> 0.9661835749 | O34: 21.04964814 | P34: 14.00563814 | Q34: 195.2832112 | R34: 0 | S34: 0.0233525322 | T34: 0.006225132179 | U34: -0.005615874606 | V34: 0 | AA34: 1.00 | AB34: 13 | AC34: =MMULT(AC33:AF33,AC$4:AF$7) -> 0.3888777288 | AD34: 0.1346739492 | AE34: 0.4520760919 | AF34: 0.02437223017 | AG34: =AG22/(1+disc) -> 0.9661835749 | AH34: 159.1278656 | AI34: 63.03385586 | AJ34: 173.4035631 | AK34: 0 | AL34: 0.02564338646 | AM34: 0.007080683478 | AN34: -0.004986668646 | AO34: 0 | BA34: 26 | BB34: 16327.69997 | BC34: 0.5798778466 | BD34: 21807.0663 | BE34: 0.7951965232 | BJ34: 26 | BK34: 16327.69997 | BL34: 0.5798778466 | BM34: 21807.0663 | BN34: 0.7951965232 | BO34: 26 | BP34: 1068.635432 | BQ34: 2048.829398 | BR34: TxB | BX34: 25000 | BY34: 0.6105 | BZ34: 0.3895 | CA34: 4314.991691 | CB34: 186.4395904 | CC34: 0.6105 | CG34: 26 | CH34: 5479.366333 | CI34: 0.2153186766 | CN34: -4402.77295 | CO34: -3326.179567 | CP34: -2249.586184 | CQ34: -1172.992801 | CR34: -96.3994177 | CS34: 980.1939654 | CT34: 2056.787348 | CU34: 3133.380732 | CV34: 4209.974115 | CW34: 5286.567498
H35: 1.01 | I35: 14 | J35: =MMULT(J34:M34,J$4:M$7) -> 0.3419988483 | K35: 0.1129980614 | L35: 0.52474467 | M35: 0.02025842035 | N35: 0.9661835749 | O35: 20.32814784 | P35: 13.36647536 | Q35: 201.277168 | R35: 0 | S35: 0.02255209796 | T35: 0.005941041393 | U35: -0.00578824636 | V35: 0 | AA35: 1.01 | AB35: 14 | AC35: =MMULT(AC34:AF34,AC$4:AF$7) -> 0.375198692 | AD35: 0.1288678068 | AE35: 0.4691349072 | AF35: 0.02679859405 | AG35: 0.9661835749 | AH35: 153.5304354 | AI35: 60.31630324 | AJ35: 179.9468407 | AK35: 0 | AL35: 0.02474136302 | AM35: 0.006775416893 | AN35: -0.005174837544 | AO35: 0 | BA35: 27 | BB35: 13329.07878 | BC35: 1.302404214 | BD35: 21431.90367 | BE35: 0.8700032934 | BJ35: 27 | BK35: 13329.07878 | BL35: 1.302404214 | BM35: 21431.90367 | BN35: 0.8700032934 | BO35: 27 | BP35: 25743.04764 | BQ35: 4668.195134 | BR35: TxA | BX35: 26000 | BY35: 0.6025 | BZ35: 0.3975 | CA35: 5119.293492 | CB35: 1036.808601 | CC35: 0.6025 | CG35: 27 | CH35: 8102.82489 | CI35: -0.4324009204 | CN35: -10264.82949 | CO35: -12426.83409 | CP35: -14588.8387 | CQ35: -16750.8433 | CR35: -18912.8479 | CS35: -21074.8525 | CT35: -23236.85711 | CU35: -25398.86171 | CV35: -27560.86631 | CW35: -29722.87091
A36: UTILITIES | B36: Value per month (converted) | C36: Value per year (reference) | H36: 1.02 | I36: 15 | J36: =MMULT(J35:M35,J$4:M$7) -> 0.3300281394 | K36: 0.1081952935 | L36: 0.5395546251 | M36: 0.02222194206 | N36: 0.9661835749 | O36: 19.61661814 | P36: 12.79835872 | Q36: 206.9578466 | R36: 0 | S36: 0.02176272513 | T36: 0.005688528716 | U36: -0.005951608988 | V36: 0 | AA36: 1.02 | AB36: 15 | AC36: =MMULT(AC35:AF35,AC$4:AF$7) -> 0.3617743205 | AD36: 0.1235980204 | AE36: 0.4853741553 | AF36: 0.0292535038 | AG36: 0.9661835749 | AH36: 148.0372137 | AI36: 57.84979091 | AJ36: 186.1757555 | AK36: 0 | AL36: 0.02385613273 | AM36: 0.006498350024 | AN36: -0.005353966126 | AO36: 0 | BA36: 28 | BB36: 18430.29838 | BC36: 0.4603230188 | BD36: 21552.06583 | BE36: 0.9754053916 | BJ36: 28 | BK36: 18430.29838 | BL36: 0.4603230188 | BM36: 21552.06583 | BN36: 0.9754053916 | BO36: 28 | BP36: -4620.607811 | BQ36: 7710.095914 | BR36: TxB | BX36: 27000 | BY36: 0.5964 | BZ36: 0.4036 | CA36: 5923.595293 | CB36: 1887.177611 | CC36: 0.5964 | CG36: 28 | CH36: 3121.767457 | CI36: 0.5150823728 | CN36: -546.3555937 | CO36: 2029.05627 | CP36: 4604.468134 | CQ36: 7179.879998 | CR36: 9755.291861 | CS36: 12330.70373 | CT36: 14906.11559 | CU36: 17481.52745 | CV36: 20056.93932 | CW36: 22632.35118
A37: SILENT | B37: =C37/12 -> 0.06825 | C37: =Parameters!D32 -> 0.819 | H37: 1.03 | I37: 16 | J37: =MMULT(J36:M36,J$4:M$7) -> 0.3183199537 | K37: 0.1038224047 | L37: 0.5536259577 | M37: 0.02423168386 | N37: 0.9661835749 | O37: 18.92069261 | P37: 12.28109224 | Q37: 212.3552106 | R37: 0 | S37: 0.02099066362 | T37: 0.005458617574 | U37: -0.006106824171 | V37: 0 | AA37: 1.03 | AB37: 16 | AC37: =MMULT(AC36:AF36,AC$4:AF$7) -> 0.348690624 | AD37: 0.1187215374 | AE37: 0.5008526547 | AF37: 0.03173518387 | AG37: 0.9661835749 | AH37: 142.6833955 | AI37: 55.56736344 | AJ37: 192.1128687 | AK37: 0 | AL37: 0.02299336724 | AM37: 0.00624196167 | AN37: -0.005524703196 | AO37: 0 | BA37: 29 | BB37: 16098.15696 | BC37: 1.443980629 | BD37: 21040.13574 | BE37: 1.518473114 | BJ37: 29 | BK37: 16098.15696 | BL37: 1.443980629 | BM37: 21040.13574 | BN37: 1.518473114 | BO37: 29 | BP37: 27221.26192 | BQ37: 24514.05767 | BR37: TxA | BX37: 28000 | BY37: 0.591 | BZ37: 0.409 | CA37: 6727.897094 | CB37: 2737.546622 | CC37: 0.591 | CG37: 29 | CH37: 4941.978778 | CI37: 0.07449248445 | CN37: -4569.516356 | CO37: -4197.053934 | CP37: -3824.591511 | CQ37: -3452.129089 | CR37: -3079.666667 | CS37: -2707.204245 | CT37: -2334.741822 | CU37: -1962.2794 | CV37: -1589.816978 | CW37: -1217.354556
A38: ACTIVE | B38: =C38/12 -> 0.05441666667 | C38: =Parameters!D33 -> 0.653 | H38: 1.04 | I38: 17 | J38: =MMULT(J37:M37,J$4:M$7) -> 0.3069284514 | K38: 0.09976973192 | L38: 0.5670162571 | M38: 0.02628555965 | N38: 0.9661835749 | O38: 18.24359049 | P38: 11.80170392 | Q38: 217.4913495 | R38: 0 | S38: 0.02023948484 | T38: 0.005245542266 | U38: -0.006254527151 | V38: 0 | AA38: 1.04 | AB38: 17 | AC38: =MMULT(AC37:AF37,AC$4:AF$7) -> 0.3359939612 | AD38: 0.1141477248 | AE38: 0.5156162683 | AF38: 0.03424204574 | AG38: 0.9661835749 | AH38: 137.4879504 | AI38: 53.42660015 | AJ38: 197.7757721 | AK38: 0 | AL38: 0.02215612353 | AM38: 0.006001486658 | AN38: -0.00568755465 | AO38: 0 | BA38: 30 | BB38: 17588.8901 | BC38: 0.3937714109 | BD38: 21138.09921 | BE38: 0.5887108216 | BJ38: 30 | BK38: 17588.8901 | BL38: 0.3937714109 | BM38: 21138.09921 | BN38: 0.5887108216 | BO38: 30 | BP38: -5775.747775 | BQ38: -3476.774563 | BR38: TxB | BX38: 29000 | BY38: 0.5862 | BZ38: 0.4138 | CA38: 7532.198895 | CB38: 3587.915632 | CC38: 0.5862 | CG38: 30 | CH38: 3549.209111 | CI38: 0.1949394108 | CN38: -2574.512057 | CO38: -1599.815004 | CP38: -625.1179498 | CQ38: 349.579104 | CR38: 1324.276158 | CS38: 2298.973212 | CT38: 3273.670265 | CU38: 4248.367319 | CV38: 5223.064373 | CW38: 6197.761427
A39: COMPL | B39: -0.01141666667 | C39: =Parameters!D34 -> -0.137 | H39: 1.05 | I39: 18 | J39: =MMULT(J38:M38,J$4:M$7) -> 0.2958823475 | K39: 0.09596624677 | L39: 0.5797698474 | M39: 0.02838155835 | N39: 0.9661835749 | O39: 17.58701859 | P39: 11.35179186 | Q39: 222.3832649 | R39: 0 | S39: 0.01951108233 | T39: 0.005045568369 | U39: -0.006395206852 | V39: 0 | AA39: 1.05 | AB39: 18 | AC39: =MMULT(AC38:AF38,AC$4:AF$7) -> 0.3237064525 | AD39: 0.1098184066 | AE39: 0.5297025059 | AF39: 0.03677263508 | AG39: 0.9661835749 | AH39: 132.4599303 | AI39: 51.40027194 | AJ39: 203.1788532 | AK39: 0 | AL39: 0.02134586027 | AM39: 0.005773866303 | AN39: -0.005842934244 | AO39: 0 | BA39: 31 | BB39: 15053.0048 | BC39: 0.3974357306 | BD39: 21194.00928 | BE39: 0.1056630129 | BJ39: 31 | BK39: 15053.0048 | BL39: 0.3974357306 | BM39: 21194.00928 | BN39: 0.1056630129 | BO39: 31 | BP39: -3129.932879 | BQ39: -18024.11889 | BR39: TxA | BX39: 30000 | BY39: 0.5817 | BZ39: 0.4183 | CA39: 8336.500696 | CB39: 4438.284642 | CC39: 0.5817 | CG39: 31 | CH39: 6141.004484 | CI39: -0.2917727176 | CN39: -7599.868073 | CO39: -9058.731661 | CP39: -10517.59525 | CQ39: -11976.45884 | CR39: -13435.32243 | CS39: -14894.18601 | CT39: -16353.0496 | CU39: -17811.91319 | CV39: -19270.77678 | CW39: -20729.64037
A40: DEAD | B40: 0 | C40: 0 | H40: 1.06 | I40: 19 | J40: =MMULT(J39:M39,J$4:M$7) -> 0.2851944877 | K40: 0.09236538445 | L40: 0.5919223859 | M40: 0.030517742 | N40: 0.9661835749 | O40: 16.95174045 | P40: 10.92584793 | Q40: 227.0446339 | R40: 0 | S40: 0.01880630317 | T40: 0.004856247669 | U40: -0.006529256592 | V40: 0 | AA40: 1.06 | AB40: 19 | AC40: =MMULT(AC39:AF39,AC$4:AF$7) -> 0.311835489 | AD40: 0.1056955329 | AE40: 0.5431433797 | AF40: 0.03932559841 | AG40: 0.9661835749 | AH40: 127.6023596 | AI40: 49.47056966 | AJ40: 208.3343911 | AK40: 0 | AL40: 0.02056306485 | AM40: 0.005557100077 | AN40: -0.00599119509 | AO40: 0 | BA40: 32 | BB40: 17201.49166 | BC40: 0.6724937119 | BD40: 21230.82758 | BE40: 1.028476162 | BJ40: 32 | BK40: 17201.49166 | BL40: 0.6724937119 | BM40: 21230.82758 | BN40: 1.028476162 | BO40: 32 | BP40: 2973.319701 | BQ40: 9623.457277 | BR40: TxB | BX40: 31000 | BY40: 0.5772 | BZ40: 0.4228 | CA40: 9140.802497 | CB40: 5288.653653 | CC40: 0.5772 | CG40: 32 | CH40: 4029.335921 | CI40: 0.3559824499 | CN40: -2249.423672 | CO40: -469.5114222 | CP40: 1310.400827 | CQ40: 3090.313077 | CR40: 4870.225326 | CS40: 6650.137576 | CT40: 8430.049826 | CU40: 10209.96208 | CV40: 11989.87432 | CW40: 13769.78657
H41: 1.07 | I41: 20 | J41: =MMULT(J40:M40,J$4:M$7) -> 0.2748678878 | K41: 0.08893609179 | L41: 0.6035037767 | M41: 0.03269224367 | N41: 0.9661835749 | O41: 16.33793532 | P41: 10.52019889 | Q41: 231.4869269 | R41: 0 | S41: 0.01812534623 | T41: 0.004675947499 | U41: -0.006657006233 | V41: 0 | AA41: 1.07 | AB41: 20 | AC41: =MMULT(AC40:AF40,AC$4:AF$7) -> 0.3003795967 | AD41: 0.1017535615 | AE41: 0.5559671799 | AF41: 0.04189966186 | AG41: 0.9661835749 | AH41: 122.914635 | AI41: 47.62553834 | AJ41: 213.253237 | AK41: 0 | AL41: 0.01980764007 | AM41: 0.005349845061 | AN41: -0.006132649247 | AO41: 0 | BA41: 33 | BB41: 17341.26755 | BC41: -0.8749177197 | BD41: 21460.01611 | BE41: -0.2600227128 | BJ41: 33 | BK41: 17341.26755 | BL41: -0.8749177197 | BM41: 21460.01611 | BN41: -0.2600227128 | BO41: 33 | BP41: -43588.79914 | BQ41: -29260.6975 | BR41: TxB | BX41: 32000 | BY41: 0.5735 | BZ41: 0.4265 | CA41: 9945.104298 | CB41: 6139.022663 | CC41: 0.5735 | CG41: 33 | CH41: 4118.74856 | CI41: 0.6148950068 | CN41: -1044.273526 | CO41: 2030.201508 | CP41: 5104.676542 | CQ41: 8179.151576 | CR41: 11253.62661 | CS41: 14328.10164 | CT41: 17402.57668 | CU41: 20477.05171 | CV41: 23551.52675 | CW41: 26626.00178
A42: Other parameters | B42: Values | H42: 1.08 | I42: 21 | J42: =MMULT(J41:M41,J$4:M$7) -> 0.2648995414 | K42: 0.08565717157 | L42: 0.6145400219 | M42: 0.03490326516 | N42: 0.9661835749 | O42: 15.74542449 | P42: 10.13233731 | Q42: 235.7201174 | R42: 0 | S42: 0.01746801324 | T42: 0.004503553384 | U42: -0.006778742593 | V42: 0 | AA42: 1.08 | AB42: 21 | AC42: =MMULT(AC41:AF41,AC$4:AF$7) -> 0.2893320489 | AD42: 0.09797474998 | AE42: 0.5681995837 | AF42: 0.04449361738 | AG42: 0.9661835749 | AH42: 118.3940041 | AI42: 45.85687363 | AJ42: 217.94524 | AK42: 0 | AL42: 0.01907914236 | AM42: 0.005151168417 | AN42: -0.006267579949 | AO42: 0 | BA42: 34 | BB42: 14188.92686 | BC42: 0.3798448592 | BD42: 21840.293 | BE42: -0.5678198939 | BJ42: 34 | BK42: 14188.92686 | BL42: 0.3798448592 | BM42: 21840.293 | BN42: -0.5678198939 | BO42: 34 | BP42: -2793.581079 | BQ42: -38874.88981 | BR42: TxA | BX42: 33000 | BY42: 0.5713 | BZ42: 0.4287 | CA42: 10749.4061 | CB42: 6989.391673 | CC42: 0.5713 | CG42: 34 | CH42: 7651.366142 | CI42: -0.9476647531 | CN42: -12389.68991 | CO42: -17128.01367 | CP42: -21866.33744 | CQ42: -26604.6612 | CR42: -31342.98497 | CS42: -36081.30874 | CT42: -40819.6325 | CU42: -45557.95627 | CV42: -50296.28003 | CW42: -55034.6038
A43: discount rate | B43: 0.035 | H43: 1.09 | I43: 22 | J43: =MMULT(J42:M42,J$4:M$7) -> 0.2552828171 | K43: 0.0825137086 | L43: 0.6250543996 | M43: 0.03714907475 | N43: 0.9661835749 | O43: 15.17381381 | P43: 9.760498892 | Q43: 239.7531344 | R43: 0 | S43: 0.01683386692 | T43: 0.004338281137 | U43: -0.006894722443 | V43: 0 | AA43: 1.09 | AB43: 22 | AC43: =MMULT(AC42:AF42,AC$4:AF$7) -> 0.2786830896 | AD43: 0.09434624524 | AE43: 0.5798643515 | AF43: 0.04710631367 | AG43: 0.9661835749 | AH43: 114.0364746 | AI43: 44.1585597 | AJ43: 222.419514 | AK43: 0 | AL43: 0.01837692837 | AM43: 0.004960394376 | AN43: -0.006396249288 | AO43: 0 | BA43: 35 | BB43: 15237.77278 | BC43: 1.132444674 | BD43: 21441.26642 | BE43: 1.078337096 | BJ43: 35 | BK43: 15237.77278 | BL43: 1.132444674 | BM43: 21441.26642 | BN43: 1.078337096 | BO43: 35 | BP43: 18735.56745 | BQ43: 10908.84645 | BR43: TxA | BX43: 34000 | BY43: 0.5668 | BZ43: 0.4332 | CA43: 11553.7079 | CB43: 7839.760684 | CC43: 0.5668 | CG43: 35 | CH43: 6203.493641 | CI43: -0.05410757873 | CN43: -6474.031534 | CO43: -6744.569428 | CP43: -7015.107322 | CQ43: -7285.645215 | CR43: -7556.183109 | CS43: -7826.721003 | CT43: -8097.258896 | CU43: -8367.79679 | CV43: -8638.334683 | CW43: -8908.872577
A44: value per QALY | B44: 30000 | H44: 1.10 | I44: 23 | J44: =MMULT(J43:M43,J$4:M$7) -> 0.2460089667 | K44: 0.0794948106 | L44: 0.6350682178 | M44: 0.03942800487 | N44: 0.9661835749 | O44: 14.6225833 | P44: 9.403395193 | Q44: 243.594151 | R44: 0 | S44: 0.01622233041 | T44: 0.004179558078 | U44: -0.007005180825 | V44: 0 | AA44: 1.10 | AB44: 23 | AC44: =MMULT(AC43:AF43,AC$4:AF$7) -> 0.2684212981 | AD44: 0.09085828374 | AE44: 0.5909837682 | AF44: 0.0497366499 | AG44: 0.9661835749 | AH44: 109.8373733 | AI44: 42.52602673 | AJ44: 226.6846068 | AK44: 0 | AL44: 0.01770024502 | AM44: 0.004777009604 | AN44: -0.006518903079 | AO44: 0 | BA44: 36 | BB44: 12238.75643 | BC44: 0.9565551473 | BD44: 21133.04128 | BE44: 0.1166622267 | BJ44: 36 | BK44: 12238.75643 | BL44: 0.9565551473 | BM44: 21133.04128 | BN44: 0.1166622267 | BO44: 36 | BP44: 16457.89799 | BQ44: -17633.17448 | BR44: TxA | BX44: 35000 | BY44: 0.5642 | BZ44: 0.4358 | CA44: 12358.0097 | CB44: 8690.129694 | CC44: 0.5642 | CG44: 36 | CH44: 8894.284846 | CI44: -0.8398929206 | CN44: -13093.74945 | CO44: -17293.21405 | CP44: -21492.67866 | CQ44: -25692.14326 | CR44: -29891.60786 | CS44: -34091.07246 | CT44: -38290.53707 | CU44: -42490.00167 | CV44: -46689.46627 | CW44: -50888.93088
A45: default value per QALY | B45: 30000 | H45: 1.11 | I45: 24 | J45: =MMULT(J44:M44,J$4:M$7) -> 0.2370680709 | K45: 0.07659217946 | L45: 0.6446012997 | M45: 0.04173844988 | N45: 0.9661835749 | O45: 14.09114334 | P45: 9.060044633 | Q45: 247.2507707 | R45: 0 | S45: 0.0156327496 | T45: 0.004026947921 | U45: -0.007110336398 | V45: 0 | AA45: 1.11 | AB45: 24 | AC45: =MMULT(AC44:AF44,AC$4:AF$7) -> 0.2585344249 | AD45: 0.08750307721 | AE45: 0.6015789266 | AF45: 0.05238357133 | AG45: 0.9661835749 | AH45: 105.7916877 | AI45: 40.95562943 | AJ45: 230.748609 | AK45: 0 | AL45: 0.01704828454 | AM45: 0.004600604623 | AN45: -0.006635773989 | AO45: 0 | BA45: 37 | BB45: 12654.01851 | BC45: 1.304440368 | BD45: 21133.11026 | BE45: 0.5114868273 | BJ45: 37 | BK45: 12654.01851 | BL45: 1.304440368 | BM45: 21133.11026 | BN45: 0.5114868273 | BO45: 37 | BP45: 26479.19251 | BQ45: -5788.505444 | BR45: TxA | BX45: 36000 | BY45: 0.5599 | BZ45: 0.4401 | CA45: 13162.3115 | CB45: 9540.498705 | CC45: 0.5599 | CG45: 37 | CH45: 8479.091748 | CI45: -0.7929535404 | CN45: -12443.85945 | CO45: -16408.62715 | CP45: -20373.39485 | CQ45: -24338.16256 | CR45: -28302.93026 | CS45: -32267.69796 | CT45: -36232.46566 | CU45: -40197.23336 | CV45: -44162.00106 | CW45: -48126.76877
H46: 2.00 | I46: 25 | J46: =MMULT(J45:M45,J$4:M$7) -> 0.2284496308 | K46: 0.07379920695 | L46: 0.6536722984 | M46: 0.04407886386 | N46: 0.9335107004 | O46: 13.11968107 | P46: 8.434459449 | Q46: 242.2513512 | R46: 0 | S46: 0.01455500693 | T46: 0.003748892011 | U46: -0.006966565138 | V46: 0 | AA46: 2.00 | AB46: 25 | AC46: =MMULT(AC45:AF45,AC$4:AF$7) -> 0.2490098996 | AD46: 0.08427412206 | AE46: 0.6116699123 | AF46: 0.05504606603 | AG46: 0.9335107004 | AH46: 98.4485739 | AI46: 38.11045781 | AJ46: 226.6852413 | AK46: 0 | AL46: 0.01586494495 | AM46: 0.004281002412 | AN46: -0.006518921327 | AO46: 0 | BA46: 38 | BB46: 15693.89037 | BC46: 1.020447607 | BD46: 21810.52756 | BE46: 0.6575925964 | BJ46: 38 | BK46: 15693.89037 | BL46: 1.020447607 | BM46: 21810.52756 | BN46: 0.6575925964 | BO46: 38 | BP46: 14919.53783 | BQ46: -2082.749663 | BR46: TxA | BX46: 37000 | BY46: 0.5572 | BZ46: 0.4428 | CA46: 13966.6133 | CB46: 10390.86772 | CC46: 0.5572 | CG46: 38 | CH46: 6116.637186 | CI46: -0.3628550103 | CN46: -7930.912238 | CO46: -9745.187289 | CP46: -11559.46234 | CQ46: -13373.73739 | CR46: -15188.01244 | CS46: -17002.28749 | CT46: -18816.56255 | CU46: -20630.8376 | CV46: -22445.11265 | CW46: -24259.3877
H47: 2.01 | I47: 26 | J47: =MMULT(J46:M46,J$4:M$7) -> 0.2201429352 | K47: 0.07111040188 | L47: 0.6622989045 | M47: 0.04644775844 | N47: 0.9335107004 | O47: 12.64263413 | P47: 8.127157809 | Q47: 245.4483766 | R47: 0 | S47: 0.01402576987 | T47: 0.003612304638 | U47: -0.007058503887 | V47: 0 | AA47: 2.01 | AB47: 26 | AC47: =MMULT(AC46:AF46,AC$4:AF$7) -> 0.2398351386 | AD47: 0.08116577054 | AE47: 0.6212759285 | AF47: 0.05772316231 | AG47: 0.9335107004 | AH47: 94.82123966 | AI47: 36.70479856 | AJ47: 230.2452368 | AK47: 0 | AL47: 0.01528040161 | AM47: 0.004123102691 | AN47: -0.006621298218 | AO47: 0 | BA47: 39 | BB47: 15536.42374 | BC47: 1.046872406 | BD47: 21441.28947 | BE47: 0.7317503666 | BJ47: 39 | BK47: 15536.42374 | BL47: 1.046872406 | BM47: 21441.28947 | BN47: 0.7317503666 | BO47: 39 | BP47: 15869.74844 | BQ47: 511.2215236 | BR47: TxA | BX47: 38000 | BY47: 0.5539 | BZ47: 0.4461 | CA47: 14770.9151 | CB47: 11241.23673 | CC47: 0.5539 | CG47: 39 | CH47: 5904.865732 | CI47: -0.3151220394 | CN47: -7480.475929 | CO47: -9056.086126 | CP47: -10631.69632 | CQ47: -12207.30652 | CR47: -13782.91672 | CS47: -15358.52691 | CT47: -16934.13711 | CU47: -18509.74731 | CV47: -20085.35751 | CW47: -21660.9677
H48: 2.02 | I48: 27 | J48: =MMULT(J47:M47,J$4:M$7) -> 0.2121372876 | K48: 0.06852102637 | L48: 0.6704979852 | M48: 0.04884370077 | N48: 0.9335107004 | O48: 12.18287614 | P48: 7.831219903 | Q48: 248.4869609 | R48: 0 | S48: 0.01351571321 | T48: 0.003480768141 | U48: -0.00714588625 | V48: 0 | AA48: 2.02 | AB48: 27 | AC48: =MMULT(AC47:AF47,AC$4:AF$7) -> 0.2309977275 | AD48: 0.07817296354 | AE48: 0.6304153823 | AF48: 0.06041392666 | AG48: 0.9335107004 | AH48: 91.32728009 | AI48: 35.35139087 | AJ48: 233.6323239 | AK48: 0 | AL48: 0.01471735154 | AM48: 0.003971072463 | AN48: -0.006718702683 | AO48: 0 | BA48: 40 | BB48: 13743.5244 | BC48: 1.15237731 | BD48: 20470.97212 | BE48: 0.7841481314 | BJ48: 40 | BK48: 13743.5244 | BL48: 1.15237731 | BM48: 20470.97212 | BN48: 0.7841481314 | BO48: 40 | BP48: 20827.79491 | BQ48: 3053.471819 | BR48: TxA | BX48: 39000 | BY48: 0.5508 | BZ48: 0.4492 | CA48: 15575.2169 | CB48: 12091.60574 | CC48: 0.5508 | CG48: 40 | CH48: 6727.447723 | CI48: -0.3682291791 | CN48: -8568.593618 | CO48: -10409.73951 | CP48: -12250.88541 | CQ48: -14092.0313 | CR48: -15933.1772 | CS48: -17774.3231 | CT48: -19615.46899 | CU48: -21456.61489 | CV48: -23297.76078 | CW48: -25138.90668
H49: 2.03 | I49: 28 | J49: =MMULT(J48:M48,J$4:M$7) -> 0.2044221436 | K49: 0.06602686452 | L49: 0.6782856804 | M49: 0.05126531146 | N49: 0.9335107004 | O49: 11.73980154 | P49: 7.5461639 | Q49: 251.3730855 | R49: 0 | S49: 0.01302416514 | T49: 0.003354068359 | U49: -0.007228884238 | V49: 0 | AA49: 2.03 | AB49: 28 | AC49: =MMULT(AC48:AF48,AC$4:AF$7) -> 0.2224855275 | AD49: 0.0752910634 | AE49: 0.6391059471 | AF49: 0.06311746192 | AG49: 0.9335107004 | AH49: 87.96189602 | AI49: 34.0481375 | AJ49: 236.8530525 | AK49: 0 | AL49: 0.01417502136 | AM49: 0.003824676142 | AN49: -0.006811323077 | AO49: 0 | BA49: 41 | BB49: 15048.11554 | BC49: 0.8657305298 | BD49: 21028.54551 | BE49: 0.6361891429 | BJ49: 41 | BK49: 15048.11554 | BL49: 0.8657305298 | BM49: 21028.54551 | BN49: 0.6361891429 | BO49: 41 | BP49: 10923.80035 | BQ49: -1942.871221 | BR49: TxA | BX49: 40000 | BY49: 0.548 | BZ49: 0.452 | CA49: 16379.51871 | CB49: 12941.97475 | CC49: 0.548 | CG49: 41 | CH49: 5980.429964 | CI49: -0.229541387 | CN49: -7128.136899 | CO49: -8275.843834 | CP49: -9423.550769 | CQ49: -10571.2577 | CR49: -11718.96464 | CS49: -12866.67157 | CT49: -14014.37851 | CU49: -15162.08544 | CV49: -16309.79238 | CW49: -17457.49931
H50: 2.04 | I50: 29 | J50: =MMULT(J49:M49,J$4:M$7) -> 0.1969871928 | K50: 0.06362407456 | L50: 0.6856774699 | M50: 0.05371126267 | N50: 0.9335107004 | O50: 11.31281822 | P50: 7.271550726 | Q50: 254.1124872 | R50: 0 | S50: 0.01255046877 | T50: 0.003232010136 | U50: -0.00730766283 | V50: 0 | AA50: 2.04 | AB50: 29 | AC50: =MMULT(AC49:AF49,AC$4:AF$7) -> 0.2142867351 | AD50: 0.07251574849 | AE50: 0.6473646107 | AF50: 0.06583290576 | AG50: 0.9335107004 | AH50: 84.72042077 | AI50: 32.79308412 | AJ50: 239.9137183 | AK50: 0 | AL50: 0.01365265903 | AM50: 0.003683694195 | AN50: -0.006899340449 | AO50: 0 | BA50: 42 | BB50: 15967.87887 | BC50: 1.496322171 | BD50: 20789.86168 | BE50: 1.324972151 | BJ50: 42 | BK50: 15967.87887 | BL50: 1.496322171 | BM50: 20789.86168 | BN50: 1.324972151 | BO50: 42 | BP50: 28921.78627 | BQ50: 18959.30284 | BR50: TxA | BX50: 41000 | BY50: 0.546 | BZ50: 0.454 | CA50: 17183.82051 | CB50: 13792.34376 | CC50: 0.546 | CG50: 42 | CH50: 4821.982817 | CI50: -0.1713500205 | CN50: -5678.732919 | CO50: -6535.483021 | CP50: -7392.233124 | CQ50: -8248.983226 | CR50: -9105.733329 | CS50: -9962.483431 | CT50: -10819.23353 | CU50: -11675.98364 | CV50: -12532.73374 | CW50: -13389.48384
H51: 2.05 | I51: 30 | J51: =MMULT(J50:M50,J$4:M$7) -> 0.1898224053 | K51: 0.06130909393 | L51: 0.6926882245 | M51: 0.05618027624 | N51: 0.9335107004 | O51: 10.90135015 | P51: 7.006973218 | Q51: 256.7106771 | R51: 0 | S51: 0.01209398508 | T51: 0.003114412498 | U51: -0.007382380511 | V51: 0 | AA51: 2.05 | AB51: 30 | AC51: =MMULT(AC50:AF50,AC$4:AF$7) -> 0.206389912 | AD51: 0.06984294609 | AE51: 0.6552077127 | AF51: 0.0685594292 | AG51: 0.9335107004 | AH51: 81.59833218 | AI51: 31.58438896 | AJ51: 242.8203766 | AK51: 0 | AL51: 0.01314953581 | AM51: 0.003547919733 | AN51: -0.006982928939 | AO51: 0 | BA51: 43 | BB51: 12935.77676 | BC51: 2.094172605 | BD51: 21703.0225 | BE51: 1.319993633 | BJ51: 43 | BK51: 12935.77676 | BL51: 2.094172605 | BM51: 21703.0225 | BN51: 1.319993633 | BO51: 43 | BP51: 49889.40141 | BQ51: 17896.78648 | BR51: TxA | BX51: 42000 | BY51: 0.5434 | BZ51: 0.4566 | CA51: 17988.12231 | CB51: 14642.71277 | CC51: 0.5434 | CG51: 43 | CH51: 8767.245749 | CI51: -0.7741789727 | CN51: -12638.14061 | CO51: -16509.03548 | CP51: -20379.93034 | CQ51: -24250.8252 | CR51: -28121.72007 | CS51: -31992.61493 | CT51: -35863.50979 | CU51: -39734.40466 | CV51: -43605.29952 | CW51: -47476.19438
H52: 2.06 | I52: 31 | J52: =MMULT(J51:M51,J$4:M$7) -> 0.1829180564 | K52: 0.05907857769 | L52: 0.6993322441 | M52: 0.05867112184 | N52: 0.9335107004 | O52: 10.50483887 | P52: 6.752049086 | Q52: 259.1729548 | R52: 0 | S52: 0.01165409447 | T52: 0.003001105528 | U52: -0.007453189685 | V52: 0 | AA52: 2.06 | AB52: 31 | AC52: =MMULT(AC51:AF51,AC$4:AF$7) -> 0.1987839992 | AD52: 0.06726878891 | AE52: 0.6626509766 | AF52: 0.07129623534 | AG52: 0.9335107004 | AH52: 78.59125786 | AI52: 30.42030316 | AJ52: 245.5788548 | AK52: 0 | AL52: 0.01266494709 | AM52: 0.003417156305 | AN52: -0.007062256124 | AO52: 0 | BA52: 44 | BB52: 15080.08994 | BC52: 1.182472952 | BD52: 20271.06736 | BE52: 1.318007342 | BJ52: 44 | BK52: 15080.08994 | BL52: 1.182472952 | BM52: 20271.06736 | BN52: 1.318007342 | BO52: 44 | BP52: 20394.09862 | BQ52: 19269.15289 | BR52: TxA | BX52: 43000 | BY52: 0.5413 | BZ52: 0.4587 | CA52: 18792.42411 | CB52: 15493.08178 | CC52: 0.5413 | CG52: 44 | CH52: 5190.97742 | CI52: 0.1355343896 | CN52: -4513.305472 | CO52: -3835.633524 | CP52: -3157.961576 | CQ52: -2480.289628 | CR52: -1802.61768 | CS52: -1124.945732 | CT52: -447.2737843 | CU52: 230.3981636 | CV52: 908.0701115 | CW52: 1585.742059
H53: 2.07 | I53: 32 | J53: =MMULT(J52:M52,J$4:M$7) -> 0.1762647373 | K53: 0.05692935819 | L53: 0.7056232892 | M53: 0.06118261528 | N53: 0.9335107004 | O53: 10.12274404 | P53: 6.506416301 | Q53: 261.50442 | R53: 0 | S53: 0.0112301975 | T53: 0.002891928314 | U53: -0.007520237005 | V53: 0 | AA53: 2.07 | AB53: 32 | AC53: =MMULT(AC52:AF52,AC$4:AF$7) -> 0.1914583182 | AD53: 0.06478958636 | AE53: 0.6697095374 | AF53: 0.07404255806 | AG53: 0.9335107004 | AH53: 75.69497606 | AI53: 29.29915776 | AJ53: 248.1947617 | AK53: 0 | AL53: 0.01219821253 | AM53: 0.003291216434 | AN53: -0.007137483303 | AO53: 0 | BA53: 45 | BB53: 17973.86756 | BC53: -0.04980831968 | BD53: 21993.78134 | BE53: 0.5358592255 | BJ53: 45 | BK53: 17973.86756 | BL53: -0.04980831968 | BM53: 21993.78134 | BN53: 0.5358592255 | BO53: 45 | BP53: -19468.11715 | BQ53: -5918.004579 | BR53: TxB | BX53: 44000 | BY53: 0.5397 | BZ53: 0.4603 | CA53: 19596.72591 | CB53: 16343.45079 | CC53: 0.5397 | CG53: 45 | CH53: 4019.913781 | CI53: 0.5856675452 | CN53: -1091.576055 | CO53: 1836.761671 | CP53: 4765.099397 | CQ53: 7693.437123 | CR53: 10621.77485 | CS53: 13550.11257 | CT53: 16478.4503 | CU53: 19406.78803 | CV53: 22335.12575 | CW53: 25263.46348
H54: 2.08 | I54: 33 | J54: =MMULT(J53:M53,J$4:M$7) -> 0.1698533579 | K54: 0.05485841813 | L54: 0.7115746072 | M54: 0.0637136168 | N54: 0.9335107004 | O54: =c_sil_A*J54*N54 -> 9.754543601 | P54: =c_act_A*K54*N54 -> 6.269730018 | Q54: =c_compl_A*L54*N54 -> 263.709982 | R54: =c_dead_A*M54*N54 -> 0 | S54: =u_sil*J54*N54 -> 0.01082171502 | T54: =u_act*K54*N54 -> 0.002786727581 | U54: =u_compl*L54*N54 -> -0.007583663655 | V54: =u_dead*M54*N54 -> 0 | AA54: 2.08 | AB54: 33 | AC54: =MMULT(AC53:AF53,AC$4:AF$7) -> 0.1844025682 | AD54: 0.06240180499 | AE54: 0.6763979659 | AF54: 0.07679766092 | AG54: 0.9335107004 | AH54: =c_sil_B*AC54*AG54 -> 72.90541417 | AI54: =c_act_B*AD54*AG54 -> 28.21935487 | AJ54: =c_compl_B*AE54*AG54 -> 250.6734974 | AK54: =c_dead_B*AF54*AG54 -> 0 | AL54: =u_sil*AC54*AG54 -> 0.01174867584 | AM54: =u_act*AD54*AG54 -> 0.003169920625 | AN54: =u_compl*AE54*AG54 -> -0.007208765769 | AO54: =u_dead*AF54*AG54 -> 0 | BA54: 46 | BB54: 16835.19355 | BC54: 0.5855682889 | BD54: 20874.82299 | BE54: 0.9847349179 | BJ54: 46 | BK54: 16835.19355 | BL54: 0.5855682889 | BM54: 20874.82299 | BN54: 0.9847349179 | BO54: 46 | BP54: 731.8551142 | BQ54: 8667.224542 | BR54: TxB | BX54: 45000 | BY54: 0.5381 | BZ54: 0.4619 | CA54: 20401.02771 | CB54: 17193.8198 | CC54: 0.5381 | CG54: 46 | CH54: 4039.629442 | CI54: 0.399166629 | CN54: -2043.796297 | CO54: -47.9631521 | CP54: 1947.869993 | CQ54: 3943.703138 | CR54: 5939.536283 | CS54: 7935.369428 | CT54: 9931.202573 | CU54: 11927.03572 | CV54: 13922.86886 | CW54: 15918.70201
H55: 2.09 | I55: 34 | J55: =MMULT(J54:M54,J$4:M$7) -> 0.1636751435 | K55: 0.05286287214 | L55: 0.7171989549 | M55: 0.06626302946 | N55: 0.9335107004 | O55: 9.39973365 | P55: 6.041660471 | Q55: 265.7943687 | R55: 0 | S55: 0.01042808798 | T55: 0.002685356757 | U55: -0.007643605594 | V55: 0 | AA55: 2.09 | AB55: 34 | AC55: =MMULT(AC54:AF54,AC$4:AF$7) -> 0.1776068176 | AD55: 0.0601020546 | AE55: 0.6827302918 | AF55: 0.07956083596 | AG55: 0.9335107004 | AH55: 70.21864568 | AI55: 27.17936135 | AJ55: 253.0202612 | AK55: 0 | AL55: 0.01131570427 | AM55: 0.003053096661 | AN55: -0.007276253042 | AO55: 0 | BA55: 47 | BB55: 17508.83683 | BC55: 1.201791817 | BD55: 21365.677 | BE55: 1.373157462 | BJ55: 47 | BK55: 17508.83683 | BL55: 1.201791817 | BM55: 21365.677 | BN55: 1.373157462 | BO55: 47 | BP55: 18544.91769 | BQ55: 19829.04687 | BR55: TxB | BX55: 46000 | BY55: 0.5352 | BZ55: 0.4648 | CA55: 21205.32951 | CB55: 18044.18881 | CC55: 0.5352 | CG55: 47 | CH55: 3856.840169 | CI55: 0.171365645 | CN55: -3000.011944 | CO55: -2143.18372 | CP55: -1286.355495 | CQ55: -429.5272698 | CR55: 427.3009551 | CS55: 1284.12918 | CT55: 2140.957405 | CU55: 2997.78563 | CV55: 3854.613855 | CW55: 4711.44208
H56: 2.10 | I56: 35 | J56: =MMULT(J55:M55,J$4:M$7) -> 0.1577216292 | K56: 0.0509399538 | L56: 0.7225086195 | M56: 0.06882979755 | N56: 0.9335107004 | O56: 9.057828046 | P56: 5.821891487 | Q56: 267.7621336 | R56: 0 | S56: 0.01004877705 | T56: 0.002587675312 | U56: -0.007700193771 | V56: 0 | AA56: 2.10 | AB56: 35 | AC56: =MMULT(AC55:AF55,AC$4:AF$7) -> 0.1710614948 | AD56: 0.05788707797 | AE56: 0.6887200245 | AF56: 0.0823314027 | AG56: 0.9335107004 | AH56: 67.63088632 | AI56: 26.17770425 | AJ56: 255.2400598 | AK56: 0 | AL56: 0.01089868797 | AM56: 0.002940579081 | AN56: -0.0073400891 | AO56: 0 | BA56: 48 | BB56: 13957.35574 | BC56: 1.900421393 | BD56: 21282.79401 | BE56: 1.498858739 | BJ56: 48 | BK56: 13957.35574 | BL56: 1.900421393 | BM56: 21282.79401 | BN56: 1.498858739 | BO56: 48 | BP56: 43055.28606 | BQ56: 23682.96817 | BR56: TxA | BX56: 47000 | BY56: 0.5329 | BZ56: 0.4671 | CA56: 22009.63131 | CB56: 18894.55782 | CC56: 0.5329 | CG56: 48 | CH56: 7325.438268 | CI56: -0.4015626541 | CN56: -9333.251538 | CO56: -11341.06481 | CP56: -13348.87808 | CQ56: -15356.69135 | CR56: -17364.50462 | CS56: -19372.31789 | CT56: -21380.13116 | CU56: -23387.94443 | CV56: -25395.7577 | CW56: -27403.57097
H57: 2.11 | I57: 36 | J57: =MMULT(J56:M56,J$4:M$7) -> 0.1519846519 | K57: 0.04908700618 | L57: 0.7275154367 | M57: 0.07141290514 | N57: 0.9335107004 | O57: 8.728357994 | P57: 5.610119407 | Q57: 269.6176631 | R57: 0 | S57: 0.009683262149 | T57: 0.002493548277 | U57: -0.007753554329 | V57: 0 | AA57: 2.11 | AB57: 36 | AC57: =MMULT(AC56:AF56,AC$4:AF$7) -> 0.1647573769 | AD57: 0.05575374291 | AE57: 0.6943801731 | AF57: 0.08510870708 | AG57: 0.9335107004 | AH57: 65.13848976 | AI57: 25.2129671 | AJ57: 257.3377143 | AK57: 0 | AL57: 0.01049703935 | AM57: 0.002832208773 | AN57: -0.007400412589 | AO57: 0 | BA57: 49 | BB57: 15586.2605 | BC57: 0.9511771576 | BD57: 22381.9578 | BE57: 0.8702681358 | BJ57: 49 | BK57: 15586.2605 | BL57: 0.9511771576 | BM57: 22381.9578 | BN57: 0.8702681358 | BO57: 49 | BP57: 12949.05422 | BQ57: 3726.086275 | BR57: TxA | BX57: 48000 | BY57: 0.5308 | BZ57: 0.4692 | CA57: 22813.93311 | CB57: 19744.92683 | CC57: 0.5308 | CG57: 49 | CH57: 6795.697295 | CI57: -0.0809090218 | CN57: -7200.242404 | CO57: -7604.787513 | CP57: -8009.332622 | CQ57: -8413.877731 | CR57: -8818.42284 | CS57: -9222.967949 | CT57: -9627.513058 | CU57: -10032.05817 | CV57: -10436.60328 | CW57: -10841.14838
H58: 3.00 | I58: 37 | J58: =MMULT(J57:M57,J$4:M$7) -> 0.1464563419 | K58: 0.04730147457 | L58: 0.732230809 | M58: 0.07401137457 | N58: 0.9019427057 | O58: 8.126445926 | P58: 5.223238893 | Q58: 262.1885826 | R58: 0 | S58: 0.009015499397 | T58: 0.002321590219 | U58: -0.007539911873 | V58: 0 | AA58: 3.00 | AB58: 37 | AC58: =MMULT(AC57:AF57,AC$4:AF$7) -> 0.1586855787 | AD58: 0.05369903571 | AE58: 0.6997232651 | AF58: 0.08789212049 | AG58: 0.9019427057 | AH58: 60.61637016 | AI58: 23.4625962 | AJ58: 250.5486642 | AK58: 0 | AL58: 0.009768301737 | AM58: 0.002635587098 | AN58: -0.007205175867 | AO58: 0 | BA58: 50 | BB58: 17434.4901 | BC58: 0.04332776904 | BD58: 21265.03849 | BE58: 0.6645003103 | BJ58: 50 | BK58: 17434.4901 | BL58: 0.04332776904 | BM58: 21265.03849 | BN58: 0.6645003103 | BO58: 50 | BP58: -16134.65703 | BQ58: -1330.029181 | BR58: TxB | BX58: 49000 | BY58: 0.5286 | BZ58: 0.4714 | CA58: 23618.23491 | CB58: 20595.29584 | CC58: 0.5286 | CG58: 50 | CH58: 3830.54839 | CI58: 0.6211725412 | CN58: -724.6856841 | CO58: 2381.177022 | CP58: 5487.039728 | CQ58: 8592.902434 | CR58: 11698.76514 | CS58: 14804.62785 | CT58: 17910.49055 | CU58: 21016.35326 | CV58: 24122.21597 | CW58: 27228.07867
H59: 3.01 | I59: 38 | J59: =MMULT(J58:M58,J$4:M$7) -> 0.141129113 | K59: 0.04558090071 | L59: 0.7366657212 | M59: 0.0766242651 | N59: 0.9019427057 | O59: 7.830853143 | P59: 5.033245487 | Q59: 263.7765837 | R59: 0 | S59: 0.008687568026 | T59: 0.002237143223 | U59: -0.007585578959 | V59: 0 | AA59: 3.01 | AB59: 38 | AC59: =MMULT(AC58:AF58,AC$4:AF$7) -> 0.1528375407 | AD59: 0.05172005565 | AE59: 0.7047613648 | AF59: 0.09068103882 | AG59: 0.9019427057 | AH59: 58.38247572 | AI59: 22.59792499 | AJ59: 252.3526476 | AK59: 0 | AL59: 0.009408310618 | AM59: 0.00253845734 | AN59: -0.007257054083 | AO59: 0 | BA59: 51 | BB59: 15203.32701 | BC59: 1.142597703 | BD59: 21201.63124 | BE59: 1.213657231 | BJ59: 51 | BK59: 15203.32701 | BL59: 1.142597703 | BM59: 21201.63124 | BN59: 1.213657231 | BO59: 51 | BP59: 19074.60407 | BQ59: 15208.08567 | BR59: TxA | BX59: 50000 | BY59: 0.5261 | BZ59: 0.4739 | CA59: 24422.53672 | CB59: 21445.66485 | CC59: 0.5261 | CG59: 51 | CH59: 5998.304232 | CI59: 0.07105952783 | CN59: -5643.006593 | CO59: -5287.708954 | CP59: -4932.411315 | CQ59: -4577.113676 | CR59: -4221.816036 | CS59: -3866.518397 | CT59: -3511.220758 | CU59: -3155.923119 | CV59: -2800.62548 | CW59: -2445.327841
H60: 3.02 | I60: 39 | J60: =MMULT(J59:M59,J$4:M$7) -> 0.1359956537 | K60: 0.043922918 | L60: 0.7408307568 | M60: 0.07925067153 | N60: 0.9019427057 | O60: 7.546012083 | P60: 4.850163672 | Q60: 265.2679506 | R60: 0 | S60: 0.008371564643 | T60: 0.002155768245 | U60: -0.007628467077 | V60: 0 | AA60: 3.02 | AB60: 39 | AC60: =MMULT(AC59:AF59,AC$4:AF$7) -> 0.1472050184 | AD60: 0.04981401004 | AE60: 0.7095060901 | AF60: 0.09347488153 | AG60: 0.9019427057 | AH60: 56.23090615 | AI60: 21.76512086 | AJ60: 254.0515829 | AK60: 0 | AL60: 0.009061586116 | AM60: 0.002444907258 | AN60: -0.007305911369 | AO60: 0 | BA60: 52 | BB60: 15193.39758 | BC60: 1.419438599 | BD60: 21230.42569 | BE60: 1.322817107 | BJ60: 52 | BK60: 15193.39758 | BL60: 1.419438599 | BM60: 21230.42569 | BN60: 1.322817107 | BO60: 52 | BP60: 27389.76039 | BQ60: 18454.08752 | BR60: TxA | BX60: 51000 | BY60: 0.5241 | BZ60: 0.4759 | CA60: 25226.83852 | CB60: 22296.03386 | CC60: 0.5241 | CG60: 52 | CH60: 6037.028106 | CI60: -0.09662149208 | CN60: -6520.135567 | CO60: -7003.243027 | CP60: -7486.350487 | CQ60: -7969.457948 | CR60: -8452.565408 | CS60: -8935.672869 | CT60: -9418.780329 | CU60: -9901.887789 | CV60: -10384.99525 | CW60: -10868.10271
H61: 3.03 | I61: 40 | J61: =MMULT(J60:M60,J$4:M$7) -> 0.1310489173 | K61: 0.04232524731 | L61: 0.7447361125 | M61: 0.08188972293 | N61: 0.9019427057 | O61: 7.271531751 | P61: 4.673741779 | Q61: 266.6663343 | R61: 0 | S61: 0.008067055477 | T61: 0.002077353425 | U61: -0.007668681224 | V61: 0 | AA61: 3.03 | AB61: 40 | AC61: =MMULT(AC60:AF60,AC$4:AF$7) -> 0.14178007 | AD61: 0.04797820988 | AE61: 0.7139686293 | AF61: 0.09627309083 | AG61: 0.9019427057 | AH61: 54.15862788 | AI61: 20.96300892 | AJ61: 255.6494764 | AK61: 0 | AL61: 0.008727639372 | AM61: 0.002354804872 | AN61: -0.007351862935 | AO61: 0 | BA61: 53 | BB61: 16804.7977 | BC61: 1.470702632 | BD61: 21042.16618 | BE61: 1.55610746 | BJ61: 53 | BK61: 16804.7977 | BL61: 1.470702632 | BM61: 21042.16618 | BN61: 1.55610746 | BO61: 53 | BP61: 27316.28125 | BQ61: 25641.05761 | BR61: TxA | BX61: 52000 | BY61: 0.5221 | BZ61: 0.4779 | CA61: 26031.14032 | CB61: 23146.40287 | CC61: 0.5221 | CG61: 53 | CH61: 4237.368484 | CI61: 0.08540482802 | CN61: -3810.344344 | CO61: -3383.320204 | CP61: -2956.296064 | CQ61: -2529.271924 | CR61: -2102.247783 | CS61: -1675.223643 | CT61: -1248.199503 | CU61: -821.1753631 | CV61: -394.151223 | CW61: 32.87291707
H62: 3.04 | I62: 41 | J62: =MMULT(J61:M61,J$4:M$7) -> 0.1262821131 | K62: 0.04078569332 | L62: 0.7483916123 | M62: 0.08454058136 | N62: 0.9019427057 | O62: 7.007035338 | P62: 4.503737391 | Q62: 267.9752526 | R62: 0 | S62: 0.007773622497 | T62: 0.002001791013 | U62: -0.007706322561 | V62: 0 | AA62: 3.04 | AB62: 41 | AC62: =MMULT(AC61:AF61,AC$4:AF$7) -> 0.1365550465 | AD62: 0.04621006567 | AE62: 0.718159757 | AF62: 0.09907513078 | AG62: 0.9019427057 | AH62: 52.162719 | AI62: 20.19045774 | AJ62: 257.150186 | AK62: 0 | AL62: 0.008405999521 | AM62: 0.00226802309 | AN62: -0.007395019729 | AO62: 0 | BA62: 54 | BB62: 16277.48993 | BC62: 1.35561836 | BD62: 20974.43754 | BE62: 1.362630964 | BJ62: 54 | BK62: 16277.48993 | BL62: 1.35561836 | BM62: 20974.43754 | BN62: 1.362630964 | BO62: 54 | BP62: 24391.06086 | BQ62: 19904.49139 | BR62: TxA | BX62: 53000 | BY62: 0.5211 | BZ62: 0.4789 | CA62: 26835.44212 | CB62: 23996.77188 | CC62: 0.5211 | CG62: 54 | CH62: 4696.947608 | CI62: 0.007012604664 | CN62: -4661.884585 | CO62: -4626.821561 | CP62: -4591.758538 | CQ62: -4556.695515 | CR62: -4521.632491 | CS62: -4486.569468 | CT62: -4451.506445 | CU62: -4416.443421 | CV62: -4381.380398 | CW62: -4346.317375
H63: 3.05 | I63: 42 | J63: =MMULT(J62:M62,J$4:M$7) -> 0.1216886967 | K63: 0.03930214112 | L63: 0.7518067215 | M63: 0.08720244068 | N63: 0.9019427057 | O63: 6.752159725 | P63: 4.339916967 | Q63: 269.1980947 | R63: 0 | S63: 0.007490862855 | T63: 0.001928977209 | U63: -0.007741488553 | V63: 0 | AA63: 3.05 | AB63: 42 | AC63: =MMULT(AC62:AF62,AC$4:AF$7) -> 0.1315225805 | AD63: 0.04450708366 | AE63: 0.7220898494 | AF63: 0.1018804865 | AG63: 0.9019427057 | AH63: 50.24036518 | AI63: 19.44637772 | AJ63: 258.5574272 | AK63: 0 | AL63: 0.008096213039 | AM63: 0.002184439514 | AN63: -0.007435488594 | AO63: 0 | BA63: 55 | BB63: 13232.29134 | BC63: 1.531001863 | BD63: 21768.10766 | BE63: 0.8740781033 | BJ63: 55 | BK63: 13232.29134 | BL63: 1.531001863 | BM63: 21768.10766 | BN63: 0.8740781033 | BO63: 55 | BP63: 32697.76455 | BQ63: 4454.235438 | BR63: TxA | BX63: 54000 | BY63: 0.5194 | BZ63: 0.4806 | CA63: 27639.74392 | CB63: 24847.14089 | CC63: 0.5194 | CG63: 55 | CH63: 8535.816321 | CI63: -0.6569237597 | CN63: -11820.43512 | CO63: -15105.05392 | CP63: -18389.67272 | CQ63: -21674.29152 | CR63: -24958.91031 | CS63: -28243.52911 | CT63: -31528.14791 | CU63: -34812.76671 | CV63: -38097.38551 | CW63: -41382.00431
H64: 3.06 | I64: 43 | J64: =MMULT(J63:M63,J$4:M$7) -> 0.1172623617 | K64: 0.03787255307 | L64: 0.7549905598 | M64: 0.08987452541 | N64: 0.9019427057 | O64: 6.506554985 | P64: 4.182055506 | Q64: 270.3381261 | R64: 0 | S64: 0.007218388343 | T64: 0.001858812005 | U64: -0.007774273106 | V64: 0 | AA64: 3.06 | AB64: 43 | AC64: =MMULT(AC63:AF63,AC$4:AF$7) -> 0.1266755756 | AD64: 0.04286686213 | AE64: 0.7257688988 | AF64: 0.1046886634 | AG64: 0.9019427057 | AH64: 48.3888558 | AI64: 18.7297195 | AJ64: 259.8747779 | AK64: 0 | AL64: 0.007797843105 | AM64: 0.002103936267 | AN64: -0.007473372426 | AO64: 0 | BA64: 56 | BB64: 18629.26192 | BC64: 0.6850662096 | BD64: 21650.12423 | BE64: 1.02483358 | BJ64: 56 | BK64: 18629.26192 | BL64: 0.6850662096 | BM64: 21650.12423 | BN64: 1.02483358 | BO64: 56 | BP64: 1922.724368 | BQ64: 9094.883173 | BR64: TxB | BX64: 55000 | BY64: 0.5178 | BZ64: 0.4822 | CA64: 28444.04572 | CB64: 25697.5099 | CC64: 0.5178 | CG64: 56 | CH64: 3020.862306 | CI64: 0.3397673704 | CN64: -1322.025454 | CO64: 376.8113982 | CP64: 2075.64825 | CQ64: 3774.485102 | CR64: 5473.321954 | CS64: 7172.158806 | CT64: 8870.995658 | CU64: 10569.83251 | CV64: 12268.66936 | CW64: 13967.50621
H65: 3.07 | I65: 44 | J65: =MMULT(J64:M64,J$4:M$7) -> 0.1129970309 | K65: 0.03649496588 | L65: 0.7579519137 | M65: 0.09255608956 | N65: 0.9019427057 | O65: 6.26988391 | P65: 4.029936211 | Q65: 271.3984927 | R65: 0 | S65: 0.006955824862 | T65: 0.00179119904 | U65: -0.007804766697 | V65: 0 | AA65: 3.07 | AB65: 44 | AC65: =MMULT(AC64:AF64,AC$4:AF$7) -> 0.1220071974 | AD65: 0.041287088 | AE65: 0.7292065281 | AF65: 0.1074991864 | AG65: 0.9019427057 | AH65: 46.60558006 | AI65: 18.03947242 | AJ65: 261.1056837 | AK65: 0 | AL65: 0.007510468994 | AM65: 0.002026399823 | AN65: -0.007508770311 | AO65: 0 | BA65: 57 | BB65: 15250.35576 | BC65: 1.201379098 | BD65: 19823.5308 | BE65: 1.268165823 | BJ65: 57 | BK65: 15250.35576 | BL65: 1.201379098 | BM65: 19823.5308 | BN65: 1.268165823 | BO65: 57 | BP65: 20791.01718 | BQ65: 18221.44389 | BR65: TxA | BX65: 56000 | BY65: 0.5156 | BZ65: 0.4844 | CA65: 29248.34752 | CB65: 26547.87891 | CC65: 0.5156 | CG65: 57 | CH65: 4573.175041 | CI65: 0.06678672495 | CN65: -4239.241416 | CO65: -3905.307791 | CP65: -3571.374167 | CQ65: -3237.440542 | CR65: -2903.506917 | CS65: -2569.573292 | CT65: -2235.639668 | CU65: -1901.706043 | CV65: -1567.772418 | CW65: -1233.838793
H66: 3.08 | I66: 45 | J66: =MMULT(J65:M65,J$4:M$7) -> 0.1088868481 | K66: 0.03516748782 | L66: 0.7606992485 | M66: 0.09524641561 | N66: =N54/(1+disc) -> 0.9019427057 | O66: 6.041821554 | P66: 3.883350188 | Q66: 272.382226 | R66: 0 | S66: 0.006702811915 | T66: 0.001726045467 | U66: -0.007833056496 | V66: 0 | AA66: 3.08 | AB66: 45 | AC66: =MMULT(AC65:AF65,AC$4:AF$7) -> 0.1175108629 | AD66: 0.03976553351 | AE66: 0.7324120042 | AF66: 0.1103115993 | AG66: =AG54/(1+disc) -> 0.9019427057 | AH66: 44.88802338 | AI66: 17.37466312 | AJ66: 262.2534628 | AK66: 0 | AL66: 0.007233685482 | AM66: 0.00195172084 | AN66: -0.007541777672 | AO66: 0 | BA66: 58 | BB66: 14616.8161 | BC66: 0.1279747199 | BD66: 21050.895 | BE66: 0.03169802705 | BJ66: 58 | BK66: 14616.8161 | BL66: 0.1279747199 | BM66: 21050.895 | BN66: 0.03169802705 | BO66: 58 | BP66: -10777.5745 | BQ66: -20099.95419 | BR66: TxA | BX66: 57000 | BY66: 0.5144 | BZ66: 0.4856 | CA66: 30052.64932 | CB66: 27398.24792 | CC66: 0.5144 | CG66: 58 | CH66: 6434.078903 | CI66: -0.09627669286 | CN66: -6915.462368 | CO66: -7396.845832 | CP66: -7878.229296 | CQ66: -8359.612761 | CR66: -8840.996225 | CS66: -9322.379689 | CT66: -9803.763154 | CU66: -10285.14662 | CV66: -10766.53008 | CW66: -11247.91355
H67: 3.09 | I67: 46 | J67: =MMULT(J66:M66,J$4:M$7) -> 0.10492617 | K67: 0.03388829605 | L67: 0.7632407206 | M67: 0.09794481341 | N67: 0.9019427057 | O67: 5.822054788 | P67: 3.742096152 | Q67: 273.2922464 | R67: 0 | S67: 0.006459002116 | T67: 0.00166326182 | U67: -0.00785922649 | V67: 0 | AA67: 3.09 | AB67: 46 | AC67: =MMULT(AC66:AF66,AC$4:AF$7) -> 0.1131802319 | AD67: 0.03830005301 | AE67: 0.7353942511 | AF67: 0.1131254639 | AG67: 0.9019427057 | AH67: 43.23376384 | AI67: 16.73435409 | AJ67: 263.3213107 | AK67: 0 | AL67: 0.006967102274 | AM67: 0.001879794008 | AN67: -0.007572486403 | AO67: 0 | BA67: 59 | BB67: 15543.95638 | BC67: 0.344081495 | BD67: 21083.36499 | BE67: 0.4942773619 | BJ67: 59 | BK67: 15543.95638 | BL67: 0.344081495 | BM67: 21083.36499 | BN67: 0.4942773619 | BO67: 59 | BP67: -5221.511533 | BQ67: -6255.044135 | BR67: TxA | BX67: 58000 | BY67: 0.5127 | BZ67: 0.4873 | CA67: 30856.95112 | CB67: 28248.61693 | CC67: 0.5127 | CG67: 59 | CH67: 5539.408609 | CI67: 0.1501958669 | CN67: -4788.429274 | CO67: -4037.44994 | CP67: -3286.470605 | CQ67: -2535.491271 | CR67: -1784.511936 | CS67: -1033.532602 | CT67: -282.5532675 | CU67: 468.426067 | CV67: 1219.405401 | CW67: 1970.384736
H68: 3.10 | I68: 47 | J68: =MMULT(J67:M67,J$4:M$7) -> 0.1011095585 | K68: 0.03265563411 | L68: 0.7655841882 | M68: 0.1006506192 | N68: 0.9019427057 | O68: 5.610281869 | P68: 3.605980145 | Q68: 274.1313677 | R68: 0 | S68: 0.006224060711 | T68: 0.001602761889 | U68: -0.007883357596 | V68: 0 | AA68: 3.10 | AB68: 47 | AC68: =MMULT(AC67:AF67,AC$4:AF$7) -> 0.1090091977 | AD68: 0.03688857997 | AE68: 0.7381618628 | AF68: 0.1159403595 | AG68: 0.9019427057 | AH68: 41.64046875 | AI68: 16.11764242 | AJ68: 264.3123044 | AK68: 0 | AL68: 0.006710343462 | AM68: 0.001810517901 | AN68: -0.007600984997 | AO68: 0 | BA68: 60 | BB68: 15395.71716 | BC68: 0.9722034812 | BD68: 20938.10718 | BE68: 0.9812916366 | BJ68: 60 | BK68: 15395.71716 | BL68: 0.9722034812 | BM68: 20938.10718 | BN68: 0.9812916366 | BO68: 60 | BP68: 13770.38727 | BQ68: 8500.64192 | BR68: TxA | BX68: 59000 | BY68: 0.511 | BZ68: 0.489 | CA68: 31661.25292 | CB68: 29098.98594 | CC68: 0.511 | CG68: 60 | CH68: 5542.390018 | CI68: 0.009088155432 | CN68: -5496.949241 | CO68: -5451.508464 | CP68: -5406.067686 | CQ68: -5360.626909 | CR68: -5315.186132 | CS68: -5269.745355 | CT68: -5224.304578 | CU68: -5178.863801 | CV68: -5133.423023 | CW68: -5087.982246
H69: 3.11 | I69: 48 | J69: =MMULT(J68:M68,J$4:M$7) -> 0.0974317733 | K69: 0.03146780943 | L69: 0.7677372225 | M69: 0.1033631948 | N69: 0.9019427057 | O69: 5.406212029 | P69: 3.474815269 | Q69: 274.9023008 | R69: 0 | S69: 0.005997665121 | T69: 0.001544462604 | U69: -0.007905527776 | V69: 0 | AA69: 3.11 | AB69: 48 | AC69: =MMULT(AC68:AF68,AC$4:AF$7) -> 0.1049918787 | AD69: 0.03552912403 | AE69: 0.7407231151 | AF69: 0.1187558822 | AG69: 0.9019427057 | AH69: 40.1058914 | AI69: 15.52365847 | AJ69: 265.2294075 | AK69: 0 | AL69: 0.006463046988 | AM69: 0.001743794831 | AN69: -0.00762735867 | AO69: 0 | BA69: 61 | BB69: 14560.55294 | BC69: 0.5039352974 | BD69: 21630.70413 | BE69: 0.3635766063 | BJ69: 61 | BK69: 14560.55294 | BL69: 0.5039352974 | BM69: 21630.70413 | BN69: 0.3635766063 | BO69: 61 | BP69: 557.5059873 | BQ69: -10723.40595 | BR69: TxA | BX69: 60000 | BY69: 0.5092 | BZ69: 0.4908 | CA69: 32465.55473 | CB69: 29949.35495 | CC69: 0.5092 | CG69: 61 | CH69: 7070.1512 | CI69: -0.1403586912 | CN69: -7771.944655 | CO69: -8473.738111 | CP69: -9175.531567 | CQ69: -9877.325023 | CR69: -10579.11848 | CS69: -11280.91193 | CT69: -11982.70539 | CU69: -12684.49885 | CV69: -13386.2923 | CW69: -14088.08576
H70: 4.00 | I70: 49 | J70: =MMULT(J69:M69,J$4:M$7) -> 0.09388776481 | K70: 0.03032319106 | L70: 0.7697071178 | M70: 0.1060819263 | N70: 0.8714422277 | O70: 5.033396208 | P70: 3.235189783 | Q70: 266.287592 | R70: 0 | S70: 0.005584062319 | T70: 0.001437955474 | U70: -0.007657789508 | V70: 0 | AA70: 4.00 | AB70: 49 | AC70: =MMULT(AC69:AF69,AC$4:AF$7) -> 0.1011226101 | AD70: 0.03421976818 | AE70: 0.7430859776 | AF70: 0.1215716441 | AG70: 0.8714422277 | AH70: 37.32161146 | AI70: 14.44595616 | AJ70: 257.0777521 | AK70: 0 | AL70: 0.006014361485 | AM70: 0.001622734984 | AN70: -0.007392936705 | AO70: 0 | BA70: 62 | BB70: 15828.53219 | BC70: 0.6586805308 | BD70: 21443.65314 | BE70: 0.9529859844 | BJ70: 62 | BK70: 15828.53219 | BL70: 0.6586805308 | BM70: 21443.65314 | BN70: 0.9529859844 | BO70: 62 | BP70: 3931.883728 | BQ70: 7145.926395 | BR70: TxB | BX70: 61000 | BY70: 0.5073 | BZ70: 0.4927 | CA70: 33269.85653 | CB70: 30799.72396 | CC70: 0.5073 | CG70: 62 | CH70: 5615.120943 | CI70: 0.2943054537 | CN70: -4143.593675 | CO70: -2672.066406 | CP70: -1200.539138 | CQ70: 270.9881305 | CR70: 1742.515399 | CS70: 3214.042667 | CT70: 4685.569936 | CU70: 6157.097204 | CV70: 7628.624473 | CW70: 9100.151741
H71: 4.01 | I71: 50 | J71: =MMULT(J70:M70,J$4:M$7) -> 0.09047266697 | K71: 0.02922020738 | L71: 0.771500902 | M71: 0.1088062236 | N71: 0.8714422277 | O71: 4.850310153 | P71: 3.117512144 | Q71: 266.908169 | R71: 0 | S71: 0.005380946192 | T71: 0.001385650905 | U71: -0.007675635806 | V71: 0 | AA71: 4.01 | AB71: 50 | AC71: =MMULT(AC70:AF70,AC$4:AF$7) -> 0.0973959357 | AD71: 0.03295866607 | AE71: 0.745258125 | AF71: 0.1243872732 | AG71: 0.8714422277 | AH71: 35.94619707 | AI71: 13.91357892 | AJ71: 257.8292275 | AK71: 0 | AL71: 0.005792714053 | AM71: 0.001562932285 | AN71: -0.007414547325 | AO71: 0 | BA71: 63 | BB71: 15181.21938 | BC71: 0.7254903008 | BD71: 20683.62548 | BE71: 0.7476665447 | BJ71: 63 | BK71: 15181.21938 | BL71: 0.7254903008 | BM71: 20683.62548 | BN71: 0.7476665447 | BO71: 63 | BP71: 6583.489647 | BQ71: 1746.370867 | BR71: TxA | BX71: 62000 | BY71: 0.5054 | BZ71: 0.4946 | CA71: 34074.15833 | CB71: 31650.09297 | CC71: 0.5054 | CG71: 63 | CH71: 5502.406099 | CI71: 0.02217624396 | CN71: -5391.524879 | CO71: -5280.643659 | CP71: -5169.762439 | CQ71: -5058.88122 | CR71: -4948 | CS71: -4837.11878 | CT71: -4726.23756 | CU71: -4615.35634 | CV71: -4504.475121 | CW71: -4393.593901
H72: 4.02 | I72: 51 | J72: =MMULT(J71:M71,J$4:M$7) -> 0.08718179076 | K72: 0.02815734394 | L72: 0.7731253461 | M72: 0.1115355192 | N72: 0.8714422277 | O72: 4.673883716 | P72: 3.004114945 | Q72: 267.470161 | R72: 0 | S72: 0.005185218262 | T72: 0.001335248878 | U72: -0.007691797343 | V72: 0 | AA72: 4.02 | AB72: 51 | AC72: =MMULT(AC71:AF71,AC$4:AF$7) -> 0.09380660054 | AD72: 0.0317440394 | AE72: 0.7472469479 | AF72: 0.1272024121 | AG72: 0.8714422277 | AH72: 34.62147086 | AI72: 13.40082139 | AJ72: 258.5172799 | AK72: 0 | AL72: 0.005579234999 | AM72: 0.001505333497 | AN72: -0.007434334055 | AO72: 0 | BA72: 64 | BB72: 16484.01574 | BC72: 0.5625319856 | BD72: 21715.96941 | BE72: 0.3566743196 | BJ72: 64 | BK72: 16484.01574 | BL72: 0.5625319856 | BM72: 21715.96941 | BN72: 0.3566743196 | BO72: 64 | BP72: 391.9438247 | BQ72: -11015.73982 | BR72: TxA | BX72: 63000 | BY72: 0.5048 | BZ72: 0.4952 | CA72: 34878.46013 | CB72: 32500.46199 | CC72: 0.5048 | CG72: 64 | CH72: 5231.953665 | CI72: -0.205857666 | CN72: -6261.241995 | CO72: -7290.530325 | CP72: -8319.818655 | CQ72: -9349.106985 | CR72: -10378.39532 | CS72: -11407.68365 | CT72: -12436.97198 | CU72: -13466.26031 | CV72: -14495.54864 | CW72: -15524.83697
H73: 4.03 | I73: 52 | J73: =MMULT(J72:M72,J$4:M$7) -> 0.08401061773 | K73: 0.02713314138 | L73: 0.7745869732 | M73: 0.1142692677 | N73: 0.8714422277 | O73: 4.503874659 | P73: 2.894842486 | Q73: 267.975825 | R73: 0 | S73: 0.004996609791 | T73: 0.001286680188 | U73: -0.007706339022 | V73: 0 | AA73: 4.03 | AB73: 52 | AC73: =MMULT(AC72:AF72,AC$4:AF$7) -> 0.09034954325 | AD73: 0.03057417541 | AE73: 0.7490595632 | AF73: 0.1300167181 | AG73: 0.8714422277 | AH73: 33.34556482 | AI73: 12.90696054 | AJ73: 259.1443716 | AK73: 0 | AL73: 0.005373623294 | AM73: 0.001449857398 | AN73: -0.007452367701 | AO73: 0 | BA73: 65 | BB73: 16458.29002 | BC73: 0.513042169 | BD73: 21732.7527 | BE73: 0.3537251789 | BJ73: 65 | BK73: 16458.29002 | BL73: 0.513042169 | BM73: 21732.7527 | BN73: 0.3537251789 | BO73: 65 | BP73: =(BL73)*lambda-BK73 -> -1067.024949 | BQ73: =(BN73)*lambda-BM73 -> -11120.99733 | BR73: TxA | BX73: 64000 | BY73: 0.5038 | BZ73: 0.4962 | CA73: 35682.76193 | CB73: 33350.831 | CC73: 0.5038 | CG73: 65 | CH73: 5274.46268 | CI73: -0.1593169901 | CN73: -6071.047631 | CO73: -6867.632581 | CP73: -7664.217531 | CQ73: -8460.802482 | CR73: -9257.387432 | CS73: -10053.97238 | CT73: -10850.55733 | CU73: -11647.14228 | CV73: -12443.72723 | CW73: -13240.31218
H74: 4.04 | I74: 53 | J74: =MMULT(J73:M73,J$4:M$7) -> 0.08095479376 | K74: 0.02614619345 | L74: 0.7758920683 | M74: 0.1170069445 | N74: 0.8714422277 | O74: 4.340049556 | P74: 2.789544733 | Q74: 268.4273352 | R74: 0 | S74: 0.004814861812 | T74: 0.001239878149 | U74: -0.007719323367 | V74: 0 | AA74: 4.04 | AB74: 53 | AC74: =MMULT(AC73:AF73,AC$4:AF$7) -> 0.08701988899 | AD74: 0.02944742446 | AE74: 0.7507028242 | AF74: 0.1328298624 | AG74: 0.8714422277 | AH74: 32.11667978 | AI74: 12.43129996 | AJ74: 259.7128736 | AK74: 0 | AL74: 0.005175589004 | AM74: 0.001396425762 | AN74: -0.007468716448 | AO74: 0 | BA74: 66 | BB74: 11589.05499 | BC74: 2.311058597 | BD74: 21144.52179 | BE74: 1.491109896 | BJ74: 66 | BK74: 11589.05499 | BL74: 2.311058597 | BM74: 21144.52179 | BN74: 1.491109896 | BO74: 66 | BP74: 57742.70292 | BQ74: 23588.77508 | BR74: =IF(BP74>BQ74,"TxA",IF(BQ74>BP74,"TxB","either")) -> TxA | BX74: 65000 | BY74: 0.5023 | BZ74: 0.4977 | CA74: 36487.06373 | CB74: 34201.20001 | CC74: =IF(CA74>CB74,BY74,BZ74) -> 0.5023 | CG74: 66 | CH74: =BM74-BK74 -> 9555.466799 | CI74: -0.8199487015 | CN74: =$CI74*$CN$8-$CH74 -> -13655.21031 | CO74: =CI74*CO$8-CH74 -> -17754.95381 | CP74: =CI74*CP$8-CH74 -> -21854.69732 | CQ74: =CI74*CQ$8-CH74 -> -25954.44083 | CR74: =CI74*CR$8-CH74 -> -30054.18434 | CS74: =CI74*CS$8-CH74 -> -34153.92784 | CT74: =CI74*CT$8-CH74 -> -38253.67135 | CU74: =CI74*CU$8-CH74 -> -42353.41486 | CV74: =CI74*CV$8-CH74 -> -46453.15836 | CW74: =CI74*CW$8-CH74 -> -50552.90187
H75: 4.05 | I75: 54 | J75: =MMULT(J74:M74,J$4:M$7) -> 0.07801012312 | K75: 0.02519514502 | L75: 0.7770466862 | M75: 0.1197480457 | N75: 0.8714422277 | O75: 4.182183469 | P75: 2.688077109 | Q75: 268.8267864 | R75: 0 | S75: 0.004639724781 | T75: 0.001194778499 | U75: -0.00773081062 | V75: 0 | AA75: 4.05 | AB75: 54 | AC75: =MMULT(AC74:AF74,AC$4:AF$7) -> 0.08381294256 | AD75: 0.02836219769 | AE75: 0.7521833304 | AF75: 0.1356415293 | AG75: 0.8714422277 | AH75: 30.93308287 | AI75: 11.97316891 | AJ75: 260.225069 | AK75: 0 | AL75: 0.004984852876 | AM75: 0.001344963244 | AN75: -0.007483445954 | AO75: 0 | BA75: =1+BA74 -> 67 | BB75: 15715.04632 | BC75: 1.876961615 | BD75: 21569.05155 | BE75: 1.907068763 | BJ75: =1+BJ74 -> 67 | BK75: 15715.04632 | BL75: 1.876961615 | BM75: 21569.05155 | BN75: 1.907068763 | BO75: 67 | BP75: 40593.80213 | BQ75: 35643.01134 | BR75: TxA | BX75: 66000 | BY75: 0.501 | BZ75: 0.499 | CA75: 37291.36553 | CB75: 35051.56902 | CC75: 0.501 | CG75: 67 | CH75: 5854.005234 | CI75: 0.03010714805 | CN75: -5703.469494 | CO75: -5552.933754 | CP75: -5402.398013 | CQ75: -5251.862273 | CR75: -5101.326533 | CS75: -4950.790793 | CT75: -4800.255052 | CU75: -4649.719312 | CV75: -4499.183572 | CW75: -4348.647832
H76: 4.06 | I76: 55 | J76: =MMULT(J75:M75,J$4:M$7) -> 0.07517256269 | K76: 0.02427869028 | L76: 0.7780566603 | M76: 0.1224920868 | N76: 0.8714422277 | O76: 4.030059644 | P76: 2.590300295 | Q76: 269.1761967 | R76: 0 | S76: 0.00447095823 | T76: 0.001151319316 | U76: -0.007740858818 | V76: 0 | AA76: 4.06 | AB76: 55 | AC76: =MMULT(AC75:AF75,AC$4:AF$7) -> 0.08072418183 | AD76: 0.02731696482 | AE76: 0.7535074371 | AF76: 0.1384514163 | AG76: 0.8714422277 | AH76: 29.79310509 | AI76: 11.53192138 | AJ76: 260.6831564 | AK76: 0 | AL76: 0.004801145952 | AM76: 0.001295397276 | AN76: -0.007496619445 | AO76: 0 | BA76: 68 | BB76: 16284.74203 | BC76: 1.470643761 | BD76: 22071.15103 | BE76: 1.445022425 | BJ76: 68 | BK76: 16284.74203 | BL76: 1.470643761 | BM76: 22071.15103 | BN76: 1.445022425 | BO76: 68 | BP76: 27834.5708 | BQ76: 21279.52172 | BR76: TxA | BX76: 67000 | BY76: 0.4997 | BZ76: 0.5003 | CA76: 38095.66733 | CB76: 35901.93803 | CC76: 0.4997 | CG76: 68 | CH76: 5786.409003 | CI76: -0.02562133596 | CN76: -5914.515682 | CO76: -6042.622362 | CP76: -6170.729042 | CQ76: -6298.835722 | CR76: -6426.942402 | CS76: -6555.049082 | CT76: -6683.155761 | CU76: -6811.262441 | CV76: -6939.369121 | CW76: -7067.475801
H77: 4.07 | I77: 56 | J77: =MMULT(J76:M76,J$4:M$7) -> 0.07243821641 | K77: 0.0233955709 | L77: 0.7789276105 | M77: 0.1252386022 | N77: 0.8714422277 | O77: 3.88346921 | P77: 2.49608004 | Q77: 269.4775103 | R77: 0 | S77: 0.004308330436 | T77: 0.001109440928 | U77: -0.007749523872 | V77: 0 | AA77: 4.07 | AB77: 56 | AC77: =MMULT(AC76:AF76,AC$4:AF$7) -> 0.07774925128 | AD77: 0.02631025194 | AE77: 0.7546812637 | AF77: 0.1412592331 | AG77: 0.8714422277 | AH77: 28.69513895 | AI77: 11.10693515 | AJ77: 261.0892531 | AK77: 0 | AL77: 0.004624209185 | AM77: 0.001247657963 | AN77: -0.007508297805 | AO77: 0 | BA77: 69 | BB77: 13712.38847 | BC77: 1.048122681 | BD77: 19829.29196 | BE77: 0.7864477537 | BJ77: 69 | BK77: 13712.38847 | BL77: 1.048122681 | BM77: 19829.29196 | BN77: 0.7864477537 | BO77: 69 | BP77: 17731.29197 | BQ77: 3764.140648 | BR77: TxA | BX77: 68000 | BY77: 0.4983 | BZ77: 0.5017 | CA77: 38899.96913 | CB77: 36752.30704 | CC77: 0.4983 | CG77: 69 | CH77: 6116.903498 | CI77: -0.2616749276 | CN77: -7425.278135 | CO77: -8733.652773 | CP77: -10042.02741 | CQ77: -11350.40205 | CR77: -12658.77669 | CS77: -13967.15132 | CT77: -15275.52596 | CU77: -16583.9006 | CV77: -17892.27524 | CW77: -19200.64988
H78: 4.08 | I78: 57 | J78: =MMULT(J77:M77,J$4:M$7) -> 0.06980332996 | K78: 0.02254457434 | L78: 0.7796649513 | M78: 0.1279871444 | N78: 0.8714422277 | O78: 3.742210895 | P78: 2.405286977 | Q78: 269.7326005 | R78: 0 | S78: 0.004151618109 | T78: 0.001069085836 | U78: -0.007756859649 | V78: 0 | AA78: 4.08 | AB78: 57 | AC78: =MMULT(AC77:AF77,AC$4:AF$7) -> 0.07488395592 | AD78: 0.02534063948 | AE78: 0.7557107031 | AF78: 0.1440647015 | AG78: 0.8714422277 | AH78: 27.63763619 | AI78: 10.69761096 | AJ78: 261.4453976 | AK78: 0 | AL78: 0.004453793073 | AM78: 0.001201677989 | AN78: -0.007518539663 | AO78: 0 | BA78: 70 | BB78: 17851.94943 | BC78: 0.4785038376 | BD78: 21138.43692 | BE78: 0.8345611607 | BJ78: 70 | BK78: 17851.94943 | BL78: 0.4785038376 | BM78: 21138.43692 | BN78: 0.8345611607 | BO78: 70 | BP78: -3496.834301 | BQ78: 3898.397898 | BR78: TxB | BX78: 69000 | BY78: 0.4971 | BZ78: 0.5029 | CA78: 39704.27094 | CB78: 37602.67605 | CC78: 0.4971 | CG78: 70 | CH78: 3286.487492 | CI78: 0.3560573231 | CN78: -1506.200877 | CO78: 274.0857382 | CP78: 2054.372353 | CQ78: 3834.658969 | CR78: 5614.945584 | CS78: 7395.232199 | CT78: 9175.518815 | CU78: 10955.80543 | CV78: 12736.09205 | CW78: 14516.37866
H79: 4.09 | I79: 58 | J79: =MMULT(J78:M78,J$4:M$7) -> 0.06726428554 | K79: 0.02172453215 | L79: 0.7802738985 | M79: 0.1307372838 | N79: 0.8714422277 | O79: 3.606090746 | P79: 2.317796445 | Q79: 269.9432716 | R79: 0 | S79: 0.004000606076 | T79: 0.001030198631 | U79: -0.007762918045 | V79: 0 | AA79: 4.09 | AB79: 58 | AC79: =MMULT(AC78:AF78,AC$4:AF$7) -> 0.07212425538 | AD79: 0.02440676018 | AE79: 0.7566014299 | AF79: 0.1468675545 | AG79: 0.8714422277 | AH79: 26.6191056 | AI79: 10.3033716 | AJ79: 261.7535531 | AK79: 0 | AL79: 0.004289657312 | AM79: 0.001157392516 | AN79: -0.007527401473 | AO79: 0 | BA79: 71 | BB79: 15580.57803 | BC79: 1.432225379 | BD79: 21440.09832 | BE79: 1.487715944 | BJ79: 71 | BK79: 15580.57803 | BL79: 1.432225379 | BM79: 21440.09832 | BN79: 1.487715944 | BO79: 71 | BP79: 27386.18335 | BQ79: 23191.37999 | BR79: TxA | BX79: 70000 | BY79: 0.4962 | BZ79: 0.5038 | CA79: 40508.57274 | CB79: 38453.04506 | CC79: 0.4962 | CG79: 71 | CH79: 5859.520288 | CI79: 0.05549056438 | CN79: -5582.067466 | CO79: -5304.614644 | CP79: -5027.161822 | CQ79: -4749.709 | CR79: -4472.256178 | CS79: -4194.803356 | CT79: -3917.350534 | CU79: -3639.897712 | CV79: -3362.44489 | CW79: -3084.992068
H80: 4.10 | I80: 59 | J80: =MMULT(J79:M79,J$4:M$7) -> 0.06481759699 | K80: 0.02093431838 | L80: 0.7807594775 | M80: 0.1334886071 | N80: 0.8714422277 | O80: 3.474921867 | P80: 2.233488317 | Q80: 270.1112624 | R80: 0 | S80: 0.003855086994 | T80: 0.000992725919 | U80: -0.007767749053 | V80: 0 | AA80: 4.10 | AB80: 59 | AC80: =MMULT(AC79:AF79,AC$4:AF$7) -> 0.06946625816 | AD80: 0.02350729715 | AE80: 0.7573589081 | AF80: 0.1496675366 | AG80: 0.8714422277 | AH80: 25.63811095 | AI80: 9.923661152 | AJ80: 262.0156099 | AK80: 0 | AL80: 0.00413157045 | AM80: 0.001114739097 | AN80: -0.007534937597 | AO80: 0 | BA80: 72 | BB80: 13565.60757 | BC80: 1.702306691 | BD80: 21344.92281 | BE80: 0.8346906353 | BJ80: 72 | BK80: 13565.60757 | BL80: 1.702306691 | BM80: 21344.92281 | BN80: 0.8346906353 | BO80: 72 | BP80: 37503.59317 | BQ80: 3695.796247 | BR80: TxA | BX80: 71000 | BY80: 0.4951 | BZ80: 0.5049 | CA80: 41312.87454 | CB80: 39303.41407 | CC80: 0.4951 | CG80: 72 | CH80: 7779.315245 | CI80: -0.8676160558 | CN80: -12117.39552 | CO80: -16455.4758 | CP80: -20793.55608 | CQ80: -25131.63636 | CR80: -29469.71664 | CS80: -33807.79692 | CT80: -38145.8772 | CU80: -42483.95748 | CV80: -46822.03776 | CW80: -51160.11804
H81: 4.11 | I81: 60 | J81: =MMULT(J80:M80,J$4:M$7) -> 0.06245990492 | K81: 0.02017284806 | L81: 0.7811265292 | M81: 0.1362407178 | N81: 0.8714422277 | O81: 3.348524158 | P81: 2.152246834 | Q81: 270.2382474 | R81: 0 | S81: 0.00371486106 | T81: 0.0009566162491 | U81: -0.007771400838 | V81: 0 | AA81: 4.11 | AB81: 60 | AC81: =MMULT(AC80:AF80,AC$4:AF$7) -> 0.06690621619 | AD81: 0.02264098207 | AE81: 0.7579883991 | AF81: 0.1524644026 | AG81: 0.8714422277 | AH81: 24.69326892 | AI81: 9.557944187 | AJ81: 262.2333884 | AK81: 0 | AL81: 0.003979309567 | AM81: 0.001073657586 | AN81: -0.007541200381 | AO81: 0 | BA81: 73 | BB81: 20077.4824 | BC81: -0.9501546506 | BD81: 21716.59632 | BE81: 0.05061783606 | BJ81: 73 | BK81: 20077.4824 | BL81: -0.9501546506 | BM81: 21716.59632 | BN81: 0.05061783606 | BO81: 73 | BP81: -48582.12192 | BQ81: -20198.06124 | BR81: TxB | BX81: 72000 | BY81: 0.4941 | BZ81: 0.5059 | CA81: 42117.17634 | CB81: 40153.78308 | CC81: 0.4941 | CG81: 73 | CH81: 1639.113923 | CI81: 1.000772487 | CN81: 3364.74851 | CO81: 8368.610944 | CP81: 13372.47338 | CQ81: 18376.33581 | CR81: 23380.19824 | CS81: 28384.06068 | CT81: 33387.92311 | CU81: 38391.78554 | CV81: 43395.64798 | CW81: 48399.51041
H82: 5.00 | I82: 61 | J82: =MMULT(J81:M81,J$4:M$7) -> 0.06018797215 | K82: 0.01943907566 | L82: 0.7813797175 | M82: 0.1389932347 | N82: 0.8419731669 | O82: 3.117607799 | P82: 2.003826521 | Q82: 261.1843868 | R82: 0 | S82: 0.003458681876 | T82: 0.0008906473833 | U82: -0.007511033623 | V82: 0 | AA82: 5.00 | AB82: 61 | AC82: =MMULT(AC81:AF81,AC$4:AF$7) -> 0.06444051951 | AD82: 0.02180659332 | AE82: 0.7584949695 | AF82: 0.1552579177 | AG82: 0.8419731669 | AH82: 22.97898279 | AI82: 8.894400966 | AJ82: 253.5349191 | AK82: 0 | AL82: 0.003703053101 | AM82: 0.0009991208234 | AN82: -0.007291053364 | AO82: 0 | BA82: 74 | BB82: 15696.92231 | BC82: 0.754043837 | BD82: 21113.08444 | BE82: 0.8151882737 | BJ82: 74 | BK82: 15696.92231 | BL82: 0.754043837 | BM82: 21113.08444 | BN82: 0.8151882737 | BO82: 74 | BP82: 6924.392805 | BQ82: 3342.563772 | BR82: TxA | BX82: 73000 | BY82: 0.4934 | BZ82: 0.5066 | CA82: 42921.47814 | CB82: 41004.15209 | CC82: 0.4934 | CG82: 74 | CH82: 5416.162135 | CI82: 0.06114443673 | CN82: -5110.439951 | CO82: -4804.717768 | CP82: -4498.995584 | CQ82: -4193.2734 | CR82: -3887.551217 | CS82: -3581.829033 | CT82: -3276.106849 | CU82: -2970.384666 | CV82: -2664.662482 | CW82: -2358.940298
O83: SILENT | P83: ACTIVE | Q83: COMPL | R83: DEAD | S83: SILENT | T83: ACTIVE | U83: COMPL | V83: DEAD | AH83: SILENT | AI83: ACTIVE | AJ83: COMPL | AK83: DEAD | AL83: SILENT | AM83: ACTIVE | AN83: COMPL | AO83: DEAD | BA83: 75 | BB83: 14554.98088 | BC83: 1.75220509 | BD83: 21872.83449 | BE83: 1.424387714 | BJ83: 75 | BK83: 14554.98088 | BL83: 1.75220509 | BM83: 21872.83449 | BN83: 1.424387714 | BO83: 75 | BP83: 38011.17183 | BQ83: 20858.79693 | BR83: TxA | BX83: 74000 | BY83: 0.4926 | BZ83: 0.5074 | CA83: 43725.77994 | CB83: 41854.5211 | CC83: 0.4926 | CG83: 75 | CH83: 7317.853612 | CI83: -0.3278173761 | CN83: -8956.940493 | CO83: -10596.02737 | CP83: -12235.11425 | CQ83: -13874.20113 | CR83: -15513.28801 | CS83: -17152.37489 | CT83: -18791.46177 | CU83: -20430.54866 | CV83: -22069.63554 | CW83: -23708.72242
F84: NO CORRECTION | H84: TOTALS | J84: =SUM(J22:J81) -> 12.11972449 | K84: =SUM(K22:K81) -> 6.628274918 | L84: 37.5968807 | M84: 3.655119886 | O84: =SUM(O22:O81) -> 713.0304377 | P84: 790.5170052 | Q84: 13785.19516 | R84: 0 | S84: 0.7910377476 | T84: 0.3513637007 | U84: -0.3964289964 | V84: 0 | AA84: TOTALS | AC84: =SUM(AC22:AC81) -> 13.28713023 | AD84: =SUM(AD22:AD81) -> 7.111256912 | AE84: 35.29915253 | AF84: 4.30246033 | AH84: =SUM(AH22:AH81) -> 5384.261222 | AI84: 3350.675242 | AJ84: 12921.8036 | AK84: 0 | AL84: 0.8676713585 | AM84: 0.3763861579 | AN84: -0.3715999355 | AO84: 0 | BA84: 76 | BB84: 12289.72769 | BC84: 1.293760265 | BD84: 20673.00375 | BE84: 0.7730444065 | BJ84: 76 | BK84: 12289.72769 | BL84: 1.293760265 | BM84: 20673.00375 | BN84: 0.7730444065 | BO84: 76 | BP84: 26523.08025 | BQ84: 2518.328446 | BR84: TxA | BX84: 75000 | BY84: 0.4914 | BZ84: 0.5086 | CA84: 44530.08174 | CB84: 42704.89011 | CC84: 0.4914 | CG84: 76 | CH84: 8383.276058 | CI84: -0.520715858 | CN84: -10986.85535 | CO84: -13590.43464 | CP84: -16194.01393 | CQ84: -18797.59322 | CR84: -21401.17251 | CS84: -24004.7518 | CT84: -26608.33109 | CU84: -29211.91038 | CV84: -31815.48967 | CW84: -34419.06896
BA85: 77 | BB85: 15888.12074 | BC85: 1.356197065 | BD85: 20192.97393 | BE85: 1.064433762 | BJ85: 77 | BK85: 15888.12074 | BL85: 1.356197065 | BM85: 20192.97393 | BN85: 1.064433762 | BO85: 77 | BP85: 24797.7912 | BQ85: 11740.03894 | BR85: TxA | BX85: 76000 | BY85: 0.4906 | BZ85: 0.5094 | CA85: 45334.38354 | CB85: 43555.25912 | CC85: 0.4906 | CG85: 77 | CH85: 4304.853193 | CI85: -0.2917633023 | CN85: -5763.669705 | CO85: -7222.486216 | CP85: -8681.302728 | CQ85: -10140.11924 | CR85: -11598.93575 | CS85: -13057.75226 | CT85: -14516.56878 | CU85: -15975.38529 | CV85: -17434.2018 | CW85: -18893.01831
Q86: TOTAL COST | R86: =O84+P84+Q84+R84 -> 15288.7426 | U86: TOTAL OUTCOME | V86: =S84+T84+U84+V84 -> 0.745972452 | AJ86: TOTAL COST | AK86: =AH84+AI84+AJ84+AK84 -> 21656.74006 | AN86: TOTAL OUTCOME | AO86: =AL84+AM84+AN84+AO84 -> 0.8724575809 | BA86: 78 | BB86: 17290.87999 | BC86: -0.2085361067 | BD86: 20827.72072 | BE86: 0.458611508 | BJ86: 78 | BK86: 17290.87999 | BL86: -0.2085361067 | BM86: 20827.72072 | BN86: 0.458611508 | BO86: 78 | BP86: -23546.96319 | BQ86: -7069.375477 | BR86: TxB | BX86: 77000 | BY86: 0.4894 | BZ86: 0.5106 | CA86: 46138.68534 | CB86: 44405.62813 | CC86: 0.4894 | CG86: 78 | CH86: 3536.840726 | CI86: 0.6671476147 | CN86: -201.1026522 | CO86: 3134.635421 | CP86: 6470.373495 | CQ86: 9806.111569 | CR86: 13141.84964 | CS86: 16477.58772 | CT86: 19813.32579 | CU86: 23149.06386 | CV86: 26484.80194 | CW86: 29820.54001
BA87: 79 | BB87: 18161.53814 | BC87: 0.05106665268 | BD87: 21416.40962 | BE87: 0.3795957803 | BJ87: 79 | BK87: 18161.53814 | BL87: 0.05106665268 | BM87: 21416.40962 | BN87: 0.3795957803 | BO87: 79 | BP87: -16629.53856 | BQ87: -10028.53621 | BR87: TxB | BX87: 78000 | BY87: 0.4886 | BZ87: 0.5114 | CA87: 46942.98714 | CB87: 45255.99714 | CC87: 0.4886 | CG87: 79 | CH87: 3254.871473 | CI87: 0.3285291276 | CN87: -1612.225835 | CO87: 30.41980261 | CP87: 1673.06544 | CQ87: 3315.711078 | CR87: 4958.356716 | CS87: 6601.002354 | CT87: 8243.647992 | CU87: 9886.29363 | CV87: 11528.93927 | CW87: 13171.58491
BA88: 80 | BB88: 18238.4104 | BC88: 1.091819582 | BD88: 21318.40182 | BE88: 1.419987186 | BJ88: 80 | BK88: 18238.4104 | BL88: 1.091819582 | BM88: 21318.40182 | BN88: 1.419987186 | BO88: 80 | BP88: 14516.17705 | BQ88: 21281.21376 | BR88: TxB | BX88: 79000 | BY88: 0.4879 | BZ88: 0.5121 | CA88: 47747.28895 | CB88: 46106.36615 | CC88: 0.4879 | CG88: 80 | CH88: 3079.991426 | CI88: 0.3281676046 | CN88: -1439.153404 | CO88: 201.6846192 | CP88: 1842.522642 | CQ88: 3483.360665 | CR88: 5124.198688 | CS88: 6765.03671 | CT88: 8405.874733 | CU88: 10046.71276 | CV88: 11687.55078 | CW88: 13328.3888
O89: SILENT | P89: ACTIVE | Q89: COMPL | R89: DEAD | S89: SILENT | T89: ACTIVE | U89: COMPL | V89: DEAD | AH89: SILENT | AI89: ACTIVE | AJ89: COMPL | AK89: DEAD | AL89: SILENT | AM89: ACTIVE | AN89: COMPL | AO89: DEAD | BA89: 81 | BB89: 10370.8731 | BC89: 2.246765105 | BD89: 21216.38783 | BE89: 1.133497931 | BJ89: 81 | BK89: 10370.8731 | BL89: 2.246765105 | BM89: 21216.38783 | BN89: 1.133497931 | BO89: 81 | BP89: 57032.08003 | BQ89: 12788.55011 | BR89: TxA | BX89: 80000 | BY89: 0.4866 | BZ89: 0.5134 | CA89: 48551.59075 | CB89: 46956.73516 | CC89: 0.4866 | CG89: 81 | CH89: 10845.51473 | CI89: -1.113267173 | CN89: -16411.8506 | CO89: -21978.18646 | CP89: -27544.52233 | CQ89: -33110.8582 | CR89: -38677.19406 | CS89: -44243.52993 | CT89: -49809.8658 | CU89: -55376.20166 | CV89: -60942.53753 | CW89: -66508.8734
F90: HALF CYCLE CORRECTION | H90: TOTALS | J90: =0.5*J22+SUM(J23:J81)+0.5*J82 -> 12.14981848 | K90: =0.5*K22+SUM(K23:K81)+0.5*K82 -> 6.137994456 | L90: 37.98757056 | M90: 3.724616504 | O90: 714.5892416 | P90: 730.3041426 | Q90: 13915.78735 | R90: 0 | S90: =0.5*S22+SUM(S23:S81)+0.5*S82 -> 0.7927670886 | T90: =0.5*T22+SUM(T23:T81)+0.5*T82 -> 0.3246006911 | U90: =0.5*U22+SUM(U23:U81)+0.5*U82 -> -0.4001845132 | V90: =0.5*V22+SUM(V23:V81)+0.5*V82 -> 0 | AA90: TOTALS | AC90: =0.5*AC22+SUM(AC23:AC81)+0.5*AC82 -> 13.31935049 | AD90: =0.5*AD22+SUM(AD23:AD81)+0.5*AD82 -> 6.622160208 | AE90: 35.67840001 | AF90: 4.380089289 | AH90: 5395.750713 | AI90: 3112.907666 | AJ90: 13048.57106 | AK90: 0 | AL90: =0.5*AL22+SUM(AL23:AL81)+0.5*AL82 -> 0.8695228851 | AM90: =0.5*AM22+SUM(AM23:AM81)+0.5*AM82 -> 0.349677385 | AN90: -0.3752454622 | AO90: 0 | BA90: 82 | BB90: 14503.67121 | BC90: 0.9738560176 | BD90: 19811.366 | BE90: 0.9977996924 | BJ90: 82 | BK90: 14503.67121 | BL90: 0.9738560176 | BM90: 19811.366 | BN90: 0.9977996924 | BO90: 82 | BP90: 14712.00932 | BQ90: 10122.62477 | BR90: TxA | BX90: 81000 | BY90: 0.4855 | BZ90: 0.5145 | CA90: 49355.89255 | CB90: 47807.10417 | CC90: 0.4855 | CG90: 82 | CH90: 5307.694791 | CI90: 0.02394367478 | CN90: -5187.976417 | CO90: -5068.258044 | CP90: -4948.53967 | CQ90: -4828.821296 | CR90: -4709.102922 | CS90: -4589.384548 | CT90: -4469.666174 | CU90: -4349.9478 | CV90: -4230.229426 | CW90: -4110.511052
BA91: 83 | BB91: 15223.1849 | BC91: 0.1223909098 | BD91: 20482.67374 | BE91: 0.3243350695 | BJ91: 83 | BK91: 15223.1849 | BL91: 0.1223909098 | BM91: 20482.67374 | BN91: 0.3243350695 | BO91: 83 | BP91: -11551.45761 | BQ91: -10752.62166 | BR91: TxB | BX91: 82000 | BY91: 0.485 | BZ91: 0.515 | CA91: 50160.19435 | CB91: 48657.47318 | CC91: 0.485 | CG91: 83 | CH91: 5259.488841 | CI91: 0.2019441597 | CN91: -4249.768043 | CO91: -3240.047244 | CP91: -2230.326446 | CQ91: -1220.605647 | CR91: -210.8848486 | CS91: 798.8359499 | CT91: 1808.556748 | CU91: 2818.277547 | CV91: 3827.998346 | CW91: 4837.719144
Q92: TOTAL COST | R92: =O90+P90+Q90+R90 -> 15360.68074 | U92: TOTAL OUTCOME | V92: =S90+T90+U90+V90 -> 0.7171832665 | AJ92: TOTAL COST | AK92: =AH90+AI90+AJ90+AK90 -> 21557.22944 | AN92: TOTAL OUTCOME | AO92: =AL90+AM90+AN90+AO90 -> 0.8439548079 | BA92: 84 | BB92: 13456.14617 | BC92: 1.366166623 | BD92: 21647.72762 | BE92: 1.011735755 | BJ92: 84 | BK92: 13456.14617 | BL92: 1.366166623 | BM92: 21647.72762 | BN92: 1.011735755 | BO92: 84 | BP92: 27528.85252 | BQ92: 8704.345016 | BR92: TxA | BX92: 83000 | BY92: 0.4846 | BZ92: 0.5154 | CA92: 50964.49615 | CB92: 49507.84219 | CC92: 0.4846 | CG92: 84 | CH92: 8191.581452 | CI92: -0.3544308684 | CN92: -9963.735794 | CO92: -11735.89014 | CP92: -13508.04448 | CQ92: -15280.19882 | CR92: -17052.35316 | CS92: -18824.5075 | CT92: -20596.66185 | CU92: -22368.81619 | CV92: -24140.97053 | CW92: -25913.12487
BA93: 85 | BB93: 15162.7469 | BC93: 1.25803878 | BD93: 21027.58025 | BE93: 1.159010198 | BJ93: 85 | BK93: 15162.7469 | BL93: 1.25803878 | BM93: 21027.58025 | BN93: 1.159010198 | BO93: 85 | BP93: 22578.41649 | BQ93: 13742.72569 | BR93: TxA | BX93: 84000 | BY93: 0.4839 | BZ93: 0.5161 | CA93: 51768.79795 | CB93: 50358.2112 | CC93: 0.4839 | CG93: 85 | CH93: 5864.833352 | CI93: -0.09902858157 | CN93: -6359.97626 | CO93: -6855.119168 | CP93: -7350.262076 | CQ93: -7845.404983 | CR93: -8340.547891 | CS93: -8835.690799 | CT93: -9330.833707 | CU93: -9825.976615 | CV93: -10321.11952 | CW93: -10816.26243
BA94: 86 | BB94: 14237.183 | BC94: 1.514010742 | BD94: 21615.47904 | BE94: 0.9434227532 | BJ94: 86 | BK94: 14237.183 | BL94: 1.514010742 | BM94: 21615.47904 | BN94: 0.9434227532 | BO94: 86 | BP94: 31183.13927 | BQ94: 6687.203554 | BR94: TxA | BX94: 85000 | BY94: 0.4833 | BZ94: 0.5167 | CA94: 52573.09975 | CB94: 51208.58021 | CC94: 0.4833 | CG94: 86 | CH94: 7378.296044 | CI94: -0.570587989 | CN94: -10231.23599 | CO94: -13084.17593 | CP94: -15937.11588 | CQ94: -18790.05582 | CR94: -21642.99577 | CS94: -24495.93571 | CT94: -27348.87566 | CU94: -30201.8156 | CV94: -33054.75555 | CW94: -35907.6955
BA95: 87 | BB95: 14787.32329 | BC95: 0.795107565 | BD95: 21318.31149 | BE95: 0.4945842002 | BJ95: 87 | BK95: 14787.32329 | BL95: 0.795107565 | BM95: 21318.31149 | BN95: 0.4945842002 | BO95: 87 | BP95: 9065.903659 | BQ95: -6480.785486 | BR95: TxA | BX95: 86000 | BY95: 0.4823 | BZ95: 0.5177 | CA95: 53377.40155 | CB95: 52058.94922 | CC95: 0.4823 | CG95: 87 | CH95: 6530.988201 | CI95: -0.3005233648 | CN95: -8033.605025 | CO95: -9536.221849 | CP95: -11038.83867 | CQ95: -12541.4555 | CR95: -14044.07232 | CS95: -15546.68915 | CT95: -17049.30597 | CU95: -18551.92279 | CV95: -20054.53962 | CW95: -21557.15644
BA96: 88 | BB96: 14970.95337 | BC96: -0.6534920631 | BD96: 20559.76208 | BE96: -0.5879555852 | BJ96: 88 | BK96: 14970.95337 | BL96: -0.6534920631 | BM96: 20559.76208 | BN96: -0.5879555852 | BO96: 88 | BP96: -34575.71526 | BQ96: -38198.42964 | BR96: TxA | BX96: 87000 | BY96: 0.4818 | BZ96: 0.5182 | CA96: 54181.70335 | CB96: 52909.31823 | CC96: 0.4818 | CG96: 88 | CH96: 5588.808717 | CI96: 0.06553647788 | CN96: -5261.126328 | CO96: -4933.443939 | CP96: -4605.761549 | CQ96: -4278.07916 | CR96: -3950.396771 | CS96: -3622.714381 | CT96: -3295.031992 | CU96: -2967.349602 | CV96: -2639.667213 | CW96: -2311.984824
BA97: 89 | BB97: 16918.07695 | BC97: -0.2688434791 | BD97: 21381.91162 | BE97: 0.4173085742 | BJ97: 89 | BK97: 16918.07695 | BL97: -0.2688434791 | BM97: 21381.91162 | BN97: 0.4173085742 | BO97: 89 | BP97: -24983.38133 | BQ97: -8862.654391 | BR97: TxB | BX97: 88000 | BY97: 0.4812 | BZ97: 0.5188 | CA97: 54986.00515 | CB97: 53759.68724 | CC97: 0.4812 | CG97: 89 | CH97: 4463.834663 | CI97: 0.6861520533 | CN97: -1033.074397 | CO97: 2397.685869 | CP97: 5828.446136 | CQ97: 9259.206402 | CR97: 12689.96667 | CS97: 16120.72693 | CT97: 19551.4872 | CU97: 22982.24747 | CV97: 26413.00773 | CW97: 29843.768
BA98: 90 | BB98: 17145.95825 | BC98: 1.204530075 | BD98: 21173.29846 | BE98: 1.294752154 | BJ98: 90 | BK98: 17145.95825 | BL98: 1.204530075 | BM98: 21173.29846 | BN98: 1.294752154 | BO98: 90 | BP98: 18989.94399 | BQ98: 17669.26616 | BR98: TxA | BX98: 89000 | BY98: 0.4801 | BZ98: 0.5199 | CA98: 55790.30696 | CB98: 54610.05626 | CC98: 0.4801 | CG98: 90 | CH98: 4027.340217 | CI98: 0.09022207947 | CN98: -3576.22982 | CO98: -3125.119423 | CP98: -2674.009025 | CQ98: -2222.898628 | CR98: -1771.788231 | CS98: -1320.677833 | CT98: -869.5674358 | CU98: -418.4570385 | CV98: 32.65335883 | CW98: 483.7637562
BA99: 91 | BB99: 17044.85185 | BC99: 1.376390455 | BD99: 21810.54486 | BE99: 1.631007115 | BJ99: 91 | BK99: 17044.85185 | BL99: 1.376390455 | BM99: 21810.54486 | BN99: 1.631007115 | BO99: 91 | BP99: 24246.86181 | BQ99: 27119.6686 | BR99: TxB | BX99: 90000 | BY99: 0.4797 | BZ99: 0.5203 | CA99: 56594.60876 | CB99: 55460.42527 | CC99: 0.4797 | CG99: 91 | CH99: 4765.693008 | CI99: 0.2546166597 | CN99: -3492.609709 | CO99: -2219.52641 | CP99: -946.4431115 | CQ99: 326.6401872 | CR99: 1599.723486 | CS99: 2872.806785 | CT99: 4145.890083 | CU99: 5418.973382 | CV99: 6692.056681 | CW99: 7965.139979
BA100: 92 | BB100: 17783.32297 | BC100: 0.5626400836 | BD100: 20968.71902 | BE100: 0.8201628726 | BJ100: 92 | BK100: 17783.32297 | BL100: 0.5626400836 | BM100: 20968.71902 | BN100: 0.8201628726 | BO100: 92 | BP100: -904.1204652 | BQ100: 3636.167158 | BR100: TxB | BX100: 91000 | BY100: 0.4792 | BZ100: 0.5208 | CA100: 57398.91056 | CB100: 56310.79428 | CC100: 0.4792 | CG100: 92 | CH100: 3185.396049 | CI100: 0.2575227891 | CN100: -1897.782103 | CO100: -610.1681579 | CP100: 677.4457875 | CQ100: 1965.059733 | CR100: 3252.673678 | CS100: 4540.287624 | CT100: 5827.901569 | CU100: 7115.515514 | CV100: 8403.12946 | CW100: 9690.743405
BA101: 93 | BB101: 17298.41447 | BC101: 0.6879934164 | BD101: 20836.76444 | BE101: 1.057333123 | BJ101: 93 | BK101: 17298.41447 | BL101: 0.6879934164 | BM101: 20836.76444 | BN101: 1.057333123 | BO101: 93 | BP101: 3341.388018 | BQ101: 10883.22925 | BR101: TxB | BX101: 92000 | BY101: 0.479 | BZ101: 0.521 | CA101: 58203.21236 | CB101: 57161.16329 | CC101: 0.479 | CG101: 93 | CH101: 3538.34997 | CI101: 0.3693397068 | CN101: -1691.651436 | CO101: 155.0470986 | CP101: 2001.745633 | CQ101: 3848.444167 | CR101: 5695.142701 | CS101: 7541.841235 | CT101: 9388.539769 | CU101: 11235.2383 | CV101: 13081.93684 | CW101: 14928.63537
BA102: 94 | BB102: 13636.65696 | BC102: 0.8842385925 | BD102: 21345.41217 | BE102: 0.6346006715 | BJ102: 94 | BK102: 13636.65696 | BL102: 0.8842385925 | BM102: 21345.41217 | BN102: 0.6346006715 | BO102: 94 | BP102: 12890.50081 | BQ102: -2307.392022 | BR102: TxA | BX102: 93000 | BY102: 0.4789 | BZ102: 0.5211 | CA102: 59007.51416 | CB102: 58011.5323 | CC102: 0.4789 | CG102: 94 | CH102: 7708.755206 | CI102: -0.249637921 | CN102: -8956.944811 | CO102: -10205.13442 | CP102: -11453.32402 | CQ102: -12701.51363 | CR102: -13949.70323 | CS102: -15197.89284 | CT102: -16446.08244 | CU102: -17694.27205 | CV102: -18942.46165 | CW102: -20190.65126
BA103: 95 | BB103: 14324.9515 | BC103: 0.8519956844 | BD103: 20393.99353 | BE103: 0.5069000823 | BJ103: 95 | BK103: 14324.9515 | BL103: 0.8519956844 | BM103: 20393.99353 | BN103: 0.5069000823 | BO103: 95 | BP103: 11234.91903 | BQ103: -5186.991058 | BR103: TxA | BX103: 94000 | BY103: 0.4785 | BZ103: 0.5215 | CA103: 59811.81596 | CB103: 58861.90131 | CC103: 0.4785 | CG103: 95 | CH103: 6069.042026 | CI103: -0.3450956021 | CN103: -7794.520036 | CO103: -9519.998047 | CP103: -11245.47606 | CQ103: -12970.95407 | CR103: -14696.43208 | CS103: -16421.91009 | CT103: -18147.3881 | CU103: -19872.86611 | CV103: -21598.34412 | CW103: -23323.82213
BA104: 96 | BB104: 16500.69002 | BC104: 0.3942406246 | BD104: 21181.58195 | BE104: 0.6355561855 | BJ104: 96 | BK104: 16500.69002 | BL104: 0.3942406246 | BM104: 21181.58195 | BN104: 0.6355561855 | BO104: 96 | BP104: -4673.471276 | BQ104: -2114.896387 | BR104: TxB | BX104: 95000 | BY104: 0.478 | BZ104: 0.522 | CA104: 60616.11776 | CB104: 59712.27032 | CC104: 0.478 | CG104: 96 | CH104: 4680.891936 | CI104: 0.2413155608 | CN104: -3474.314132 | CO104: -2267.736327 | CP104: -1061.158523 | CQ104: 145.4192808 | CR104: 1351.997085 | CS104: 2558.574889 | CT104: 3765.152693 | CU104: 4971.730497 | CV104: 6178.308301 | CW104: 7384.886105
BA105: 97 | BB105: 17325.04476 | BC105: 0.5039765564 | BD105: 21303.08489 | BE105: 0.6670828098 | BJ105: 97 | BK105: 17325.04476 | BL105: 0.5039765564 | BM105: 21303.08489 | BN105: 0.6670828098 | BO105: 97 | BP105: -2205.748064 | BQ105: -1290.600598 | BR105: TxB | BX105: 96000 | BY105: 0.4777 | BZ105: 0.5223 | CA105: 61420.41956 | CB105: 60562.63933 | CC105: 0.4777 | CG105: 97 | CH105: 3978.040134 | CI105: 0.1631062533 | CN105: -3162.508867 | CO105: -2346.977601 | CP105: -1531.446334 | CQ105: -715.9150673 | CR105: 99.6161994 | CS105: 915.1474661 | CT105: 1730.678733 | CU105: 2546.21 | CV105: 3361.741266 | CW105: 4177.272533
BA106: 98 | BB106: 15958.39278 | BC106: 1.306577926 | BD106: 20509.09387 | BE106: 1.512368467 | BJ106: 98 | BK106: 15958.39278 | BL106: 1.306577926 | BM106: 20509.09387 | BN106: 1.512368467 | BO106: 98 | BP106: 23238.94499 | BQ106: 24861.96013 | BR106: TxB | BX106: 97000 | BY106: 0.4771 | BZ106: 0.5229 | CA106: 62224.72136 | CB106: 61413.00834 | CC106: 0.4771 | CG106: 98 | CH106: 4550.701095 | CI106: 0.205790541 | CN106: -3521.748389 | CO106: -2492.795684 | CP106: -1463.842979 | CQ106: -434.8902738 | CR106: 594.0624314 | CS106: 1623.015137 | CT106: 2651.967842 | CU106: 3680.920547 | CV106: 4709.873252 | CW106: 5738.825957
BA107: 99 | BB107: 17565.78687 | BC107: 0.3117244469 | BD107: 21543.32365 | BE107: 0.8230682237 | BJ107: 99 | BK107: 17565.78687 | BL107: 0.3117244469 | BM107: 21543.32365 | BN107: 0.8230682237 | BO107: 99 | BP107: -8214.053466 | BQ107: 3148.723057 | BR107: TxB | BX107: 98000 | BY107: 0.4765 | BZ107: 0.5235 | CA107: 63029.02316 | CB107: 62263.37735 | CC107: 0.4765 | CG107: 99 | CH107: 3977.53678 | CI107: 0.5113437768 | CN107: -1420.817896 | CO107: 1135.900988 | CP107: 3692.619872 | CQ107: 6249.338755 | CR107: 8806.057639 | CS107: 11362.77652 | CT107: 13919.49541 | CU107: 16476.21429 | CV107: 19032.93318 | CW107: 21589.65206
BA108: 100 | BB108: 18394.17708 | BC108: 0.4755197418 | BD108: 21347.01778 | BE108: 0.7826912185 | BJ108: 100 | BK108: 18394.17708 | BL108: 0.4755197418 | BM108: 21347.01778 | BN108: 0.7826912185 | BO108: 100 | BP108: -4128.584823 | BQ108: 2133.71878 | BR108: TxB | BX108: 99000 | BY108: 0.476 | BZ108: 0.524 | CA108: 63833.32497 | CB108: 63113.74636 | CC108: 0.476 | CG108: 100 | CH108: 2952.840701 | CI108: 0.3071714768 | CN108: -1416.983317 | CO108: 118.8740671 | CP108: 1654.731451 | CQ108: 3190.588835 | CR108: 4726.446219 | CS108: 6262.303603 | CT108: 7798.160987 | CU108: 9334.018371 | CV108: 10869.87575 | CW108: 12405.73314
BA109: 101 | BB109: 15509.99341 | BC109: 0.8038303376 | BD109: 21409.45984 | BE109: 0.8431547602 | BJ109: 101 | BK109: 15509.99341 | BL109: 0.8038303376 | BM109: 21409.45984 | BN109: 0.8431547602 | BO109: 101 | BP109: 8604.916712 | BQ109: 3885.182964 | BR109: TxA | BX109: 100000 | BY109: 0.4751 | BZ109: 0.5249 | CA109: 64637.62677 | CB109: 63964.11537 | CC109: 0.4751 | CG109: 101 | CH109: 5899.466427 | CI109: 0.03932442263 | CN109: -5702.844314 | CO109: -5506.222201 | CP109: -5309.600087 | CQ109: -5112.977974 | CR109: -4916.355861 | CS109: -4719.733748 | CT109: -4523.111635 | CU109: -4326.489522 | CV109: -4129.867409 | CW109: -3933.245296
BA110: 102 | BB110: 15105.07002 | BC110: 0.6237052285 | BD110: 21383.40224 | BE110: 0.7282241904 | BJ110: 102 | BK110: 15105.07002 | BL110: 0.6237052285 | BM110: 21383.40224 | BN110: 0.7282241904 | BO110: 102 | BP110: 3606.086834 | BQ110: 463.3234707 | BR110: TxA | BX110: 101000 | BY110: 0.4746 | BZ110: 0.5254 | CA110: 65441.92857 | CB110: 64814.48438 | CC110: 0.4746 | CG110: 102 | CH110: 6278.332219 | CI110: 0.1045189619 | CN110: -5755.73741 | CO110: -5233.142601 | CP110: -4710.547791 | CQ110: -4187.952982 | CR110: -3665.358172 | CS110: -3142.763363 | CT110: -2620.168554 | CU110: -2097.573744 | CV110: -1574.978935 | CW110: -1052.384125
BA111: 103 | BB111: 18697.14761 | BC111: -0.4985014124 | BD111: 21456.80524 | BE111: 0.1790848486 | BJ111: 103 | BK111: 18697.14761 | BL111: -0.4985014124 | BM111: 21456.80524 | BN111: 0.1790848486 | BO111: 103 | BP111: -33652.18999 | BQ111: -16084.25978 | BR111: TxB | BX111: 102000 | BY111: 0.4743 | BZ111: 0.5257 | CA111: 66246.23037 | CB111: 65664.85339 | CC111: 0.4743 | CG111: 103 | CH111: 2759.657623 | CI111: 0.677586261 | CN111: 628.273682 | CO111: 4016.204987 | CP111: 7404.136292 | CQ111: 10792.0676 | CR111: 14179.9989 | CS111: 17567.93021 | CT111: 20955.86151 | CU111: 24343.79282 | CV111: 27731.72412 | CW111: 31119.65543
BA112: 104 | BB112: 14780.43132 | BC112: 1.083273353 | BD112: 21445.43229 | BE112: 0.7032143239 | BJ112: 104 | BK112: 14780.43132 | BL112: 1.083273353 | BM112: 21445.43229 | BN112: 0.7032143239 | BO112: 104 | BP112: 17717.76927 | BQ112: -349.0025687 | BR112: TxA | BX112: 103000 | BY112: 0.4742 | BZ112: 0.5258 | CA112: 67050.53217 | CB112: 66515.2224 | CC112: 0.4742 | CG112: 104 | CH112: 6665.000967 | CI112: -0.3800590289 | CN112: -8565.296112 | CO112: -10465.59126 | CP112: -12365.8864 | CQ112: -14266.18155 | CR112: -16166.47669 | CS112: -18066.77183 | CT112: -19967.06698 | CU112: -21867.36212 | CV112: -23767.65727 | CW112: -25667.95241
BA113: 105 | BB113: 15727.61098 | BC113: 0.9028542573 | BD113: 20073.59273 | BE113: 0.7310751041 | BJ113: 105 | BK113: 15727.61098 | BL113: 0.9028542573 | BM113: 20073.59273 | BN113: 0.7310751041 | BO113: 105 | BP113: 11358.01674 | BQ113: 1858.660389 | BR113: TxA | BX113: 104000 | BY113: 0.4737 | BZ113: 0.5263 | CA113: 67854.83397 | CB113: 67365.59141 | CC113: 0.4737 | CG113: 105 | CH113: 4345.981758 | CI113: -0.1717791533 | CN113: -5204.877524 | CO113: -6063.77329 | CP113: -6922.669057 | CQ113: -7781.564823 | CR113: -8640.460589 | CS113: -9499.356356 | CT113: -10358.25212 | CU113: -11217.14789 | CV113: -12076.04365 | CW113: -12934.93942
BA114: 106 | BB114: 14435.83563 | BC114: -0.5311835834 | BD114: 20448.00731 | BE114: -0.3525868621 | BJ114: 106 | BK114: 14435.83563 | BL114: -0.5311835834 | BM114: 20448.00731 | BN114: -0.3525868621 | BO114: 106 | BP114: -30371.34313 | BQ114: -31025.61317 | BR114: TxA | BX114: 105000 | BY114: 0.4733 | BZ114: 0.5267 | CA114: 68659.13577 | CB114: 68215.96042 | CC114: 0.4733 | CG114: 106 | CH114: 6012.171674 | CI114: 0.1785967213 | CN114: -5119.188067 | CO114: -4226.204461 | CP114: -3333.220855 | CQ114: -2440.237249 | CR114: -1547.253642 | CS114: -654.2700359 | CT114: 238.7135704 | CU114: 1131.697177 | CV114: 2024.680783 | CW114: 2917.664389
BA115: 107 | BB115: 14206.44506 | BC115: 1.955601215 | BD115: 22209.54703 | BE115: 0.97681149 | BJ115: 107 | BK115: 14206.44506 | BL115: 1.955601215 | BM115: 22209.54703 | BN115: 0.97681149 | BO115: 107 | BP115: 44461.59141 | BQ115: 7094.797672 | BR115: TxA | BX115: 106000 | BY115: 0.4726 | BZ115: 0.5274 | CA115: 69463.43757 | CB115: 69066.32943 | CC115: 0.4726 | CG115: 107 | CH115: 8003.101969 | CI115: -0.9787897255 | CN115: -12897.0506 | CO115: -17790.99922 | CP115: -22684.94785 | CQ115: -27578.89648 | CR115: -32472.84511 | CS115: -37366.79373 | CT115: -42260.74236 | CU115: -47154.69099 | CV115: -52048.63962 | CW115: -56942.58824
BA116: 108 | BB116: 17268.19739 | BC116: 1.075429566 | BD116: 20806.3306 | BE116: 1.244448537 | BJ116: 108 | BK116: 17268.19739 | BL116: 1.075429566 | BM116: 20806.3306 | BN116: 1.244448537 | BO116: 108 | BP116: 14994.68959 | BQ116: 16527.12552 | BR116: TxB | BX116: 107000 | BY116: 0.4722 | BZ116: 0.5278 | CA116: 70267.73937 | CB116: 69916.69844 | CC116: 0.4722 | CG116: 108 | CH116: 3538.133211 | CI116: 0.1690189713 | CN116: -2693.038354 | CO116: -1847.943498 | CP116: -1002.848642 | CQ116: -157.7537857 | CR116: 687.3410706 | CS116: 1532.435927 | CT116: 2377.530783 | CU116: 3222.625639 | CV116: 4067.720496 | CW116: 4912.815352
BA117: 109 | BB117: 16439.20474 | BC117: 0.6390009319 | BD117: 21402.93991 | BE117: 0.8047711854 | BJ117: 109 | BK117: 16439.20474 | BL117: 0.6390009319 | BM117: 21402.93991 | BN117: 0.8047711854 | BO117: 109 | BP117: 2730.823218 | BQ117: 2740.195656 | BR117: TxB | BX117: 108000 | BY117: 0.472 | BZ117: 0.528 | CA117: 71072.04117 | CB117: 70767.06745 | CC117: 0.472 | CG117: 109 | CH117: 4963.735169 | CI117: 0.1657702536 | CN117: -4134.883902 | CO117: -3306.032634 | CP117: -2477.181366 | CQ117: -1648.330098 | CR117: -819.4788301 | CS117: 9.37243775 | CT117: 838.2237056 | CU117: 1667.074973 | CV117: 2495.926241 | CW117: 3324.777509
BA118: 110 | BB118: 16754.03491 | BC118: 1.52344508 | BD118: 21669.67737 | BE118: 1.621704198 | BJ118: 110 | BK118: 16754.03491 | BL118: 1.52344508 | BM118: 21669.67737 | BN118: 1.621704198 | BO118: 110 | BP118: 28949.31749 | BQ118: 26981.44857 | BR118: TxA | BX118: 109000 | BY118: 0.4718 | BZ118: 0.5282 | CA118: 71876.34298 | CB118: 71617.43646 | CC118: 0.4718 | CG118: 110 | CH118: 4915.642455 | CI118: 0.09825911753 | CN118: -4424.346868 | CO118: -3933.05128 | CP118: -3441.755692 | CQ118: -2950.460105 | CR118: -2459.164517 | CS118: -1967.868929 | CT118: -1476.573342 | CU118: -985.277754 | CV118: -493.9821664 | CW118: -2.686578704
BA119: 111 | BB119: 16285.94868 | BC119: 0.07672816118 | BD119: 20798.96505 | BE119: 0.2644018527 | BJ119: 111 | BK119: 16285.94868 | BL119: 0.07672816118 | BM119: 20798.96505 | BN119: 0.2644018527 | BO119: 111 | BP119: -13984.10385 | BQ119: -12866.90947 | BR119: TxB | BX119: 110000 | BY119: 0.4714 | BZ119: 0.5286 | CA119: 72680.64478 | CB119: 72467.80547 | CC119: 0.4714 | CG119: 111 | CH119: 4513.016366 | CI119: 0.1876736916 | CN119: -3574.647908 | CO119: -2636.279451 | CP119: -1697.910993 | CQ119: -759.5425351 | CR119: 178.8259227 | CS119: 1117.19438 | CT119: 2055.562838 | CU119: 2993.931296 | CV119: 3932.299754 | CW119: 4870.668212
BA120: 112 | BB120: 18232.30777 | BC120: 0.3432846315 | BD120: 21441.77248 | BE120: 1.004447579 | BJ120: 112 | BK120: 18232.30777 | BL120: 0.3432846315 | BM120: 21441.77248 | BN120: 1.004447579 | BO120: 112 | BP120: -7933.768827 | BQ120: 8691.654896 | BR120: TxB | BX120: 111000 | BY120: 0.4712 | BZ120: 0.5288 | CA120: 73484.94658 | CB120: 73318.17448 | CC120: 0.4712 | CG120: 112 | CH120: 3209.464709 | CI120: 0.6611629477 | CN120: 96.35003008 | CO120: 3402.164769 | CP120: 6707.979507 | CQ120: 10013.79425 | CR120: 13319.60898 | CS120: 16625.42372 | CT120: 19931.23846 | CU120: 23237.0532 | CV120: 26542.86794 | CW120: 29848.68268
BA121: 113 | BB121: 16760.04021 | BC121: 0.9579795975 | BD121: 21062.02063 | BE121: 1.191182182 | BJ121: 113 | BK121: 16760.04021 | BL121: 0.9579795975 | BM121: 21062.02063 | BN121: 1.191182182 | BO121: 113 | BP121: 11979.34771 | BQ121: 14673.44483 | BR121: TxB | BX121: 112000 | BY121: 0.4707 | BZ121: 0.5293 | CA121: 74289.24838 | CB121: 74168.54349 | CC121: 0.4707 | CG121: 113 | CH121: 4301.980418 | CI121: 0.2332025843 | CN121: -3135.967497 | CO121: -1969.954575 | CP121: -803.9416535 | CQ121: 362.071268 | CR121: 1528.08419 | CS121: 2694.097111 | CT121: 3860.110033 | CU121: 5026.122954 | CV121: 6192.135876 | CW121: 7358.148797
BA122: 114 | BB122: 16386.01819 | BC122: 0.7691101546 | BD122: 20691.03953 | BE122: 1.009305831 | BJ122: 114 | BK122: 16386.01819 | BL122: 0.7691101546 | BM122: 20691.03953 | BN122: 1.009305831 | BO122: 114 | BP122: 6687.286445 | BQ122: 9588.135394 | BR122: TxB | BX122: 113000 | BY122: 0.47 | BZ122: 0.53 | CA122: 75093.55018 | CB122: 75018.9125 | CC122: 0.47 | CG122: 114 | CH122: 4305.021341 | CI122: 0.2401956763 | CN122: -3104.042959 | CO122: -1903.064578 | CP122: -702.0861959 | CQ122: 498.8921857 | CR122: 1699.870567 | CS122: 2900.848949 | CT122: 4101.827331 | CU122: 5302.805712 | CV122: 6503.784094 | CW122: 7704.762475
BA123: 115 | BB123: 17879.13628 | BC123: 0.06637979352 | BD123: 21272.96029 | BE123: 0.5515201128 | BJ123: 115 | BK123: 17879.13628 | BL123: 0.06637979352 | BM123: 21272.96029 | BN123: 0.5515201128 | BO123: 115 | BP123: -15887.74247 | BQ123: -4727.35691 | BR123: TxB | BX123: 114000 | BY123: 0.4697 | BZ123: 0.5303 | CA123: 75897.85198 | CB123: 75869.28152 | CC123: 0.4697 | CG123: 115 | CH123: 3393.824019 | CI123: 0.4851403193 | CN123: -968.122422 | CO123: 1457.579175 | CP123: 3883.280771 | CQ123: 6308.982368 | CR123: 8734.683964 | CS123: 11160.38556 | CT123: 13586.08716 | CU123: 16011.78875 | CV123: 18437.49035 | CW123: 20863.19195
BA124: 116 | BB124: 13598.60095 | BC124: 1.532097277 | BD124: 20679.10157 | BE124: 1.202091671 | BJ124: 116 | BK124: 13598.60095 | BL124: 1.532097277 | BM124: 20679.10157 | BN124: 1.202091671 | BO124: 116 | BP124: 32364.31735 | BQ124: 15383.64856 | BR124: TxA | BX124: 115000 | BY124: 0.469 | BZ124: 0.531 | CA124: 76702.15378 | CB124: 76719.65053 | CC124: 0.531 | CG124: 116 | CH124: 7080.50062 | CI124: -0.3300056056 | CN124: -8730.528648 | CO124: -10380.55668 | CP124: -12030.5847 | CQ124: -13680.61273 | CR124: -15330.64076 | CS124: -16980.66879 | CT124: -18630.69682 | CU124: -20280.72485 | CV124: -21930.75287 | CW124: -23580.7809
BA125: 117 | BB125: 12756.31825 | BC125: 1.312461639 | BD125: 20733.44925 | BE125: 0.7131779843 | BJ125: 117 | BK125: 12756.31825 | BL125: 1.312461639 | BM125: 20733.44925 | BN125: 0.7131779843 | BO125: 117 | BP125: 26617.53091 | BQ125: 661.8902826 | BR125: TxA | BX125: 116000 | BY125: 0.4682 | BZ125: 0.5318 | CA125: 77506.45558 | CB125: 77570.01954 | CC125: 0.5318 | CG125: 117 | CH125: 7977.130998 | CI125: -0.5992836543 | CN125: -10973.54927 | CO125: -13969.96754 | CP125: -16966.38581 | CQ125: -19962.80408 | CR125: -22959.22236 | CS125: -25955.64063 | CT125: -28952.0589 | CU125: -31948.47717 | CV125: -34944.89544 | CW125: -37941.31371
BA126: 118 | BB126: 14614.50635 | BC126: 0.5760009298 | BD126: 21033.85501 | BE126: 0.6778557779 | BJ126: 118 | BK126: 14614.50635 | BL126: 0.5760009298 | BM126: 21033.85501 | BN126: 0.6778557779 | BO126: 118 | BP126: 2665.521548 | BQ126: -698.1816759 | BR126: TxA | BX126: 117000 | BY126: 0.4678 | BZ126: 0.5322 | CA126: 78310.75738 | CB126: 78420.38855 | CC126: 0.5322 | CG126: 118 | CH126: 6419.348666 | CI126: 0.101854848 | CN126: -5910.074425 | CO126: -5400.800185 | CP126: -4891.525945 | CQ126: -4382.251705 | CR126: -3872.977464 | CS126: -3363.703224 | CT126: -2854.428984 | CU126: -2345.154744 | CV126: -1835.880504 | CW126: -1326.606263
BA127: 119 | BB127: 13571.61497 | BC127: 1.450068202 | BD127: 21146.39495 | BE127: 0.9247150892 | BJ127: 119 | BK127: 13571.61497 | BL127: 1.450068202 | BM127: 21146.39495 | BN127: 0.9247150892 | BO127: 119 | BP127: 29930.43109 | BQ127: 6595.057731 | BR127: TxA | BX127: 118000 | BY127: 0.4675 | BZ127: 0.5325 | CA127: 79115.05918 | CB127: 79270.75756 | CC127: 0.5325 | CG127: 119 | CH127: 7574.779976 | CI127: -0.5253531128 | CN127: -10201.54554 | CO127: -12828.3111 | CP127: -15455.07667 | CQ127: -18081.84223 | CR127: -20708.6078 | CS127: -23335.37336 | CT127: -25962.13892 | CU127: -28588.90449 | CV127: -31215.67005 | CW127: -33842.43561
BA128: 120 | BB128: 18740.44439 | BC128: 1.377871345 | BD128: 21816.52892 | BE128: 1.683194014 | BJ128: 120 | BK128: 18740.44439 | BL128: 1.377871345 | BM128: 21816.52892 | BN128: 1.683194014 | BO128: 120 | BP128: 22595.69596 | BQ128: 28679.2915 | BR128: TxB | BX128: 119000 | BY128: 0.4673 | BZ128: 0.5327 | CA128: 79919.36099 | CB128: 80121.12657 | CC128: 0.5327 | CG128: 120 | CH128: 3076.084533 | CI128: 0.3053226692 | CN128: -1549.471187 | CO128: -22.85784102 | CP128: 1503.755505 | CQ128: 3030.368851 | CR128: 4556.982196 | CS128: 6083.595542 | CT128: 7610.208888 | CU128: 9136.822234 | CV128: 10663.43558 | CW128: 12190.04893
BA129: 121 | BB129: 16069.76153 | BC129: 0.7743706723 | BD129: 21516.09173 | BE129: 0.7016818713 | BJ129: 121 | BK129: 16069.76153 | BL129: 0.7743706723 | BM129: 21516.09173 | BN129: 0.7016818713 | BO129: 121 | BP129: 7161.35864 | BQ129: -465.6355882 | BR129: TxA | BX129: 120000 | BY129: 0.4673 | BZ129: 0.5327 | CA129: 80723.66279 | CB129: 80971.49558 | CC129: 0.5327 | CG129: 121 | CH129: 5446.330196 | CI129: -0.07268880108 | CN129: -5809.774202 | CO129: -6173.218207 | CP129: -6536.662212 | CQ129: -6900.106218 | CR129: -7263.550223 | CS129: -7626.994229 | CT129: -7990.438234 | CU129: -8353.88224 | CV129: -8717.326245 | CW129: -9080.77025
BA130: 122 | BB130: 16555.25235 | BC130: 0.5149261665 | BD130: 21017.46928 | BE130: 0.8316095598 | BJ130: 122 | BK130: 16555.25235 | BL130: 0.5149261665 | BM130: 21017.46928 | BN130: 0.8316095598 | BO130: 122 | BP130: -1107.46736 | BQ130: 3930.817508 | BR130: TxB | BX130: 121000 | BY130: 0.4666 | BZ130: 0.5334 | CA130: 81527.96459 | CB130: 81821.86459 | CC130: 0.5334 | CG130: 122 | CH130: 4462.21693 | CI130: 0.3166833933 | CN130: -2878.799964 | CO130: -1295.382997 | CP130: 288.0339691 | CQ130: 1871.450936 | CR130: 3454.867902 | CS130: 5038.284868 | CT130: 6621.701835 | CU130: 8205.118801 | CV130: 9788.535768 | CW130: 11371.95273
BA131: 123 | BB131: 14990.07689 | BC131: 0.662962098 | BD131: 21769.74484 | BE131: 0.5720952988 | BJ131: 123 | BK131: 14990.07689 | BL131: 0.662962098 | BM131: 21769.74484 | BN131: 0.5720952988 | BO131: 123 | BP131: 4898.786055 | BQ131: -4606.885878 | BR131: TxA | BX131: 122000 | BY131: 0.4663 | BZ131: 0.5337 | CA131: 82332.26639 | CB131: 82672.2336 | CC131: 0.5337 | CG131: 123 | CH131: 6779.667956 | CI131: -0.09086679923 | CN131: -7234.001952 | CO131: -7688.335948 | CP131: -8142.669944 | CQ131: -8597.003941 | CR131: -9051.337937 | CS131: -9505.671933 | CT131: -9960.005929 | CU131: -10414.33993 | CV131: -10868.67392 | CW131: -11323.00792
BA132: 124 | BB132: 16593.14506 | BC132: -0.1801209268 | BD132: 21258.18901 | BE132: -0.2550186133 | BJ132: 124 | BK132: 16593.14506 | BL132: -0.1801209268 | BM132: 21258.18901 | BN132: -0.2550186133 | BO132: 124 | BP132: -21996.77286 | BQ132: -28908.7474 | BR132: TxA | BX132: 123000 | BY132: 0.4663 | BZ132: 0.5337 | CA132: 83136.56819 | CB132: 83522.60261 | CC132: 0.5337 | CG132: 124 | CH132: 4665.043949 | CI132: -0.07489768651 | CN132: -5039.532381 | CO132: -5414.020814 | CP132: -5788.509246 | CQ132: -6162.997679 | CR132: -6537.486111 | CS132: -6911.974544 | CT132: -7286.462977 | CU132: -7660.951409 | CV132: -8035.439842 | CW132: -8409.928274
BA133: 125 | BB133: 15808.93075 | BC133: 1.21730802 | BD133: 21776.26037 | BE133: 1.027485781 | BJ133: 125 | BK133: 15808.93075 | BL133: 1.21730802 | BM133: 21776.26037 | BN133: 1.027485781 | BO133: 125 | BP133: 20710.30983 | BQ133: 9048.31306 | BR133: TxA | BX133: 124000 | BY133: 0.4662 | BZ133: 0.5338 | CA133: 83940.86999 | CB133: 84372.97162 | CC133: 0.5338 | CG133: 125 | CH133: 5967.329621 | CI133: -0.1898222384 | CN133: -6916.440813 | CO133: -7865.552005 | CP133: -8814.663197 | CQ133: -9763.774389 | CR133: -10712.88558 | CS133: -11661.99677 | CT133: -12611.10796 | CU133: -13560.21916 | CV133: -14509.33035 | CW133: -15458.44154
BA134: 126 | BB134: 16914.58216 | BC134: 0.956299852 | BD134: 21147.59823 | BE134: 1.232004081 | BJ134: 126 | BK134: 16914.58216 | BL134: 0.956299852 | BM134: 21147.59823 | BN134: 1.232004081 | BO134: 126 | BP134: 11774.4134 | BQ134: 15812.52421 | BR134: TxB | BX134: 125000 | BY134: 0.466 | BZ134: 0.534 | CA134: 84745.17179 | CB134: 85223.34063 | CC134: 0.534 | CG134: 126 | CH134: 4233.016068 | CI134: 0.2757042292 | CN134: -2854.494922 | CO134: -1475.973776 | CP134: -97.45262964 | CQ134: 1281.068516 | CR134: 2659.589663 | CS134: 4038.110809 | CT134: 5416.631955 | CU134: 6795.153101 | CV134: 8173.674247 | CW134: 9552.195393
BA135: 127 | BB135: 17916.43417 | BC135: 0.5809572555 | BD135: 20985.70034 | BE135: 0.7725992217 | BJ135: 127 | BK135: 17916.43417 | BL135: 0.5809572555 | BM135: 20985.70034 | BN135: 0.7725992217 | BO135: 127 | BP135: -487.7165085 | BQ135: 2192.276313 | BR135: TxB | BX135: 126000 | BY135: 0.4658 | BZ135: 0.5342 | CA135: 85549.47359 | CB135: 86073.70964 | CC135: 0.5342 | CG135: 127 | CH135: 3069.266164 | CI135: 0.1916419662 | CN135: -2111.056333 | CO135: -1152.846502 | CP135: -194.636671 | CQ135: 763.57316 | CR135: 1721.782991 | CS135: 2679.992822 | CT135: 3638.202653 | CU135: 4596.412484 | CV135: 5554.622315 | CW135: 6512.832146
BA136: 128 | BB136: 17952.68692 | BC136: 0.4786473957 | BD136: 20575.89602 | BE136: 0.7682030023 | BJ136: 128 | BK136: 17952.68692 | BL136: 0.4786473957 | BM136: 20575.89602 | BN136: 0.7682030023 | BO136: 128 | BP136: -3593.265051 | BQ136: 2470.194048 | BR136: TxB | BX136: 127000 | BY136: 0.4656 | BZ136: 0.5344 | CA136: 86353.77539 | CB136: 86924.07865 | CC136: 0.5344 | CG136: 128 | CH136: 2623.209097 | CI136: 0.2895556065 | CN136: -1175.431064 | CO136: 272.3469686 | CP136: 1720.125001 | CQ136: 3167.903034 | CR136: 4615.681067 | CS136: 6063.459099 | CT136: 7511.237132 | CU136: 8959.015164 | CV136: 10406.7932 | CW136: 11854.57123
BA137: 129 | BB137: 13834.0315 | BC137: 0.9915390742 | BD137: 21488.05881 | BE137: 0.4745582277 | BJ137: 129 | BK137: 13834.0315 | BL137: 0.9915390742 | BM137: 21488.05881 | BN137: 0.4745582277 | BO137: 129 | BP137: =(BL137)*lambda-BK137 -> 15912.14072 | BQ137: =(BN137)*lambda-BM137 -> -7251.311982 | BR137: TxA | BX137: 128000 | BY137: 0.4654 | BZ137: 0.5346 | CA137: 87158.07719 | CB137: 87774.44766 | CC137: 0.5346 | CG137: 129 | CH137: 7654.027308 | CI137: -0.5169808465 | CN137: -10238.93154 | CO137: -12823.83577 | CP137: -15408.74001 | CQ137: -17993.64424 | CR137: -20578.54847 | CS137: -23163.4527 | CT137: -25748.35694 | CU137: -28333.26117 | CV137: -30918.1654 | CW137: -33503.06963
BA138: 130 | BB138: 14132.88677 | BC138: 1.089745555 | BD138: 20372.34363 | BE138: 0.8461407196 | BJ138: 130 | BK138: 14132.88677 | BL138: 1.089745555 | BM138: 20372.34363 | BN138: 0.8461407196 | BO138: 130 | BP138: 18559.47988 | BQ138: 5011.877959 | BR138: =IF(BP138>BQ138,"TxA",IF(BQ138>BP138,"TxB","either")) -> TxA | BX138: 129000 | BY138: 0.4648 | BZ138: 0.5352 | CA138: 87962.379 | CB138: 88624.81667 | CC138: =IF(CA138>CB138,BY138,BZ138) -> 0.5352 | CG138: 130 | CH138: =BM138-BK138 -> 6239.456858 | CI138: -0.2436048355 | CN138: =$CI138*$CN$8-$CH138 -> -7457.481035 | CO138: =CI138*CO$8-CH138 -> -8675.505213 | CP138: =CI138*CP$8-CH138 -> -9893.52939 | CQ138: =CI138*CQ$8-CH138 -> -11111.55357 | CR138: =CI138*CR$8-CH138 -> -12329.57775 | CS138: =CI138*CS$8-CH138 -> -13547.60192 | CT138: =CI138*CT$8-CH138 -> -14765.6261 | CU138: =CI138*CU$8-CH138 -> -15983.65028 | CV138: =CI138*CV$8-CH138 -> -17201.67446 | CW138: =CI138*CW$8-CH138 -> -18419.69863
BA139: =1+BA138 -> 131 | BB139: 16655.63571 | BC139: 0.9212237538 | BD139: 21439.63756 | BE139: 1.259155387 | BJ139: =1+BJ138 -> 131 | BK139: 16655.63571 | BL139: 0.9212237538 | BM139: 21439.63756 | BN139: 1.259155387 | BO139: 131 | BP139: 10981.0769 | BQ139: 16335.02406 | BR139: TxB | BX139: 130000 | BY139: 0.4646 | BZ139: 0.5354 | CA139: 88766.6808 | CB139: 89475.18568 | CC139: 0.5354 | CG139: 131 | CH139: 4784.001847 | CI139: 0.3379316333 | CN139: -3094.34368 | CO139: -1404.685514 | CP139: 284.9726525 | CQ139: 1974.630819 | CR139: 3664.288985 | CS139: 5353.947152 | CT139: 7043.605318 | CU139: 8733.263485 | CV139: 10422.92165 | CW139: 12112.57982
BA140: 132 | BB140: 14573.76651 | BC140: 0.9229745228 | BD140: 20198.22879 | BE140: 0.7801127788 | BJ140: 132 | BK140: 14573.76651 | BL140: 0.9229745228 | BM140: 20198.22879 | BN140: 0.7801127788 | BO140: 132 | BP140: 13115.46917 | BQ140: 3205.154572 | BR140: TxA | BX140: 131000 | BY140: 0.4645 | BZ140: 0.5355 | CA140: 89570.9826 | CB140: 90325.55469 | CC140: 0.5355 | CG140: 132 | CH140: 5624.46228 | CI140: -0.142861744 | CN140: -6338.770999 | CO140: -7053.079719 | CP140: -7767.388439 | CQ140: -8481.697159 | CR140: -9196.005879 | CS140: -9910.314598 | CT140: -10624.62332 | CU140: -11338.93204 | CV140: -12053.24076 | CW140: -12767.54948
BA141: 133 | BB141: 14997.75969 | BC141: 0.849198988 | BD141: 20189.52559 | BE141: 0.9192481723 | BJ141: 133 | BK141: 14997.75969 | BL141: 0.849198988 | BM141: 20189.52559 | BN141: 0.9192481723 | BO141: 133 | BP141: 10478.20994 | BQ141: 7387.919583 | BR141: TxA | BX141: 132000 | BY141: 0.4642 | BZ141: 0.5358 | CA141: 90375.2844 | CB141: 91175.9237 | CC141: 0.5358 | CG141: 133 | CH141: 5191.765892 | CI141: 0.07004918438 | CN141: -4841.519971 | CO141: -4491.274049 | CP141: -4141.028127 | CQ141: -3790.782205 | CR141: -3440.536283 | CS141: -3090.290361 | CT141: -2740.044439 | CU141: -2389.798517 | CV141: -2039.552595 | CW141: -1689.306674
BA142: 134 | BB142: 17736.36292 | BC142: -0.1849708591 | BD142: 21026.46403 | BE142: 0.600304494 | BJ142: 134 | BK142: 17736.36292 | BL142: -0.1849708591 | BM142: 21026.46403 | BN142: 0.600304494 | BO142: 134 | BP142: -23285.4887 | BQ142: -3017.329213 | BR142: TxB | BX142: 133000 | BY142: 0.4639 | BZ142: 0.5361 | CA142: 91179.5862 | CB142: 92026.29271 | CC142: 0.5361 | CG142: 134 | CH142: 3290.101109 | CI142: 0.7852753531 | CN142: 636.2756559 | CO142: 4562.652421 | CP142: 8489.029187 | CQ142: 12415.40595 | CR142: 16341.78272 | CS142: 20268.15948 | CT142: 24194.53625 | CU142: 28120.91301 | CV142: 32047.28978 | CW142: 35973.66654
BA143: 135 | BB143: 17099.379 | BC143: 0.5141379857 | BD143: 21710.01511 | BE143: 0.4210988565 | BJ143: 135 | BK143: 17099.379 | BL143: 0.5141379857 | BM143: 21710.01511 | BN143: 0.4210988565 | BO143: 135 | BP143: -1675.239435 | BQ143: -9077.049414 | BR143: TxA | BX143: 134000 | BY143: 0.4638 | BZ143: 0.5362 | CA143: 91983.888 | CB143: 92876.66172 | CC143: 0.5362 | CG143: 135 | CH143: 4610.636105 | CI143: -0.09303912914 | CN143: -5075.831751 | CO143: -5541.027397 | CP143: -6006.223042 | CQ143: -6471.418688 | CR143: -6936.614334 | CS143: -7401.80998 | CT143: -7867.005625 | CU143: -8332.201271 | CV143: -8797.396917 | CW143: -9262.592562
BA144: 136 | BB144: 14160.21857 | BC144: 0.4346811157 | BD144: 21116.61727 | BE144: 0.2770974276 | BJ144: 136 | BK144: 14160.21857 | BL144: 0.4346811157 | BM144: 21116.61727 | BN144: 0.2770974276 | BO144: 136 | BP144: -1119.785097 | BQ144: -12803.69444 | BR144: TxA | BX144: 135000 | BY144: 0.4632 | BZ144: 0.5368 | CA144: 92788.1898 | CB144: 93727.03073 | CC144: 0.5368 | CG144: 136 | CH144: 6956.398699 | CI144: -0.1575836882 | CN144: -7744.31714 | CO144: -8532.23558 | CP144: -9320.154021 | CQ144: -10108.07246 | CR144: -10895.9909 | CS144: -11683.90934 | CT144: -12471.82778 | CU144: -13259.74623 | CV144: -14047.66467 | CW144: -14835.58311
BA145: 137 | BB145: 16185.38028 | BC145: 0.3404467271 | BD145: 21514.35685 | BE145: 0.4947510057 | BJ145: 137 | BK145: 16185.38028 | BL145: 0.3404467271 | BM145: 21514.35685 | BN145: 0.4947510057 | BO145: 137 | BP145: -5971.978465 | BQ145: -6671.826673 | BR145: TxA | BX145: 136000 | BY145: 0.4629 | BZ145: 0.5371 | CA145: 93592.4916 | CB145: 94577.39974 | CC145: 0.5371 | CG145: 137 | CH145: 5328.976569 | CI145: 0.1543042787 | CN145: -4557.455175 | CO145: -3785.933782 | CP145: -3014.412388 | CQ145: -2242.890995 | CR145: -1471.369601 | CS145: -699.848208 | CT145: 71.67318548 | CU145: 843.194579 | CV145: 1614.715972 | CW145: 2386.237366
BA146: 138 | BB146: 18314.68452 | BC146: 0.4495836707 | BD146: 21482.39174 | BE146: 0.7961809632 | BJ146: 138 | BK146: 18314.68452 | BL146: 0.4495836707 | BM146: 21482.39174 | BN146: 0.7961809632 | BO146: 138 | BP146: -4827.174394 | BQ146: 2403.037156 | BR146: TxB | BX146: 137000 | BY146: 0.4627 | BZ146: 0.5373 | CA146: 94396.7934 | CB146: 95427.76875 | CC146: 0.5373 | CG146: 138 | CH146: 3167.707226 | CI146: 0.3465972925 | CN146: -1434.720763 | CO146: 298.2656995 | CP146: 2031.252162 | CQ146: 3764.238625 | CR146: 5497.225087 | CS146: 7230.21155 | CT146: 8963.198012 | CU146: 10696.18447 | CV146: 12429.17094 | CW146: 14162.1574
BA147: 139 | BB147: 15671.17363 | BC147: 0.5349953091 | BD147: 21002.41019 | BE147: 0.7353845913 | BJ147: 139 | BK147: 15671.17363 | BL147: 0.5349953091 | BM147: 21002.41019 | BN147: 0.7353845913 | BO147: 139 | BP147: 378.6856442 | BQ147: 1059.127553 | BR147: TxB | BX147: 138000 | BY147: 0.4627 | BZ147: 0.5373 | CA147: 95201.0952 | CB147: 96278.13776 | CC147: 0.5373 | CG147: 139 | CH147: 5331.236556 | CI147: 0.2003892822 | CN147: -4329.290145 | CO147: -3327.343734 | CP147: -2325.397324 | CQ147: -1323.450913 | CR147: -321.5045022 | CS147: 680.4419086 | CT147: 1682.388319 | CU147: 2684.33473 | CV147: 3686.281141 | CW147: 4688.227552
BA148: 140 | BB148: 16420.67469 | BC148: 0.8985330965 | BD148: 21272.65036 | BE148: 1.030993686 | BJ148: 140 | BK148: 16420.67469 | BL148: 0.8985330965 | BM148: 21272.65036 | BN148: 1.030993686 | BO148: 140 | BP148: 10535.3182 | BQ148: 9657.160207 | BR148: TxA | BX148: 139000 | BY148: 0.4627 | BZ148: 0.5373 | CA148: 96005.39701 | CB148: 97128.50677 | CC148: 0.5373 | CG148: 140 | CH148: 4851.975667 | CI148: 0.1324605892 | CN148: -4189.672721 | CO148: -3527.369775 | CP148: -2865.066829 | CQ148: -2202.763883 | CR148: -1540.460938 | CS148: -878.1579917 | CT148: -215.8550459 | CU148: 446.4479 | CV148: 1108.750846 | CW148: 1771.053792
BA149: 141 | BB149: 13386.28963 | BC149: 1.180540297 | BD149: 20924.90942 | BE149: 0.6917016958 | BJ149: 141 | BK149: 13386.28963 | BL149: 1.180540297 | BM149: 20924.90942 | BN149: 0.6917016958 | BO149: 141 | BP149: 22029.91927 | BQ149: -173.8585494 | BR149: TxA | BX149: 140000 | BY149: 0.4625 | BZ149: 0.5375 | CA149: 96809.69881 | CB149: 97978.87579 | CC149: 0.5375 | CG149: 141 | CH149: 7538.619794 | CI149: -0.4888386009 | CN149: -9982.812799 | CO149: -12427.0058 | CP149: -14871.19881 | CQ149: -17315.39181 | CR149: -19759.58482 | CS149: -22203.77782 | CT149: -24647.97083 | CU149: -27092.16383 | CV149: -29536.35683 | CW149: -31980.54984
BA150: 142 | BB150: 16810.23197 | BC150: 0.6847931504 | BD150: 21283.48807 | BE150: 1.064256422 | BJ150: 142 | BK150: 16810.23197 | BL150: 0.6847931504 | BM150: 21283.48807 | BN150: 1.064256422 | BO150: 142 | BP150: 3733.562541 | BQ150: 10644.2046 | BR150: TxB | BX150: 141000 | BY150: 0.4623 | BZ150: 0.5377 | CA150: 97614.00061 | CB150: 98829.2448 | CC150: 0.5377 | CG150: 142 | CH150: 4473.256101 | CI150: 0.3794632719 | CN150: -2575.939741 | CO150: -678.6233818 | CP150: 1218.692978 | CQ150: 3116.009337 | CR150: 5013.325697 | CS150: 6910.642057 | CT150: 8807.958416 | CU150: 10705.27478 | CV150: 12602.59114 | CW150: 14499.90749
BA151: 143 | BB151: 15390.71443 | BC151: 1.555934383 | BD151: 21691.45159 | BE151: 1.190960636 | BJ151: 143 | BK151: 15390.71443 | BL151: 1.555934383 | BM151: 21691.45159 | BN151: 1.190960636 | BO151: 143 | BP151: 31287.31706 | BQ151: 14037.36748 | BR151: TxA | BX151: 142000 | BY151: 0.4621 | BZ151: 0.5379 | CA151: 98418.30241 | CB151: 99679.61381 | CC151: 0.5379 | CG151: 143 | CH151: 6300.737159 | CI151: -0.3649737474 | CN151: -8125.605896 | CO151: -9950.474634 | CP151: -11775.34337 | CQ151: -13600.21211 | CR151: -15425.08084 | CS151: -17249.94958 | CT151: -19074.81832 | CU151: -20899.68706 | CV151: -22724.55579 | CW151: -24549.42453
BA152: 144 | BB152: 16867.08408 | BC152: 0.8628066853 | BD152: 20706.59559 | BE152: 1.15554154 | BJ152: 144 | BK152: 16867.08408 | BL152: 0.8628066853 | BM152: 20706.59559 | BN152: 1.15554154 | BO152: 144 | BP152: 9017.116484 | BQ152: 13959.65062 | BR152: TxB | BX152: 143000 | BY152: 0.4618 | BZ152: 0.5382 | CA152: 99222.60421 | CB152: 100529.9828 | CC152: 0.5382 | CG152: 144 | CH152: 3839.511515 | CI152: 0.292734855 | CN152: -2375.83724 | CO152: -912.1629648 | CP152: 551.5113104 | CQ152: 2015.185586 | CR152: 3478.859861 | CS152: 4942.534136 | CT152: 6406.208411 | CU152: 7869.882686 | CV152: 9333.556961 | CW152: 10797.23124
BA153: 145 | BB153: 18018.85634 | BC153: 0.7970090894 | BD153: 21279.64215 | BE153: 1.093581411 | BJ153: 145 | BK153: 18018.85634 | BL153: 0.7970090894 | BM153: 21279.64215 | BN153: 1.093581411 | BO153: 145 | BP153: 5891.416341 | BQ153: 11527.80018 | BR153: TxB | BX153: 144000 | BY153: 0.4616 | BZ153: 0.5384 | CA153: 100026.906 | CB153: 101380.3518 | CC153: 0.5384 | CG153: 145 | CH153: 3260.785808 | CI153: 0.2965723217 | CN153: -1777.9242 | CO153: -295.0625917 | CP153: 1187.799017 | CQ153: 2670.660625 | CR153: 4153.522233 | CS153: 5636.383842 | CT153: 7119.24545 | CU153: 8602.107058 | CV153: 10084.96867 | CW153: 11567.83027
BA154: 146 | BB154: 15735.3944 | BC154: 0.2310372552 | BD154: 20848.3205 | BE154: 0.2272790815 | BJ154: 146 | BK154: 15735.3944 | BL154: 0.2310372552 | BM154: 20848.3205 | BN154: 0.2272790815 | BO154: 146 | BP154: -8804.276749 | BQ154: -14029.94806 | BR154: TxA | BX154: 145000 | BY154: 0.4613 | BZ154: 0.5387 | CA154: 100831.2078 | CB154: 102230.7208 | CC154: 0.5387 | CG154: 146 | CH154: 5112.926094 | CI154: -0.003758173744 | CN154: -5131.716963 | CO154: -5150.507832 | CP154: -5169.2987 | CQ154: -5188.089569 | CR154: -5206.880438 | CS154: -5225.671307 | CT154: -5244.462175 | CU154: -5263.253044 | CV154: -5282.043913 | CW154: -5300.834782
BA155: 147 | BB155: 16575.89782 | BC155: 0.8254364337 | BD155: 21350.77063 | BE155: 1.114681973 | BJ155: 147 | BK155: 16575.89782 | BL155: 0.8254364337 | BM155: 21350.77063 | BN155: 1.114681973 | BO155: 147 | BP155: 8187.195193 | BQ155: 12089.68855 | BR155: TxB | BX155: 146000 | BY155: 0.4612 | BZ155: 0.5388 | CA155: 101635.5096 | CB155: 103081.0898 | CC155: 0.5388 | CG155: 147 | CH155: 4774.872814 | CI155: 0.289245539 | CN155: -3328.645119 | CO155: -1882.417424 | CP155: -436.1897293 | CQ155: 1010.037966 | CR155: 2456.26566 | CS155: 3902.493355 | CT155: 5348.72105 | CU155: 6794.948745 | CV155: 8241.17644 | CW155: 9687.404135
BA156: 148 | BB156: 16068.55877 | BC156: 1.784207327 | BD156: 21789.5657 | BE156: 1.839575623 | BJ156: 148 | BK156: 16068.55877 | BL156: 1.784207327 | BM156: 21789.5657 | BN156: 1.839575623 | BO156: 148 | BP156: 37457.66102 | BQ156: 33397.70298 | BR156: TxA | BX156: 147000 | BY156: 0.4608 | BZ156: 0.5392 | CA156: 102439.8114 | CB156: 103931.4589 | CC156: 0.5392 | CG156: 148 | CH156: 5721.006927 | CI156: 0.05536829621 | CN156: -5444.165445 | CO156: -5167.323964 | CP156: -4890.482483 | CQ156: -4613.641002 | CR156: -4336.799521 | CS156: -4059.95804 | CT156: -3783.116559 | CU156: -3506.275078 | CV156: -3229.433597 | CW156: -2952.592116
BA157: 149 | BB157: 15802.81914 | BC157: 0.9222424297 | BD157: 20692.3644 | BE157: 0.8847634712 | BJ157: 149 | BK157: 15802.81914 | BL157: 0.9222424297 | BM157: 20692.3644 | BN157: 0.8847634712 | BO157: 149 | BP157: 11864.45375 | BQ157: 5850.539735 | BR157: TxA | BX157: 148000 | BY157: 0.4605 | BZ157: 0.5395 | CA157: 103244.1132 | CB157: 104781.8279 | CC157: 0.5395 | CG157: 149 | CH157: 4889.545256 | CI157: -0.03747895853 | CN157: -5076.940048 | CO157: -5264.334841 | CP157: -5451.729634 | CQ157: -5639.124426 | CR157: -5826.519219 | CS157: -6013.914012 | CT157: -6201.308804 | CU157: -6388.703597 | CV157: -6576.09839 | CW157: -6763.493182
BA158: 150 | BB158: 16967.89001 | BC158: 0.06476652134 | BD158: 20781.87638 | BE158: 0.1281805979 | BJ158: 150 | BK158: 16967.89001 | BL158: 0.06476652134 | BM158: 20781.87638 | BN158: 0.1281805979 | BO158: 150 | BP158: -15024.89437 | BQ158: -16936.45844 | BR158: TxA | BX158: 149000 | BY158: 0.4601 | BZ158: 0.5399 | CA158: 104048.415 | CB158: 105632.1969 | CC158: 0.5399 | CG158: 150 | CH158: 3813.986373 | CI158: 0.06341407657 | CN158: -3496.915991 | CO158: -3179.845608 | CP158: -2862.775225 | CQ158: -2545.704842 | CR158: -2228.634459 | CS158: -1911.564076 | CT158: -1594.493693 | CU158: -1277.423311 | CV158: -960.3529277 | CW158: -643.2825449
BA159: 151 | BB159: 14083.73714 | BC159: 1.525560421 | BD159: 22032.3811 | BE159: 0.8714065389 | BJ159: 151 | BK159: 14083.73714 | BL159: 1.525560421 | BM159: 22032.3811 | BN159: 0.8714065389 | BO159: 151 | BP159: 31683.07549 | BQ159: 4109.815069 | BR159: TxA | BX159: 150000 | BY159: 0.4598 | BZ159: 0.5402 | CA159: 104852.7168 | CB159: 106482.5659 | CC159: 0.5402 | CG159: 151 | CH159: 7948.643957 | CI159: -0.654153882 | CN159: -11219.41337 | CO159: -14490.18278 | CP159: -17760.95219 | CQ159: -21031.7216 | CR159: -24302.49101 | CS159: -27573.26042 | CT159: -30844.02983 | CU159: -34114.79924 | CV159: -37385.56865 | CW159: -40656.33806
BA160: 152 | BB160: 16342.70754 | BC160: 1.403826703 | BD160: 21011.89256 | BE160: 1.757604232 | BJ160: 152 | BK160: 16342.70754 | BL160: 1.403826703 | BM160: 21011.89256 | BN160: 1.757604232 | BO160: 152 | BP160: 25772.09354 | BQ160: 31716.23439 | BR160: TxB | CG160: 152 | CH160: 4669.185017 | CI160: 0.3537775289 | CN160: -2900.297372 | CO160: -1131.409728 | CP160: 637.4779164 | CQ160: 2406.365561 | CR160: 4175.253205 | CS160: 5944.14085 | CT160: 7713.028494 | CU160: 9481.916139 | CV160: 11250.80378 | CW160: 13019.69143
BA161: 153 | BB161: 13145.10236 | BC161: 1.569799611 | BD161: 20095.29307 | BE161: 1.25296046 | BJ161: 153 | BK161: 13145.10236 | BL161: 1.569799611 | BM161: 20095.29307 | BN161: 1.25296046 | BO161: 153 | BP161: 33948.88597 | BQ161: 17493.52073 | BR161: TxA | CG161: 153 | CH161: 6950.190711 | CI161: -0.3168391509 | CN161: -8534.386466 | CO161: -10118.58222 | CP161: -11702.77798 | CQ161: -13286.97373 | CR161: -14871.16949 | CS161: -16455.36524 | CT161: -18039.56099 | CU161: -19623.75675 | CV161: -21207.9525 | CW161: -22792.14826
BA162: 154 | BB162: 16213.70662 | BC162: 0.7081836878 | BD162: 21204.37665 | BE162: 0.6133567932 | BJ162: 154 | BK162: 16213.70662 | BL162: 0.7081836878 | BM162: 21204.37665 | BN162: 0.6133567932 | BO162: 154 | BP162: 5031.804018 | BQ162: -2803.672858 | BR162: TxA | CG162: 154 | CH162: 4990.670036 | CI162: -0.09482689464 | CN162: -5464.804509 | CO162: -5938.938982 | CP162: -6413.073456 | CQ162: -6887.207929 | CR162: -7361.342402 | CS162: -7835.476875 | CT162: -8309.611348 | CU162: -8783.745821 | CV162: -9257.880295 | CW162: -9732.014768
BA163: 155 | BB163: 15735.67565 | BC163: -0.4253089242 | BD163: 20744.06772 | BE163: -0.3510848241 | BJ163: 155 | BK163: 15735.67565 | BL163: -0.4253089242 | BM163: 20744.06772 | BN163: -0.3510848241 | BO163: 155 | BP163: -28494.94338 | BQ163: -31276.61244 | BR163: TxA | CG163: 155 | CH163: 5008.392064 | CI163: 0.07422410012 | CN163: -4637.271563 | CO163: -4266.151063 | CP163: -3895.030562 | CQ163: -3523.910061 | CR163: -3152.789561 | CS163: -2781.66906 | CT163: -2410.548559 | CU163: -2039.428059 | CV163: -1668.307558 | CW163: -1297.187058
BA164: 156 | BB164: 16657.81382 | BC164: 0.8065118667 | BD164: 20917.54739 | BE164: 0.8442902542 | BJ164: 156 | BK164: 16657.81382 | BL164: 0.8065118667 | BM164: 20917.54739 | BN164: 0.8442902542 | BO164: 156 | BP164: 7537.542181 | BQ164: 4411.160239 | BR164: TxA | CG164: 156 | CH164: 4259.733568 | CI164: 0.03777838751 | CN164: -4070.84163 | CO164: -3881.949693 | CP164: -3693.057755 | CQ164: -3504.165818 | CR164: -3315.27388 | CS164: -3126.381943 | CT164: -2937.490005 | CU164: -2748.598067 | CV164: -2559.70613 | CW164: -2370.814192
BA165: 157 | BB165: 10554.90668 | BC165: 2.024101228 | BD165: 21063.53032 | BE165: 0.8038777346 | BJ165: 157 | BK165: 10554.90668 | BL165: 2.024101228 | BM165: 21063.53032 | BN165: 0.8038777346 | BO165: 157 | BP165: 50168.13015 | BQ165: 3052.801716 | BR165: TxA | CG165: 157 | CH165: 10508.62364 | CI165: -1.220223493 | CN165: -16609.7411 | CO165: -22710.85857 | CP165: -28811.97603 | CQ165: -34913.0935 | CR165: -41014.21096 | CS165: -47115.32843 | CT165: -53216.4459 | CU165: -59317.56336 | CV165: -65418.68083 | CW165: -71519.79829
BA166: 158 | BB166: 16459.15515 | BC166: 0.2307649682 | BD166: 21399.92885 | BE166: 0.3893834273 | BJ166: 158 | BK166: 16459.15515 | BL166: 0.2307649682 | BM166: 21399.92885 | BN166: 0.3893834273 | BO166: 158 | BP166: -9536.206101 | BQ166: -9718.426031 | BR166: TxA | CG166: 158 | CH166: 4940.773704 | CI166: 0.1586184591 | CN166: -4147.681408 | CO166: -3354.589112 | CP166: -2561.496817 | CQ166: -1768.404521 | CR166: -975.3122257 | CS166: -182.2199301 | CT166: 610.8723655 | CU166: 1403.964661 | CV166: 2197.056957 | CW166: 2990.149252
BA167: 159 | BB167: 13438.60203 | BC167: 0.937588749 | BD167: 21354.19927 | BE167: 0.9809471842 | BJ167: 159 | BK167: 13438.60203 | BL167: 0.937588749 | BM167: 21354.19927 | BN167: 0.9809471842 | BO167: 159 | BP167: 14689.06044 | BQ167: 8074.21626 | BR167: TxA | CG167: 159 | CH167: 7915.597236 | CI167: 0.04335843523 | CN167: -7698.80506 | CO167: -7482.012884 | CP167: -7265.220708 | CQ167: -7048.428532 | CR167: -6831.636356 | CS167: -6614.844179 | CT167: -6398.052003 | CU167: -6181.259827 | CV167: -5964.467651 | CW167: -5747.675475
BA168: 160 | BB168: 17321.68744 | BC168: 0.9591042956 | BD168: 20949.70302 | BE168: 1.27429203 | BJ168: 160 | BK168: 17321.68744 | BL168: 0.9591042956 | BM168: 20949.70302 | BN168: 1.27429203 | BO168: 160 | BP168: 11451.44143 | BQ168: 17279.05789 | BR168: TxB | CG168: 160 | CH168: 3628.015587 | CI168: 0.3151877348 | CN168: -2052.076913 | CO168: -476.1382385 | CP168: 1099.800436 | CQ168: 2675.73911 | CR168: 4251.677784 | CS168: 5827.616458 | CT168: 7403.555132 | CU168: 8979.493806 | CV168: 10555.43248 | CW168: 12131.37115
BA169: 161 | BB169: 18589.54334 | BC169: 0.6697620355 | BD169: 20947.26276 | BE169: 0.9344824974 | BJ169: 161 | BK169: 18589.54334 | BL169: 0.6697620355 | BM169: 20947.26276 | BN169: 0.9344824974 | BO169: 161 | BP169: 1503.317724 | BQ169: 7087.212161 | BR169: TxB | CG169: 161 | CH169: 2357.719417 | CI169: 0.2647204618 | CN169: -1034.117108 | CO169: 289.4852012 | CP169: 1613.08751 | CQ169: 2936.689819 | CR169: 4260.292128 | CS169: 5583.894437 | CT169: 6907.496746 | CU169: 8231.099055 | CV169: 9554.701364 | CW169: 10878.30367
BA170: 162 | BB170: 16999.36161 | BC170: 1.302882828 | BD170: 21254.15399 | BE170: 1.303828189 | BJ170: 162 | BK170: 16999.36161 | BL170: 1.302882828 | BM170: 21254.15399 | BN170: 1.303828189 | BO170: 162 | BP170: 22087.12324 | BQ170: 17860.69168 | BR170: TxA | CG170: 162 | CH170: 4254.792383 | CI170: 0.0009453607218 | CN170: -4250.065579 | CO170: -4245.338776 | CP170: -4240.611972 | CQ170: -4235.885169 | CR170: -4231.158365 | CS170: -4226.431561 | CT170: -4221.704758 | CU170: -4216.977954 | CV170: -4212.25115 | CW170: -4207.524347
BA171: 163 | BB171: 17595.38301 | BC171: 0.008238043856 | BD171: 21247.83064 | BE171: 0.4544316278 | BJ171: 163 | BK171: 17595.38301 | BL171: 0.008238043856 | BM171: 21247.83064 | BN171: 0.4544316278 | BO171: 163 | BP171: -17348.24169 | BQ171: -7614.881805 | BR171: TxB | CG171: 163 | CH171: 3652.44763 | CI171: 0.4461935839 | CN171: -1421.47971 | CO171: 809.4882091 | CP171: 3040.456129 | CQ171: 5271.424048 | CR171: 7502.391968 | CS171: 9733.359887 | CT171: 11964.32781 | CU171: 14195.29573 | CV171: 16426.26365 | CW171: 18657.23157
BA172: 164 | BB172: 15393.80287 | BC172: 0.8930963155 | BD172: 21357.59515 | BE172: 1.11591488 | BJ172: 164 | BK172: 15393.80287 | BL172: 0.8930963155 | BM172: 21357.59515 | BN172: 1.11591488 | BO172: 164 | BP172: 11399.08659 | BQ172: 12119.85126 | BR172: TxB | CG172: 164 | CH172: 5963.792277 | CI172: 0.2228185647 | CN172: -4849.699453 | CO172: -3735.60663 | CP172: -2621.513806 | CQ172: -1507.420983 | CR172: -393.3281596 | CS172: 720.7646638 | CT172: 1834.857487 | CU172: 2948.950311 | CV172: 4063.043134 | CW172: 5177.135957
BA173: 165 | BB173: 15705.38209 | BC173: 1.750285221 | BD173: 20953.7251 | BE173: 1.635833613 | BJ173: 165 | BK173: 15705.38209 | BL173: 1.750285221 | BM173: 20953.7251 | BN173: 1.635833613 | BO173: 165 | BP173: 36803.17455 | BQ173: 28121.2833 | BR173: TxA | CG173: 165 | CH173: 5248.343016 | CI173: -0.1144516079 | CN173: -5820.601055 | CO173: -6392.859094 | CP173: -6965.117134 | CQ173: -7537.375173 | CR173: -8109.633212 | CS173: -8681.891251 | CT173: -9254.149291 | CU173: -9826.40733 | CV173: -10398.66537 | CW173: -10970.92341
BA174: 166 | BB174: 11156.98203 | BC174: 1.881838337 | BD174: 20486.94814 | BE174: 0.728711272 | BJ174: 166 | BK174: 11156.98203 | BL174: 1.881838337 | BM174: 20486.94814 | BN174: 0.728711272 | BO174: 166 | BP174: 45298.16807 | BQ174: 1374.390017 | BR174: TxA | CG174: 166 | CH174: 9329.96611 | CI174: -1.153127065 | CN174: -15095.60143 | CO174: -20861.23676 | CP174: -26626.87208 | CQ174: -32392.50741 | CR174: -38158.14273 | CS174: -43923.77806 | CT174: -49689.41338 | CU174: -55455.04871 | CV174: -61220.68403 | CW174: -66986.31936
BA175: 167 | BB175: 15522.13956 | BC175: 1.507942251 | BD175: 20836.1125 | BE175: 1.44701956 | BJ175: 167 | BK175: 15522.13956 | BL175: 1.507942251 | BM175: 20836.1125 | BN175: 1.44701956 | BO175: 167 | BP175: 29716.12798 | BQ175: 22574.4743 | BR175: TxA | CG175: 167 | CH175: 5313.972937 | CI175: -0.06092269146 | CN175: -5618.586394 | CO175: -5923.199852 | CP175: -6227.813309 | CQ175: -6532.426766 | CR175: -6837.040224 | CS175: -7141.653681 | CT175: -7446.267138 | CU175: -7750.880596 | CV175: -8055.494053 | CW175: -8360.10751
BA176: 168 | BB176: 15724.69369 | BC176: 0.6615547611 | BD176: 21514.61021 | BE176: 0.5421649861 | BJ176: 168 | BK176: 15724.69369 | BL176: 0.6615547611 | BM176: 21514.61021 | BN176: 0.5421649861 | BO176: 168 | BP176: 4121.949141 | BQ176: -5249.660626 | BR176: TxA | CG176: 168 | CH176: 5789.916519 | CI176: -0.1193897749 | CN176: -6386.865393 | CO176: -6983.814268 | CP176: -7580.763143 | CQ176: -8177.712017 | CR176: -8774.660892 | CS176: -9371.609766 | CT176: -9968.558641 | CU176: -10565.50752 | CV176: -11162.45639 | CW176: -11759.40526
BA177: 169 | BB177: 16607.9104 | BC177: 0.7028329699 | BD177: 19730.58572 | BE177: 0.8106922262 | BJ177: 169 | BK177: 16607.9104 | BL177: 0.7028329699 | BM177: 19730.58572 | BN177: 0.8106922262 | BO177: 169 | BP177: 4477.078696 | BQ177: 4590.181069 | BR177: TxB | CG177: 169 | CH177: 3122.675316 | CI177: 0.1078592563 | CN177: -2583.379034 | CO177: -2044.082753 | CP177: -1504.786471 | CQ177: -965.49019 | CR177: -426.1939085 | CS177: 113.1023729 | CT177: 652.3986543 | CU177: 1191.694936 | CV177: 1730.991217 | CW177: 2270.287499
BA178: 170 | BB178: 17452.29518 | BC178: 0.6957091932 | BD178: 21852.32098 | BE178: 1.32257216 | BJ178: 170 | BK178: 17452.29518 | BL178: 0.6957091932 | BM178: 21852.32098 | BN178: 1.32257216 | BO178: 170 | BP178: 3418.980613 | BQ178: 17824.84382 | BR178: TxB | CG178: 170 | CH178: 4400.025799 | CI178: 0.626862967 | CN178: -1265.710964 | CO178: 1868.603871 | CP178: 5002.918706 | CQ178: 8137.233541 | CR178: 11271.54838 | CS178: 14405.86321 | CT178: 17540.17805 | CU178: 20674.49288 | CV178: 23808.80772 | CW178: 26943.12255
BA179: 171 | BB179: 16434.40753 | BC179: 1.125921687 | BD179: 20927.57067 | BE179: 1.045844239 | BJ179: 171 | BK179: 16434.40753 | BL179: 1.125921687 | BM179: 20927.57067 | BN179: 1.045844239 | BO179: 171 | BP179: 17343.24307 | BQ179: 10447.75651 | BR179: TxA | CG179: 171 | CH179: 4493.163132 | CI179: -0.08007744747 | CN179: -4893.550369 | CO179: -5293.937607 | CP179: -5694.324844 | CQ179: -6094.712081 | CR179: -6495.099319 | CS179: -6895.486556 | CT179: -7295.873794 | CU179: -7696.261031 | CV179: -8096.648268 | CW179: -8497.035506
BA180: 172 | BB180: 13739.40264 | BC180: 1.535152066 | BD180: 20603.87255 | BE180: 1.219124214 | BJ180: 172 | BK180: 13739.40264 | BL180: 1.535152066 | BM180: 20603.87255 | BN180: 1.219124214 | BO180: 172 | BP180: 32315.15935 | BQ180: 15969.85385 | BR180: TxA | CG180: 172 | CH180: 6864.46991 | CI180: -0.3160278529 | CN180: -8444.609175 | CO180: -10024.74844 | CP180: -11604.8877 | CQ180: -13185.02697 | CR180: -14765.16623 | CS180: -16345.3055 | CT180: -17925.44476 | CU180: -19505.58403 | CV180: -21085.72329 | CW180: -22665.86256
BA181: 173 | BB181: 17889.18486 | BC181: 0.9624912663 | BD181: 20550.21027 | BE181: 1.190352804 | BJ181: 173 | BK181: 17889.18486 | BL181: 0.9624912663 | BM181: 20550.21027 | BN181: 1.190352804 | BO181: 173 | BP181: 10985.55313 | BQ181: 15160.37384 | BR181: TxB | CG181: 173 | CH181: 2661.025415 | CI181: 0.2278615374 | CN181: -1521.717728 | CO181: -382.4100411 | CP181: 756.8976458 | CQ181: 1896.205333 | CR181: 3035.51302 | CS181: 4174.820707 | CT181: 5314.128394 | CU181: 6453.43608 | CV181: 7592.743767 | CW181: 8732.051454
BA182: 174 | BB182: 14688.37011 | BC182: 1.70557967 | BD182: 20037.85698 | BE182: 1.545733465 | BJ182: 174 | BK182: 14688.37011 | BL182: 1.70557967 | BM182: 20037.85698 | BN182: 1.545733465 | BO182: 174 | BP182: 36479.01998 | BQ182: 26334.14698 | BR182: TxA | CG182: 174 | CH182: 5349.486869 | CI182: -0.1598462045 | CN182: -6148.717891 | CO182: -6947.948913 | CP182: -7747.179936 | CQ182: -8546.410958 | CR182: -9345.64198 | CS182: -10144.873 | CT182: -10944.10402 | CU182: -11743.33505 | CV182: -12542.56607 | CW182: -13341.79709
BA183: 175 | BB183: 16283.20962 | BC183: 2.081522095 | BD183: 21092.33649 | BE183: 1.784398377 | BJ183: 175 | BK183: 16283.20962 | BL183: 2.081522095 | BM183: 21092.33649 | BN183: 1.784398377 | BO183: 175 | BP183: 46162.45323 | BQ183: 32439.61483 | BR183: TxA | CG183: 175 | CH183: 4809.126877 | CI183: -0.2971237175 | CN183: -6294.745464 | CO183: -7780.364051 | CP183: -9265.982639 | CQ183: -10751.60123 | CR183: -12237.21981 | CS183: -13722.8384 | CT183: -15208.45699 | CU183: -16694.07558 | CV183: -18179.69416 | CW183: -19665.31275
BA184: 176 | BB184: 15996.51401 | BC184: 1.076041331 | BD184: 20443.66606 | BE184: 0.8945401869 | BJ184: 176 | BK184: 15996.51401 | BL184: 1.076041331 | BM184: 20443.66606 | BN184: 0.8945401869 | BO184: 176 | BP184: 16284.72591 | BQ184: 6392.539551 | BR184: TxA | CG184: 176 | CH184: 4447.152046 | CI184: -0.1815011439 | CN184: -5354.657766 | CO184: -6262.163486 | CP184: -7169.669205 | CQ184: -8077.174925 | CR184: -8984.680644 | CS184: -9892.186364 | CT184: -10799.69208 | CU184: -11707.1978 | CV184: -12614.70352 | CW184: -13522.20924
BA185: 177 | BB185: 15572.79138 | BC185: 0.6467665224 | BD185: 20876.73003 | BE185: 0.6635636336 | BJ185: 177 | BK185: 15572.79138 | BL185: 0.6467665224 | BM185: 20876.73003 | BN185: 0.6635636336 | BO185: 177 | BP185: 3830.204294 | BQ185: -969.8210208 | BR185: TxA | CG185: 177 | CH185: 5303.938649 | CI185: 0.01679711115 | CN185: -5219.953094 | CO185: -5135.967538 | CP185: -5051.981982 | CQ185: -4967.996426 | CR185: -4884.01087 | CS185: -4800.025315 | CT185: -4716.039759 | CU185: -4632.054203 | CV185: -4548.068647 | CW185: -4464.083092
BA186: 178 | BB186: 17027.4165 | BC186: 0.7377905035 | BD186: 21322.33192 | BE186: 1.183413025 | BJ186: 178 | BK186: 17027.4165 | BL186: 0.7377905035 | BM186: 21322.33192 | BN186: 1.183413025 | BO186: 178 | BP186: 5106.29861 | BQ186: 14180.05883 | BR186: TxB | CG186: 178 | CH186: 4294.915427 | CI186: 0.4456225215 | CN186: -2066.802819 | CO186: 161.3097887 | CP186: 2389.422396 | CQ186: 4617.535004 | CR186: 6845.647612 | CS186: 9073.76022 | CT186: 11301.87283 | CU186: 13529.98544 | CV186: 15758.09804 | CW186: 17986.21065
BA187: 179 | BB187: 14991.80282 | BC187: 0.6391229445 | BD187: 21177.01322 | BE187: 0.2913588326 | BJ187: 179 | BK187: 14991.80282 | BL187: 0.6391229445 | BM187: 21177.01322 | BN187: 0.2913588326 | BO187: 179 | BP187: 4181.885514 | BQ187: -12436.24824 | BR187: TxA | CG187: 179 | CH187: 6185.210393 | CI187: -0.347764112 | CN187: -7924.030953 | CO187: -9662.851513 | CP187: -11401.67207 | CQ187: -13140.49263 | CR187: -14879.31319 | CS187: -16618.13375 | CT187: -18356.95431 | CU187: -20095.77487 | CV187: -21834.59543 | CW187: -23573.41599
BA188: 180 | BB188: 17262.44595 | BC188: 1.23665532 | BD188: 20972.87678 | BE188: 1.586018066 | BJ188: 180 | BK188: 17262.44595 | BL188: 1.23665532 | BM188: 20972.87678 | BN188: 1.586018066 | BO188: 180 | BP188: 19837.21365 | BQ188: 26607.6652 | BR188: TxB | CG188: 180 | CH188: 3710.430831 | CI188: 0.3493627462 | CN188: -1963.6171 | CO188: -216.8033692 | CP188: 1530.010362 | CQ188: 3276.824093 | CR188: 5023.637824 | CS188: 6770.451555 | CT188: 8517.265286 | CU188: 10264.07902 | CV188: 12010.89275 | CW188: 13757.70648
BA189: 181 | BB189: 14536.26727 | BC189: 1.149107368 | BD189: 20789.30334 | BE189: 0.9678123879 | BJ189: 181 | BK189: 14536.26727 | BL189: 1.149107368 | BM189: 20789.30334 | BN189: 0.9678123879 | BO189: 181 | BP189: 19936.95377 | BQ189: 8245.068302 | BR189: TxA | CG189: 181 | CH189: 6253.036068 | CI189: -0.1812949799 | CN189: -7159.510968 | CO189: -8065.985867 | CP189: -8972.460767 | CQ189: -9878.935666 | CR189: -10785.41057 | CS189: -11691.88547 | CT189: -12598.36036 | CU189: -13504.83526 | CV189: -14411.31016 | CW189: -15317.78506
BA190: 182 | BB190: 18330.5097 | BC190: 0.7677635606 | BD190: 21925.36503 | BE190: 1.108541778 | BJ190: 182 | BK190: 18330.5097 | BL190: 0.7677635606 | BM190: 21925.36503 | BN190: 1.108541778 | BO190: 182 | BP190: 4702.397122 | BQ190: 11330.88832 | BR190: TxB | CG190: 182 | CH190: 3594.855335 | CI190: 0.3407782178 | CN190: -1890.964246 | CO190: -187.0731569 | CP190: 1516.817932 | CQ190: 3220.709021 | CR190: 4924.60011 | CS190: 6628.491199 | CT190: 8332.382287 | CU190: 10036.27338 | CV190: 11740.16447 | CW190: 13444.05555
BA191: 183 | BB191: 13244.9072 | BC191: 2.107320435 | BD191: 19982.34197 | BE191: 1.955775738 | BJ191: 183 | BK191: 13244.9072 | BL191: 2.107320435 | BM191: 19982.34197 | BN191: 1.955775738 | BO191: 183 | BP191: 49974.70586 | BQ191: 38690.93016 | BR191: TxA | CG191: 183 | CH191: 6737.434769 | CI191: -0.1515446975 | CN191: -7495.158256 | CO191: -8252.881743 | CP191: -9010.605231 | CQ191: -9768.328718 | CR191: -10526.05221 | CS191: -11283.77569 | CT191: -12041.49918 | CU191: -12799.22267 | CV191: -13556.94615 | CW191: -14314.66964
BA192: 184 | BB192: 18420.57434 | BC192: 0.05744854596 | BD192: 21498.05633 | BE192: 0.7120150729 | BJ192: 184 | BK192: 18420.57434 | BL192: 0.05744854596 | BM192: 21498.05633 | BN192: 0.7120150729 | BO192: 184 | BP192: -16697.11796 | BQ192: -137.6041408 | BR192: TxB | CG192: 184 | CH192: 3077.481993 | CI192: 0.654566527 | CN192: 195.350642 | CO192: 3468.183277 | CP192: 6741.015912 | CQ192: 10013.84855 | CR192: 13286.68118 | CS192: 16559.51382 | CT192: 19832.34645 | CU192: 23105.17909 | CV192: 26378.01172 | CW192: 29650.84436
BA193: 185 | BB193: 14886.6438 | BC193: 0.7099626077 | BD193: 21979.07772 | BE193: 0.3909135726 | BJ193: 185 | BK193: 14886.6438 | BL193: 0.7099626077 | BM193: 21979.07772 | BN193: 0.3909135726 | BO193: 185 | BP193: 6412.234433 | BQ193: -10251.67055 | BR193: TxA | CG193: 185 | CH193: 7092.433928 | CI193: -0.319049035 | CN193: -8687.679103 | CO193: -10282.92428 | CP193: -11878.16945 | CQ193: -13473.41463 | CR193: -15068.6598 | CS193: -16663.90498 | CT193: -18259.15015 | CU193: -19854.39533 | CV193: -21449.6405 | CW193: -23044.88568
BA194: 186 | BB194: 17223.87238 | BC194: 0.3022349965 | BD194: 21451.5455 | BE194: 0.7114601196 | BJ194: 186 | BK194: 17223.87238 | BL194: 0.3022349965 | BM194: 21451.5455 | BN194: 0.7114601196 | BO194: 186 | BP194: -8156.822486 | BQ194: -107.7419087 | BR194: TxB | CG194: 186 | CH194: 4227.673114 | CI194: 0.4092251231 | CN194: -2181.547499 | CO194: -135.4218837 | CP194: 1910.703732 | CQ194: 3956.829347 | CR194: 6002.954962 | CS194: 8049.080578 | CT194: 10095.20619 | CU194: 12141.33181 | CV194: 14187.45742 | CW194: 16233.58304
BA195: 187 | BB195: 10976.27651 | BC195: 1.499692721 | BD195: 19534.11304 | BE195: 0.2107937526 | BJ195: 187 | BK195: 10976.27651 | BL195: 1.499692721 | BM195: 19534.11304 | BN195: 0.2107937526 | BO195: 187 | BP195: 34014.50511 | BQ195: -13210.30046 | BR195: TxA | CG195: 187 | CH195: 8557.836533 | CI195: -1.288898968 | CN195: -15002.33137 | CO195: -21446.82621 | CP195: -27891.32105 | CQ195: -34335.81589 | CR195: -40780.31073 | CS195: -47224.80557 | CT195: -53669.30042 | CU195: -60113.79526 | CV195: -66558.2901 | CW195: -73002.78494
BA196: 188 | BB196: 14670.67584 | BC196: 1.053904664 | BD196: 21418.75588 | BE196: 0.8991649433 | BJ196: 188 | BK196: 14670.67584 | BL196: 1.053904664 | BM196: 21418.75588 | BN196: 0.8991649433 | BO196: 188 | BP196: 16946.46407 | BQ196: 5556.192424 | BR196: TxA | CG196: 188 | CH196: 6748.080033 | CI196: -0.1547397206 | CN196: -7521.778635 | CO196: -8295.477238 | CP196: -9069.175841 | CQ196: -9842.874444 | CR196: -10616.57305 | CS196: -11390.27165 | CT196: -12163.97025 | CU196: -12937.66886 | CV196: -13711.36746 | CW196: -14485.06606
BA197: 189 | BB197: 15198.20801 | BC197: 0.5178375749 | BD197: 21312.47201 | BE197: 0.4523492543 | BJ197: 189 | BK197: 15198.20801 | BL197: 0.5178375749 | BM197: 21312.47201 | BN197: 0.4523492543 | BO197: 189 | BP197: 336.9192382 | BQ197: -7741.994383 | BR197: TxA | CG197: 189 | CH197: 6114.264002 | CI197: -0.06548832064 | CN197: -6441.705605 | CO197: -6769.147208 | CP197: -7096.588812 | CQ197: -7424.030415 | CR197: -7751.472018 | CS197: -8078.913621 | CT197: -8406.355224 | CU197: -8733.796828 | CV197: -9061.238431 | CW197: -9388.680034
BA198: 190 | BB198: 19982.77749 | BC198: 0.4803537311 | BD198: 21644.18073 | BE198: 1.275610337 | BJ198: 190 | BK198: 19982.77749 | BL198: 0.4803537311 | BM198: 21644.18073 | BN198: 1.275610337 | BO198: 190 | BP198: -5572.165561 | BQ198: 16624.12937 | BR198: TxB | CG198: 190 | CH198: 1661.403235 | CI198: 0.7952566057 | CN198: 2314.879794 | CO198: 6291.162822 | CP198: 10267.44585 | CQ198: 14243.72888 | CR198: 18220.01191 | CS198: 22196.29494 | CT198: 26172.57796 | CU198: 30148.86099 | CV198: 34125.14402 | CW198: 38101.42705
BA199: 191 | BB199: 15117.98121 | BC199: 0.4999810237 | BD199: 20252.79414 | BE199: 0.6398338531 | BJ199: 191 | BK199: 15117.98121 | BL199: 0.4999810237 | BM199: 20252.79414 | BN199: 0.6398338531 | BO199: 191 | BP199: -118.5504958 | BQ199: -1057.778547 | BR199: TxA | CG199: 191 | CH199: 5134.812933 | CI199: 0.1398528294 | CN199: -4435.548786 | CO199: -3736.284639 | CP199: -3037.020492 | CQ199: -2337.756345 | CR199: -1638.492198 | CS199: -939.2280511 | CT199: -239.9639042 | CU199: 459.3002428 | CV199: 1158.56439 | CW199: 1857.828537
BA200: 192 | BB200: 18135.55125 | BC200: 0.5981540174 | BD200: 21019.67966 | BE200: 0.7259522653 | BJ200: 192 | BK200: 18135.55125 | BL200: 0.5981540174 | BM200: 21019.67966 | BN200: 0.7259522653 | BO200: 192 | BP200: -190.9307243 | BQ200: 758.8882998 | BR200: TxB | CG200: 192 | CH200: 2884.128411 | CI200: 0.1277982479 | CN200: -2245.137172 | CO200: -1606.145933 | CP200: -967.1546937 | CQ200: -328.1634544 | CR200: 310.8277849 | CS200: 949.8190241 | CT200: 1588.810263 | CU200: 2227.801503 | CV200: 2866.792742 | CW200: 3505.783981
... 362 more rows

Sheet Parameters
A1: Model Control | E1: opt_modeltype
A2: opt_modeltype | B2: Model Type | C2: Deterministic | E2: Deterministic
E3: Stochastic
A6: Transition Parameters
A7: Parameter | B7: Description | C7: Refers to | D7: Value Used | E7: Deterministic | F7: Stochastic | G7: Random | H7: Dist | I7: Param1 | K7: Param2 | P7: Mean | Q7: SD
A8: p_active | B8: Probability of active disease from silent disease | C8: Treatment A | D8: =IF(opt_modeltype=$E$2,E8,F8) -> 0.088 | E8: 0.088 | F8: =_xlfn.BETA.INV(G8,J8,L8) -> 0.1527721729 | G8: =RAND() -> 0.9873742905 | H8: beta | I8: α | J8: 11 | K8: b | L8: 114 | P8: =J8/(J8+L8) -> 0.088 | Q8: =(J8*L8/((J8+L8)^2*(J8+L8+1)))^0.5 -> 0.02523791554
C9: Treatment B | D9: 0.09267431598 | E9: 0.09267431598 | F9: 0.08125609526 | G9: 0.08852271292 | H9: beta | I9: α | J9: 105 | K9: b | L9: 1028 | P9: 0.09267431598 | Q9: 0.008611023406
A10: p_success | B10: Probability of silent disease from active disease | C10: Treatment A | D10: 0.1846153846 | E10: 0.1846153846 | F10: 0.1474375287 | G10: 0.2273710155 | H10: beta | I10: α | J10: 12 | K10: b | L10: 53 | P10: 0.1846153846 | Q10: 0.04775768134
C11: Treatment B | D11: 0.2119047619 | E11: 0.2119047619 | F11: 0.219046839 | G11: 0.6979459705 | H11: beta | I11: α | J11: 178 | K11: b | L11: 662 | P11: 0.2119047619 | Q11: 0.01409164559
A12: p_compl_sil | B12: Probability of complications from silent disease | C12: Treatment A | D12: 0.008 | E12: 0.008 | F12: 0.008910212176 | G12: 0.6703810677 | H12: beta | I12: α | J12: 1 | K12: b | L12: 124 | P12: 0.008 | Q12: 0.007936253964
C13: Treatment B | D13: 0.01412180053 | E13: 0.01412180053 | F13: 0.01509993641 | G13: 0.6383682572 | H13: beta | I13: α | J13: 16 | K13: b | L13: 1117 | P13: 0.01412180053 | Q13: 0.003503887395
A14: p_compl_act | B14: Probability of complications from active disease | C14: Treatment A | D14: 0.1230769231 | E14: 0.1230769231 | F14: 0.1493899439 | G14: 0.7587599959 | H14: beta | I14: α | J14: 8 | K14: b | L14: 57 | P14: 0.1230769231 | Q14: 0.04043869173
C15: Treatment B | D15: 0.09761904762 | E15: 0.09761904762 | F15: 0.08507002699 | G15: 0.1066728396 | H15: beta | I15: α | J15: 82 | K15: b | L15: 758 | P15: 0.09761904762 | Q15: 0.01023444379
A16: p_dead_sil | B16: Probability of death from chronic, silent disease | C16: Treatment A | D16: 0 | E16: 0 | F16: 0 | H16: fixed (no data)
C17: Treatment B | D17: 0.001765225066 | E17: 0.001765225066 | F17: 0.002168575047 | G17: 0.7036390486 | H17: beta | I17: α | J17: 2 | K17: b | L17: 1131 | P17: 0.001765225066 | Q17: 0.00124655046
A18: p_dead_act | B18: Probability of death from chronic, active disease | C18: Treatment A | D18: 0.001150747986 | E18: 0.001150747986 | F18: 0.001492704451 | G18: 0.09117657651 | H18: beta | I18: α | J18: 1 | K18: b | L18: 64 | P18: 0.01538461538 | Q18: 0.01514972197
C19: Treatment B | D19: 0.00119047619 | E19: 0.00119047619 | F19: 0.003290682369 | G19: 0.937051295 | H19: beta | I19: α | J19: 1 | K19: b | L19: 839 | P19: 0.00119047619 | Q19: 0.0011890598
A20: p_dead_cmp | B20: Probability of death from complications state | C20: Common | D20: 0.003494060098 | E20: 0.003494060098 | F20: 0.003075704608 | G20: 0.4485996595 | H20: beta | I20: α | J20: 5 | K20: b | L20: 1426 | P20: 0.003494060098 | Q20: =(J20*L20/((J20+L20)^2*(J20+L20+1)))^0.5 -> 0.001559314158
A22: Cost Parameters | N22: Data informing | P22: Check
A23: Parameter | B23: Description | C23: Refers to | D23: Value Used | E23: Deterministic | F23: Stochastic | G23: Random | H23: Dist | I23: Param1 | K23: Param2 | N23: Mean | O23: SD | P23: Mean | Q23: SD | S23: Mean | T23: Variance | U23: Param1 | V23: Param2
A24: Chronic, silent disease | B24: Health state specific costs | C24: Common | D24: =IF(opt_modeltype=$E$2,E24,F24) -> 23.51960197 | E24: 23.51960197 | F24: =_xlfn.LOGNORM.INV(G24,J24,L24) -> 29.24231539 | G24: =RAND() -> 0.6278627458 | H24: lognormal | I24: μ | J24: =LN(N24)-L24^2/2 -> 3.329821832 | K24: σ | L24: =SQRT(LN(1+(O24/N24)^2)) -> 0.1403901221 | N24: 28.21 | O24: 3.98 | P24: =EXP(J24+L24^2/2) -> 28.21 | Q24: =SQRT((EXP(L24^2)-1)*P24^2) -> 3.98
A25: Chronic, active disease | B25: Health state specific costs | C25: Common | D25: =IF(opt_modeltype=$E$2,E25,F25) -> 84.4295517 | E25: 84.4295517 | F25: =_xlfn.LOGNORM.INV(G25,J25,L25) -> 69.48068114 | G25: 0.2691530675 | H25: lognormal | I25: μ | J25: =LN(N25)-L25^2/2 -> 4.399884248 | K25: σ | L25: =SQRT(LN(1+(O25/N25)^2)) -> 0.2581111139 | N25: 84.2 | O25: 22.1 | P25: =EXP(J25+L25^2/2) -> 84.2 | Q25: =SQRT((EXP(L25^2)-1)*P25^2) -> 22.1
A26: Complications | B26: Health state specific costs | C26: Common | D26: =IF(opt_modeltype=$E$2,E26,F26) -> 396.9966362 | E26: 396.9966362 | F26: =_xlfn.GAMMA.INV(G26,J26,L26) -> 425.7952706 | G26: =RAND() -> 0.3553236756 | H26: gamma | I26: α | J26: =(N26/O26)^2 -> 577.199958 | K26: b | L26: =O26^2/N26 -> 0.7496362292 | N26: 432.69 | O26: 18.01 | P26: =J26*L26 -> 432.69 | Q26: =SQRT(J26*L26^2) -> 18.01
A27: c_TxA | B27: Cost of Treament A | C27: Treatment A | D27: =IF(opt_modeltype=$E$2,E27,F27) -> 38 | E27: 38 | F27: =E27 -> 38 | H27: fixed
A28: c_TxB | B28: Cost of Treament B | C28: Treatment B | D28: =IF(opt_modeltype=$E$2,E28,F28) -> 400 | E28: 400 | F28: =E28 -> 400 | H28: fixed
A30: Utility Parameters
A31: Parameter | B31: Description | C31: Refers to | D31: Value Used | E31: Deterministic | F31: Stochastic | G31: Random | H31: Dist | I31: Param1 | K31: Param2 | M31: a + b | N31: Mean | O31: SD | P31: Mean | Q31: SD
A32: Chronic, silent disease | B32: Health state specific Utility | C32: Common | D32: =IF(opt_modeltype=$E$2,E32,F32) -> 0.819 | E32: 0.819 | F32: =_xlfn.BETA.INV(G32,J32,L32) -> 0.8080965291 | G32: =RAND() -> 0.2944823476 | H32: beta | I32: α | J32: =N32*M32 -> 274.482 | K32: b | L32: =M32-J32 -> 60.66085714 | M32: =N32*(1-N32)/O32^2-1 -> 335.1428571 | N32: 0.819 | O32: 0.021 | P32: =J32/(J32+L32) -> 0.819 | Q32: =J32*L32/((J32+L32)^2*(J32+L32+1)) -> 0.000441
A33: Chronic, active disease | B33: Health state specific Utility | C33: Common | D33: =IF(opt_modeltype=$E$2,E33,F33) -> 0.653 | E33: 0.653 | F33: =_xlfn.BETA.INV(G33,J33,L33) -> 0.7970433618 | G33: =RAND() -> 0.7783339101 | H33: beta | I33: α | J33: =N33*M33 -> 4.527628234 | K33: b | L33: =M33-J33 -> 2.405952523 | M33: =N33*(1-N33)/O33^2-1 -> 6.933580757 | N33: 0.653 | O33: 0.169 | P33: =J33/(J33+L33) -> 0.653 | Q33: =J33*L33/((J33+L33)^2*(J33+L33+1)) -> 0.028561
A34: Complications | B34: Health state specific Utility | C34: Common | D34: =IF(opt_modeltype=$E$2,E34,F34) -> -0.137 | E34: -0.137 | F34: =1-F35 -> -0.00387895649
B35: DISUTILITY FOR COMPLICATIONS STATE | F35: =_xlfn.GAMMA.INV(G35,J35,L35) -> 1.003878956 | G35: =RAND() -> 0.236614039 | H35: gamma | I35: α | J35: =(N35/O35)^2 -> 39.90027778 | K35: b | L35: =O35^2/N35 -> 0.02849604222 | M35: =N35*(1-N35)/O35^2-1 -> -5.807685185 | N35: 1.137 | O35: 0.18 | P35: =J35*L35 -> 1.137 | Q35: =SQRT(J35*L35^2) -> 0.18

Sheet Dummy for calculation purposes
E8: TxA | H8: SILENT | I8: ACTIVE | J8: COMPL | K8: DEAD | M8: TOTAL
G9: SILENT | H9: =M9-I9-J9-K9 -> 113 | I9: 11 | J9: 1 | K9: 0 | M9: 125 | V9: Mean | W9: SD | Y9: Chronic, active disease | Z9: Complications
G10: ACTIVE | H10: 12 | I10: =M10-H10-J10-K10 -> 44 | J10: 8 | K10: 1 | M10: 65 | U10: Chronic, silent disease | V10: 0.819 | W10: 0.021 | Y10: 0.403 | Z10: 0.219
G11: COMPL | H11: 0 | I11: 0 | J11: =M11-H11-I11-K11 -> 1426 | K11: 5 | M11: 1431 | U11: Chronic, active disease | V11: 0.653 | W11: 0.109 | Z11: 0.673
G12: DEAD | H12: 0 | I12: 0 | J12: 0 | K12: 1 | M12: 1 | U12: Complications | V12: -0.137 | W12: 0.18
H16: SILENT | I16: ACTIVE | J16: COMPL | K16: DEAD | U16: SILENT | V16: =W10^2 -> 0.000441 | W16: =W10*W11*Y10 -> 0.000922467 | X16: =Z10*W10*W12 -> 0.00082782
G17: SILENT | H17: =H9/$M9 -> 0.904 | I17: 0.088 | J17: 0.008 | K17: 0 | U17: ACTIVE | V17: =W16 -> 0.000922467 | W17: =W11^2 -> 0.011881 | X17: =Z11*W11*W12 -> 0.01320426
G18: ACTIVE | H18: 0.1846153846 | I18: 0.6769230769 | J18: 0.1230769231 | K18: 0.01538461538 | U18: COMPL | V18: =X16 -> 0.00082782 | W18: =X17 -> 0.01320426 | X18: =W12^2 -> 0.0324
G19: COMPL | H19: 0 | I19: 0 | J19: 0.9965059399 | K19: 0.003494060098
G20: DEAD | H20: 0 | I20: 0 | J20: 0 | K20: 1
E24: TxB | H24: SILENT | I24: ACTIVE | J24: COMPL | K24: DEAD | M24: TOTAL
G25: SILENT | H25: =M25-I25-J25-K25 -> 1011 | I25: 105 | J25: 16 | K25: 1 | M25: 1133
G26: ACTIVE | H26: 178 | I26: =M26-H26-J26-K26 -> 579 | J26: 82 | K26: 1 | M26: 840
G27: COMPL | H27: 0 | I27: 0 | J27: =M27-H27-I27-K27 -> 1422 | K27: 9 | M27: 1431 | U27: State | V27: Mean | W27: Standard deviation | X27: z
G28: DEAD | H28: 0 | I28: 0 | J28: 0 | K28: 1 | M28: 1 | U28: SILENT | V28: 0.819 | W28: 0.021 | X28: =(1-V28)/W28 -> 8.619047619
U29: ACTIVE | V29: 0.653 | W29: 0.109 | X29: =(1-V29)/W29 -> 3.183486239 | Z29: =NORMSDIST(X29) -> 0.9992724348
U30: COMPL | V30: -0.137 | W30: 0.18 | X30: 6.316666667
H32: SILENT | I32: ACTIVE | J32: COMPL | K32: DEAD
G33: SILENT | H33: =H25/$M25 -> 0.892321271 | I33: 0.09267431598 | J33: 0.01412180053 | K33: 0.0008826125331
G34: ACTIVE | H34: 0.2119047619 | I34: 0.6892857143 | J34: 0.09761904762 | K34: 0.00119047619
G35: COMPL | H35: 0 | I35: 0 | J35: 0.9937106918 | K35: 0.006289308176
G36: DEAD | H36: 0 | I36: 0 | J36: 0 | K36: 1

Sheet Scatterplot

Sheet CEACs and CEAF
